{"text_format":"1","workbook":"xlsx","n_sheets":1,"sheets":["2025"],"not_rendered":{"charts":0,"images":1,"macros":0,"external_links":0,"defined_names":1,"comments":0,"pivot_tables":0},"unopened":[],"bounds":{"document_bytes":16777216,"sheet_cells":100000,"rows_first":2000,"rows_last":500,"rows_between":2000,"halvings":0,"cell_chars":16384,"cell_head_chars":4096},"cells_cut":0,"cells_raw":0,"read":"whole","date_system":"1900"}

{"sheet":"2025","index":0,"n_rows":1194,"n_cols":19,"rows_kept":1194,"cut":false,"hidden":false,"merged":[[10,15,10,16],[3,1,3,3],[4,1,4,3],[10,6,11,6],[10,7,11,7],[10,8,11,8],[10,9,10,14],[5,1,5,3]]}
["letničky - mladé rostliny na multiplatech - ze semen a vegetativně množené - 2025"]
["objednávkový formulář - kupní smlouva mezi"]
["odběratel"]
["firma"]
["adresa"]
["IČ/DIČ"]
["dodavatel"]
["FLORENSIS HOLLAND B.V. zastoupený THOOLEN s.r.o., IČ 48950700, Rakovník"]
[null,null,null,null,null,null,null,null,null,6,8,10,12,16,18]
["ceny jsou uváděny vč. licencí a dopravy do vaší firmy",null,null,null,null,null,null,null,{"$f":"SUM(J10:O10)","v":0},{"$f":"SUM(J13:J1194)","v":0},0,0,0,0,0,null,null,{"$f":"SUM(R13:R1194)","v":0},{"$f":"SUM(S13:S1194)","v":0}]
[null,null,null,null,null,null,"mn. v 1buňce","pikírováno","licence","expedice",null,null,null,null,null,"CENA"]
["code","plato","gar.","Artikelbezeichnung","skupina","new",null,null,null,"5.2","19.2","5.3","19.3","16.4","30.4","rostlina","plato","za objed.","s DPH"]
["18083",288,284,"Ageratum houstonianum Aloha F1 Blue","semenáč",null,1,"N",null,null,null,null,null,null,null,3.14,891.27,{"$f":"Q13*(J13+K13+L13+M13+N13+O13)","v":0},{"$f":"R13*1.12","v":0}]
["18083",510,480,"Ageratum houstonianum Aloha F1 Blue","semenáč",null,1,"N",null,null,null,null,null,null,null,2.37,1137.1400000000001,0,0]
["19841",128,126,"Ageratum houstonianum Patina Blue","řízek",null,1,"N","A",null,null,null,null,null,null,12.23,1541.27,0,0]
["36513",288,284,"Alternanthera brasiliana Purple Prince","semenáč",null,1,"N",null,null,null,null,null,null,null,7.23,2054.6999999999998,0,0]
["41654",128,126,"Angelonia angustifolia AngelDance™ Fuchsia Bicolour","řízek",null,1,"N","A",null,null,null,null,null,null,11.62,1464.64,0,0]
["41655",128,126,"Angelonia angustifolia AngelDance™ Violet Bicolour","řízek",null,1,"N","A",null,null,null,null,null,null,11.62,1464.64,0,0]
["32672",128,126,"Angelonia angustifolia Archangel™ Blue Bicolour","řízek",null,1,"N","A",null,null,null,null,null,null,11.24,1416.45,0,0]
["41483",128,126,"Angelonia angustifolia Archangel™ Coral","řízek","new",1,"N","A",null,null,null,null,null,null,11.24,1416.45,0,0]
["19587",128,126,"Angelonia angustifolia Archangel™ Deep Rose","řízek",null,1,"N","A",null,null,null,null,null,null,11.24,1416.45,0,0]
["36368",128,126,"Angelonia angustifolia Archangel™ Cherry Red","řízek",null,1,"N","A",null,null,null,null,null,null,11.24,1416.45,0,0]
["37688",128,126,"Angelonia angustifolia Archangel™ Purple","řízek",null,1,"N","A",null,null,null,null,null,null,11.24,1416.45,0,0]
["41482",128,126,"Angelonia angustifolia Archangel™ White","řízek",null,1,"N","A",null,null,null,null,null,null,11.24,1416.45,0,0]
["34758",288,284,"Angelonia angustifolia Serenita® Mix","semenáč",null,1,"N",null,null,null,null,null,null,null,8.26,2344.7399999999998,0,0]
["43198",180,178,"Angelonia angustifolia Serenita® MixMasters® Delhi Summer","semenáč","new",3,"N",null,null,null,null,null,null,null,25.05,4459.0600000000004,0,0]
["34759",288,284,"Angelonia angustifolia Serenita® Pink","semenáč",null,1,"N",null,null,null,null,null,null,null,8.26,2344.7399999999998,0,0]
["32751",288,284,"Angelonia angustifolia Serenita® Purple","semenáč",null,1,"N",null,null,null,null,null,null,null,8.26,2344.7399999999998,0,0]
["37166",288,284,"Angelonia angustifolia Serenita® Rose","semenáč",null,1,"N",null,null,null,null,null,null,null,8.26,2344.7399999999998,0,0]
["34092",288,284,"Angelonia angustifolia Serenita® Sky Blue","semenáč",null,1,"N",null,null,null,null,null,null,null,8.26,2344.7399999999998,0,0]
["32752",288,284,"Angelonia angustifolia Serenita® White","semenáč",null,1,"N",null,null,null,null,null,null,null,8.26,2344.7399999999998,0,0]
["32127",128,126,"Antirrhinum majus Antirinca™ Copper Apricote","řízek",null,1,"Y","A",null,null,null,null,null,null,11.72,1476.21,0,0]
["32129",128,126,"Antirrhinum majus Antirinca™ Rose","řízek",null,1,"Y","A",null,null,null,null,null,null,11.72,1476.21,0,0]
["32130",128,126,"Antirrhinum majus Antirinca™ Yellow Maroon","řízek",null,1,"Y","A",null,null,null,null,null,null,11.72,1476.21,0,0]
["36904",288,284,"Antirrhinum majus Candy Tops F1 Mix","semenáč",null,1,"N",null,null,null,null,null,null,null,3.87,1098.76,0,0]
["43203",180,178,"Antirrhinum majus Candy Tops F1 MixMasters® Twister","semenáč","new",3,"N",null,null,null,null,null,null,null,11.83,2106.04,0,0]
["36905",288,284,"Antirrhinum majus Candy Tops F1 Orange","semenáč",null,1,"N",null,null,null,null,null,null,null,3.87,1098.76,0,0]
["43369",288,284,"Antirrhinum majus Candy Tops F1 Pink Bicolour","semenáč","new",1,"N",null,null,null,null,null,null,null,3.87,1098.76,0,0]
["36916",288,284,"Antirrhinum majus Candy Tops F1 Red","semenáč",null,1,"N",null,null,null,null,null,null,null,3.87,1098.76,0,0]
["36906",288,284,"Antirrhinum majus Candy Tops F1 Rose","semenáč",null,1,"N",null,null,null,null,null,null,null,3.87,1098.76,0,0]
["36315",288,284,"Antirrhinum majus Candy Tops F1 White","semenáč",null,1,"N",null,null,null,null,null,null,null,3.87,1098.76,0,0]
["36907",288,284,"Antirrhinum majus Candy Tops F1 Yellow","semenáč",null,1,"N",null,null,null,null,null,null,null,3.87,1098.76,0,0]
["43908",288,284,"Antirrhinum majus DoubleShot™ Appleblossom","semenáč","new",1,"N",null,null,null,null,null,null,null,4.16,1182.4000000000001,0,0]
["43909",288,284,"Antirrhinum majus DoubleShot™ Crimson Red","semenáč","new",1,"N",null,null,null,null,null,null,null,4.16,1182.4000000000001,0,0]
["43907",288,284,"Antirrhinum majus DoubleShot™ Orange Bicolour","semenáč","new",1,"N",null,null,null,null,null,null,null,4.16,1182.4000000000001,0,0]
["43911",288,284,"Antirrhinum majus DoubleShot™ Peach","semenáč","new",1,"N",null,null,null,null,null,null,null,4.16,1182.4000000000001,0,0]
["43910",288,284,"Antirrhinum majus DoubleShot™ Yellow","semenáč","new",1,"N",null,null,null,null,null,null,null,4.16,1182.4000000000001,0,0]
["45072",288,284,"Antirrhinum majus DoubleShot™ Yellow Red Heart","semenáč","new",1,"N",null,null,null,null,null,null,null,4.16,1182.4000000000001,0,0]
["34079",288,284,"Antirrhinum majus Pirouette F1 Magenta","semenáč",null,1,"N",null,null,null,null,null,null,null,3.87,1098.76,0,0]
["34080",288,284,"Antirrhinum majus Pirouette F1 Pink","semenáč",null,1,"N",null,null,null,null,null,null,null,3.87,1098.76,0,0]
["34081",288,284,"Antirrhinum majus Pirouette F1 Red","semenáč",null,1,"N",null,null,null,null,null,null,null,3.87,1098.76,0,0]
["34082",288,284,"Antirrhinum majus Pirouette F1 Scarlet Orange","semenáč",null,1,"N",null,null,null,null,null,null,null,3.87,1098.76,0,0]
["34083",288,284,"Antirrhinum majus Pirouette F1 Yellow","semenáč",null,1,"N",null,null,null,null,null,null,null,3.87,1098.76,0,0]
["42400",128,126,"Antirrhinum majus Snap in Black Apricote","řízek","new",1,"Y","A",null,null,null,null,null,null,15.31,1929.24,0,0]
["42399",128,126,"Antirrhinum majus Snap in Black Hot Pink","řízek","new",1,"Y","A",null,null,null,null,null,null,15.31,1929.24,0,0]
["42398",128,126,"Antirrhinum majus Snap in Black Pink","řízek","new",1,"Y","A",null,null,null,null,null,null,15.31,1929.24,0,0]
["42397",128,126,"Antirrhinum majus Snap in Black Raspberry","řízek","new",1,"Y","A",null,null,null,null,null,null,15.31,1929.24,0,0]
["31964",288,284,"Antirrhinum majus Snapshot F1 Burgundy","semenáč",null,1,"N",null,null,null,null,null,null,null,2.64,751.14,0,0]
["35399",288,284,"Antirrhinum majus Snapshot F1 Burgundy Bicolour","semenáč",null,1,"N",null,null,null,null,null,null,null,2.64,751.14,0,0]
["18449",288,284,"Antirrhinum majus Snapshot F1 Mix","semenáč",null,1,"N",null,null,null,null,null,null,null,2.64,751.14,0,0]
["18449",510,480,"Antirrhinum majus Snapshot F1 Mix","semenáč",null,1,"N",null,null,null,null,null,null,null,2.23,1069.21,0,0]
["18442",288,284,"Antirrhinum majus Snapshot F1 Orange","semenáč",null,1,"N",null,null,null,null,null,null,null,2.64,751.14,0,0]
["18443",288,284,"Antirrhinum majus Snapshot F1 Pink","semenáč",null,1,"N",null,null,null,null,null,null,null,2.64,751.14,0,0]
["18445",288,284,"Antirrhinum majus Snapshot F1 Red","semenáč",null,1,"N",null,null,null,null,null,null,null,2.64,751.14,0,0]
["18446",288,284,"Antirrhinum majus Snapshot F1 Red Bicolour","semenáč",null,1,"N",null,null,null,null,null,null,null,2.64,751.14,0,0]
["18447",288,284,"Antirrhinum majus Snapshot F1 White","semenáč",null,1,"N",null,null,null,null,null,null,null,2.64,751.14,0,0]
["18448",288,284,"Antirrhinum majus Snapshot F1 Yellow","semenáč",null,1,"N",null,null,null,null,null,null,null,2.64,751.14,0,0]
["10536",288,280,"Antirrhinum majus Sonnet F1 Mix","semenáč",null,1,"N",null,null,null,null,null,null,null,3.45,966.09,0,0]
["10536",510,480,"Antirrhinum majus Sonnet F1 Mix","semenáč",null,1,"N",null,null,null,null,null,null,null,2.36,1131.6400000000001,0,0]
["10532",288,280,"Antirrhinum majus Sonnet F1 Pink","semenáč",null,1,"N",null,null,null,null,null,null,null,3.45,966.09,0,0]
["10531",288,280,"Antirrhinum majus Sonnet F1 Scarlet Orange","semenáč",null,1,"N",null,null,null,null,null,null,null,3.45,966.09,0,0]
["10534",288,280,"Antirrhinum majus Sonnet F1 White","semenáč",null,1,"N",null,null,null,null,null,null,null,3.45,966.09,0,0]
["10535",288,280,"Antirrhinum majus Sonnet F1 Yellow","semenáč",null,1,"N",null,null,null,null,null,null,null,3.45,966.09,0,0]
["38046",128,126,"Argyranthemum frutescens Kilimanjaro White","řízek",null,1,"N","A",null,null,null,null,null,null,9.7200000000000006,1224.1500000000001,0,0]
["42279",128,126,"Argyranthemum frutescens Madeira™ Compact Double Cherry","řízek",null,1,"N","A",null,null,null,null,null,null,10.45,1316.68,0,0]
["38032",128,126,"Argyranthemum frutescens Madeira™ Compact White","řízek",null,1,"N","A",null,null,null,null,null,null,10.45,1316.68,0,0]
["41461",128,126,"Argyranthemum frutescens Madeira™ Compact Yellow","řízek",null,1,"N","A",null,null,null,null,null,null,10.45,1316.68,{"$f":"Q77*(J77+K77+L77+M77+N77+O77)","v":0},{"$f":"R77*1.12","v":0}]
["31678",128,126,"Argyranthemum frutescens Madeira™ Crested Hot Pink","řízek",null,1,"N","A",null,null,null,null,null,null,9.91,1248.24,0,0]
["31679",128,126,"Argyranthemum frutescens Madeira™ Crested Pink","řízek",null,1,"N","A",null,null,null,null,null,null,9.91,1248.24,0,0]
["17688",128,126,"Argyranthemum frutescens Madeira™ Deep Pink","řízek",null,1,"N","A",null,null,null,null,null,null,9.91,1248.24,0,0]
["32764",128,126,"Argyranthemum frutescens Madeira™ Double Red","řízek",null,1,"N","A",null,null,null,null,null,null,9.91,1248.24,0,0]
["17441",128,126,"Argyranthemum frutescens Madeira™ Double White","řízek",null,1,"N","A",null,null,null,null,null,null,9.91,1248.24,0,0]
["36271",128,126,"Argyranthemum frutescens Madeira™ Pink Halo","řízek",null,1,"N","A",null,null,null,null,null,null,9.91,1248.24,0,0]
["17443",128,126,"Argyranthemum frutescens Madeira™ Red","řízek",null,1,"N","A",null,null,null,null,null,null,9.91,1248.24,0,0]
["17445",128,126,"Argyranthemum frutescens Madeira™ White","řízek",null,1,"N","A",null,null,null,null,null,null,9.91,1248.24,0,0]
["17449",128,126,"Argyranthemum frutescens Madeira™ Yellow","řízek",null,1,"N","A",null,null,null,null,null,null,9.91,1248.24,0,0]
["20459",128,126,"Asteriscus maritimus Aurelia™ Yellow","řízek",null,1,"N","A",null,null,null,null,null,null,10.98,1383.19,0,0]
["12566",128,126,"Asteriscus maritimus Golden Dollar","řízek",null,1,"N",null,null,null,null,null,null,null,8.99,1132.58,0,0]
["36132",84,82,"Begonia boliviensis Bonaparte Night Fever Papaya","semenáč",null,1,"N",null,null,null,null,null,null,null,16.510000000000002,1353.9,0,0]
["36132",180,178,"Begonia boliviensis Bonaparte Night Fever Papaya","semenáč",null,1,"N",null,null,null,null,null,null,null,10.82,1925.61,0,0]
["38254",84,82,"Begonia boliviensis Bonaparte Night Fever Rosso","semenáč",null,1,"N",null,null,null,null,null,null,null,16.510000000000002,1353.9,0,0]
["38254",180,178,"Begonia boliviensis Bonaparte Night Fever Rosso","semenáč",null,1,"N",null,null,null,null,null,null,null,10.82,1925.61,0,0]
["43944",84,82,"Begonia boliviensis Funky® Orange","semenáč",null,1,"N",null,null,null,null,null,null,null,16.079999999999998,1318.46,0,0]
["43944",180,178,"Begonia boliviensis Funky® Orange","semenáč",null,1,"N",null,null,null,null,null,null,null,10.119999999999999,1801.02,0,0]
["43945",84,82,"Begonia boliviensis Funky® Pink","semenáč",null,1,"N",null,null,null,null,null,null,null,16.079999999999998,1318.46,0,0]
["43945",180,178,"Begonia boliviensis Funky® Pink","semenáč",null,1,"N",null,null,null,null,null,null,null,10.119999999999999,1801.02,0,0]
["43943",84,82,"Begonia boliviensis Funky® Scarlet","semenáč",null,1,"N",null,null,null,null,null,null,null,16.079999999999998,1318.46,0,0]
["43943",180,178,"Begonia boliviensis Funky® Scarlet","semenáč",null,1,"N",null,null,null,null,null,null,null,10.119999999999999,1801.02,0,0]
["43946",84,82,"Begonia boliviensis Funky® White","semenáč",null,1,"N",null,null,null,null,null,null,null,16.079999999999998,1318.46,0,0]
["43946",180,178,"Begonia boliviensis Funky® White","semenáč",null,1,"N",null,null,null,null,null,null,null,10.119999999999999,1801.02,0,0]
["19006",84,84,"Begonia boliviensis Glowing Embers™ Orange","řízek",null,1,"N","A",null,null,null,null,null,null,19.87,1668.67,0,0]
["37176",84,82,"Begonia boliviensis Groovy Mellow Yellow","semenáč",null,1,"N",null,null,null,null,null,null,null,16.079999999999998,1318.46,0,0]
["37176",180,178,"Begonia boliviensis Groovy Mellow Yellow","semenáč",null,1,"N",null,null,null,null,null,null,null,10.119999999999999,1801.02,0,0]
["37177",84,82,"Begonia boliviensis Groovy Orange","semenáč",null,1,"N",null,null,null,null,null,null,null,16.079999999999998,1318.46,0,0]
["37177",180,178,"Begonia boliviensis Groovy Orange","semenáč",null,1,"N",null,null,null,null,null,null,null,10.119999999999999,1801.02,0,0]
["37178",84,82,"Begonia boliviensis Groovy Red","semenáč",null,1,"N",null,null,null,null,null,null,null,16.079999999999998,1318.46,0,0]
["37178",180,178,"Begonia boliviensis Groovy Red","semenáč",null,1,"N",null,null,null,null,null,null,null,10.119999999999999,1801.02,0,0]
["37179",84,82,"Begonia boliviensis Groovy Rose","semenáč",null,1,"N",null,null,null,null,null,null,null,16.079999999999998,1318.46,0,0]
["37179",180,178,"Begonia boliviensis Groovy Rose","semenáč",null,1,"N",null,null,null,null,null,null,null,10.119999999999999,1801.02,0,0]
["37180",84,82,"Begonia boliviensis Groovy White","semenáč",null,1,"N",null,null,null,null,null,null,null,16.079999999999998,1318.46,0,0]
["37180",180,178,"Begonia boliviensis Groovy White","semenáč",null,1,"N",null,null,null,null,null,null,null,10.119999999999999,1801.02,0,0]
["32100",84,84,"Begonia richmondensis Pink","řízek",null,1,"N",null,null,null,null,null,null,null,14.28,1199.57,0,0]
["14640",128,126,"Begonia semperflorens Doublet® Pink","řízek",null,1,"N","A",null,null,null,null,null,null,13.69,1724.89,0,0]
["14642",128,126,"Begonia semperflorens Doublet® Red","řízek",null,1,"N","A",null,null,null,null,null,null,13.69,1724.89,0,0]
["14641",128,126,"Begonia semperflorens Doublet® Rose","řízek",null,1,"N","A",null,null,null,null,null,null,13.69,1724.89,0,0]
["14644",128,126,"Begonia semperflorens Doublet® White","řízek",null,1,"N","A",null,null,null,null,null,null,13.69,1724.89,0,0]
["37409",288,280,"Begonia semperflorens Juwel F1 Bicolour","semenáč",null,1,"N",null,null,null,null,null,null,null,2.66,745.46,0,0]
["37409",510,490,"Begonia semperflorens Juwel F1 Bicolour","semenáč",null,1,"N",null,null,null,null,null,null,null,1.98,969.04,0,0]
["13011",288,280,"Begonia semperflorens Juwel F1 Rose","semenáč",null,1,"N",null,null,null,null,null,null,null,2.66,745.46,0,0]
["13011",510,490,"Begonia semperflorens Juwel F1 Rose","semenáč",null,1,"N",null,null,null,null,null,null,null,1.98,969.04,0,0]
["13012",288,280,"Begonia semperflorens Juwel F1 Scarlet","semenáč",null,1,"N",null,null,null,null,null,null,null,2.66,745.46,0,0]
["13012",510,490,"Begonia semperflorens Juwel F1 Scarlet","semenáč",null,1,"N",null,null,null,null,null,null,null,1.98,969.04,0,0]
["19078",288,280,"Begonia semperflorens Juwel F1 White","semenáč",null,1,"N",null,null,null,null,null,null,null,2.66,745.46,0,0]
["19078",510,490,"Begonia semperflorens Juwel F1 White","semenáč",null,1,"N",null,null,null,null,null,null,null,1.98,969.04,0,0]
["10599",288,280,"Begonia semperflorens New Globe F1 Ducolour","semenáč",null,1,"N",null,null,null,null,null,null,null,2.66,745.46,0,0]
["10599",510,490,"Begonia semperflorens New Globe F1 Ducolour","semenáč",null,1,"N",null,null,null,null,null,null,null,1.98,969.04,0,0]
["16283",288,280,"Begonia semperflorens New Globe F1 Mix","semenáč",null,1,"N",null,null,null,null,null,null,null,2.66,745.46,0,0]
["16283",510,490,"Begonia semperflorens New Globe F1 Mix","semenáč",null,1,"N",null,null,null,null,null,null,null,1.98,969.04,0,0]
["38185",288,280,"Begonia semperflorens New Globe F1 Rose","semenáč",null,1,"N",null,null,null,null,null,null,null,2.66,745.46,0,0]
["38185",510,490,"Begonia semperflorens New Globe F1 Rose","semenáč",null,1,"N",null,null,null,null,null,null,null,1.98,969.04,0,0]
["38186",288,280,"Begonia semperflorens New Globe F1 Scarlet Impr.","semenáč",null,1,"N",null,null,null,null,null,null,null,2.66,745.46,0,0]
["38186",510,490,"Begonia semperflorens New Globe F1 Scarlet Impr.","semenáč",null,1,"N",null,null,null,null,null,null,null,1.98,969.04,0,0]
["43586",288,280,"Begonia semperflorens New Globe F1 White Impr.","semenáč",null,1,"N",null,null,null,null,null,null,null,2.66,745.46,0,0]
["43586",510,490,"Begonia semperflorens New Globe F1 White Impr.","semenáč",null,1,"N",null,null,null,null,null,null,null,1.98,969.04,0,0]
["37410",288,280,"Begonia semperflorens Quick F1 Bicolour","semenáč",null,1,"N",null,null,null,null,null,null,null,2.66,745.46,0,0]
["37410",510,490,"Begonia semperflorens Quick F1 Bicolour","semenáč",null,1,"N",null,null,null,null,null,null,null,1.98,969.04,0,0]
["10595",288,280,"Begonia semperflorens Quick F1 Mix","semenáč",null,1,"N",null,null,null,null,null,null,null,2.66,745.46,0,0]
["10595",510,490,"Begonia semperflorens Quick F1 Mix","semenáč",null,1,"N",null,null,null,null,null,null,null,1.98,969.04,0,0]
["10591",288,280,"Begonia semperflorens Quick F1 Pink","semenáč",null,1,"N",null,null,null,null,null,null,null,2.66,745.46,0,0]
["10591",510,490,"Begonia semperflorens Quick F1 Pink","semenáč",null,1,"N",null,null,null,null,null,null,null,1.98,969.04,0,0]
["10590",288,280,"Begonia semperflorens Quick F1 Red","semenáč",null,1,"N",null,null,null,null,null,null,null,2.66,745.46,{"$f":"Q141*(J141+K141+L141+M141+N141+O141)","v":0},{"$f":"R141*1.12","v":0}]
["10590",510,490,"Begonia semperflorens Quick F1 Red","semenáč",null,1,"N",null,null,null,null,null,null,null,1.98,969.04,0,0]
["10592",288,280,"Begonia semperflorens Quick F1 Rose","semenáč",null,1,"N",null,null,null,null,null,null,null,2.66,745.46,0,0]
["10592",510,490,"Begonia semperflorens Quick F1 Rose","semenáč",null,1,"N",null,null,null,null,null,null,null,1.98,969.04,0,0]
["10593",288,280,"Begonia semperflorens Quick F1 White","semenáč",null,1,"N",null,null,null,null,null,null,null,2.66,745.46,0,0]
["10593",510,490,"Begonia semperflorens Quick F1 White","semenáč",null,1,"N",null,null,null,null,null,null,null,1.98,969.04,0,0]
["10602",288,280,"Begonia semperflorens Supreme F1 Mix","semenáč",null,1,"N",null,null,null,null,null,null,null,2.66,745.46,0,0]
["10602",510,490,"Begonia semperflorens Supreme F1 Mix","semenáč",null,1,"N",null,null,null,null,null,null,null,1.98,969.04,0,0]
["32488",84,82,"Begonia tuberhybrida GO!Early F1 Bright Orange Bronze Leaf","semenáč",null,1,"N",null,null,null,null,null,null,null,9.33,765.18,0,0]
["32488",180,178,"Begonia tuberhybrida GO!Early F1 Bright Orange Bronze Leaf","semenáč",null,1,"N",null,null,null,null,null,null,null,6.05,1077.28,0,0]
["16906",84,82,"Begonia tuberhybrida GO!Early F1 Deep Rose","semenáč",null,1,"N",null,null,null,null,null,null,null,9.33,765.18,0,0]
["16906",180,178,"Begonia tuberhybrida GO!Early F1 Deep Rose","semenáč",null,1,"N",null,null,null,null,null,null,null,6.05,1077.28,0,0]
["37185",84,82,"Begonia tuberhybrida GO!Early F1 Fire","semenáč",null,1,"N",null,null,null,null,null,null,null,9.33,765.18,0,0]
["37185",180,178,"Begonia tuberhybrida GO!Early F1 Fire","semenáč",null,1,"N",null,null,null,null,null,null,null,6.05,1077.28,0,0]
["30072",84,82,"Begonia tuberhybrida GO!Early F1 Cherry Bronze Leaf","semenáč",null,1,"N",null,null,null,null,null,null,null,9.33,765.18,0,0]
["30072",180,178,"Begonia tuberhybrida GO!Early F1 Cherry Bronze Leaf","semenáč",null,1,"N",null,null,null,null,null,null,null,6.05,1077.28,0,0]
["10565",84,82,"Begonia tuberhybrida GO!Early F1 Mix","semenáč",null,1,"N",null,null,null,null,null,null,null,9.33,765.18,0,0]
["10565",180,178,"Begonia tuberhybrida GO!Early F1 Mix","semenáč",null,1,"N",null,null,null,null,null,null,null,6.05,1077.28,0,0]
["16907",84,82,"Begonia tuberhybrida GO!Early F1 Orange","semenáč",null,1,"N",null,null,null,null,null,null,null,9.33,765.18,0,0]
["16907",180,178,"Begonia tuberhybrida GO!Early F1 Orange","semenáč",null,1,"N",null,null,null,null,null,null,null,6.05,1077.28,0,0]
["17347",84,82,"Begonia tuberhybrida GO!Early F1 Pink Shades","semenáč",null,1,"N",null,null,null,null,null,null,null,9.33,765.18,0,0]
["17347",180,178,"Begonia tuberhybrida GO!Early F1 Pink Shades","semenáč",null,1,"N",null,null,null,null,null,null,null,6.05,1077.28,0,0]
["32529",84,82,"Begonia tuberhybrida GO!Early F1 Salmon Bicolour","semenáč",null,1,"N",null,null,null,null,null,null,null,9.33,765.18,0,0]
["32529",180,178,"Begonia tuberhybrida GO!Early F1 Salmon Bicolour","semenáč",null,1,"N",null,null,null,null,null,null,null,6.05,1077.28,0,0]
["16909",84,82,"Begonia tuberhybrida GO!Early F1 Scarlet Red","semenáč",null,1,"N",null,null,null,null,null,null,null,9.33,765.18,0,0]
["16909",180,178,"Begonia tuberhybrida GO!Early F1 Scarlet Red","semenáč",null,1,"N",null,null,null,null,null,null,null,6.05,1077.28,0,0]
["31940",84,82,"Begonia tuberhybrida GO!Early F1 White","semenáč",null,1,"N",null,null,null,null,null,null,null,9.33,765.18,0,0]
["31940",180,178,"Begonia tuberhybrida GO!Early F1 White","semenáč",null,1,"N",null,null,null,null,null,null,null,6.05,1077.28,0,0]
["16891",84,82,"Begonia tuberhybrida GO!Early F1 Yellow","semenáč",null,1,"N",null,null,null,null,null,null,null,9.33,765.18,0,0]
["16891",180,178,"Begonia tuberhybrida GO!Early F1 Yellow","semenáč",null,1,"N",null,null,null,null,null,null,null,6.05,1077.28,0,0]
["10568",84,82,"Begonia tuberhybrida Illumination® F1 Apricot Shades","semenáč",null,1,"N",null,null,null,null,null,null,null,9.5,778.67,0,0]
["18450",84,82,"Begonia tuberhybrida Illumination® F1 Golden Picotee","semenáč",null,1,"N",null,null,null,null,null,null,null,9.5,778.67,0,0]
["32437",84,82,"Begonia tuberhybrida Illumination® F1 Lemon","semenáč",null,1,"N",null,null,null,null,null,null,null,9.5,778.67,0,0]
["10570",84,82,"Begonia tuberhybrida Illumination® F1 Light Pink","semenáč",null,1,"N",null,null,null,null,null,null,null,9.5,778.67,0,0]
["13840",84,82,"Begonia tuberhybrida Illumination® F1 Mix","semenáč",null,1,"N",null,null,null,null,null,null,null,9.5,778.67,0,0]
["13840",180,178,"Begonia tuberhybrida Illumination® F1 Mix","semenáč",null,1,"N",null,null,null,null,null,null,null,7.07,1258.3800000000001,0,0]
["10569",84,82,"Begonia tuberhybrida Illumination® F1 Orange","semenáč",null,1,"N",null,null,null,null,null,null,null,9.5,778.67,0,0]
["13260",84,82,"Begonia tuberhybrida Illumination® F1 Rose","semenáč",null,1,"N",null,null,null,null,null,null,null,9.5,778.67,0,0]
["16208",84,82,"Begonia tuberhybrida Illumination® F1 Scarlet","semenáč",null,1,"N",null,null,null,null,null,null,null,9.5,778.67,0,0]
["10571",84,82,"Begonia tuberhybrida Illumination® F1 White","semenáč",null,1,"N",null,null,null,null,null,null,null,9.5,778.67,0,0]
["15957",84,82,"Begonia tuberhybrida Nonstop® Mocca F1 Scarlet","semenáč",null,1,"N",null,null,null,null,null,null,null,9.58,785.25,0,0]
["15957",180,178,"Begonia tuberhybrida Nonstop® Mocca F1 Scarlet","semenáč",null,1,"N",null,null,null,null,null,null,null,6.16,1097.02,0,0]
["15956",84,82,"Begonia tuberhybrida Nonstop® Mocca F1 White","semenáč",null,1,"N",null,null,null,null,null,null,null,9.58,785.25,0,0]
["15956",180,178,"Begonia tuberhybrida Nonstop® Mocca F1 White","semenáč",null,1,"N",null,null,null,null,null,null,null,6.16,1097.02,0,0]
["15955",84,82,"Begonia tuberhybrida Nonstop® Mocca F1 Yellow","semenáč",null,1,"N",null,null,null,null,null,null,null,9.58,785.25,0,0]
["15955",180,178,"Begonia tuberhybrida Nonstop® Mocca F1 Yellow","semenáč",null,1,"N",null,null,null,null,null,null,null,6.16,1097.02,0,0]
["18585",84,82,"Begonia x hybrida BIG™ Red Bronze Leaf","semenáč",null,1,"N",null,null,null,null,null,null,null,12.98,1064.4000000000001,0,0]
["18585",180,178,"Begonia x hybrida BIG™ Red Bronze Leaf","semenáč",null,1,"N",null,null,null,null,null,null,null,9.43,1678.47,0,0]
["16610",84,82,"Begonia x hybrida BIG™ Red Green Leaf","semenáč",null,1,"N",null,null,null,null,null,null,null,12.98,1064.4000000000001,0,0]
["16610",180,178,"Begonia x hybrida BIG™ Red Green Leaf","semenáč",null,1,"N",null,null,null,null,null,null,null,9.43,1678.47,0,0]
["16611",84,82,"Begonia x hybrida BIG™ Rose Bronze Leaf","semenáč",null,1,"N",null,null,null,null,null,null,null,12.98,1064.4000000000001,0,0]
["16611",180,178,"Begonia x hybrida BIG™ Rose Bronze Leaf","semenáč",null,1,"N",null,null,null,null,null,null,null,9.43,1678.47,0,0]
["32530",84,82,"Begonia x hybrida BIG™ Rose Green Leaf","semenáč",null,1,"N",null,null,null,null,null,null,null,12.98,1064.4000000000001,0,0]
["32530",180,178,"Begonia x hybrida BIG™ Rose Green Leaf","semenáč",null,1,"N",null,null,null,null,null,null,null,9.43,1678.47,0,0]
["45143",84,82,"Begonia x hybrida BIG™ White Bronze Leaf","semenáč","new",1,"N",null,null,null,null,null,null,null,12.98,1064.4000000000001,0,0]
["45143",180,178,"Begonia x hybrida BIG™ White Bronze Leaf","semenáč","new",1,"N",null,null,null,null,null,null,null,9.43,1678.47,0,0]
["37187",84,82,"Begonia x hybrida BIG™ White Green Leaf","semenáč",null,1,"N",null,null,null,null,null,null,null,12.98,1064.4000000000001,0,0]
["37187",180,178,"Begonia x hybrida BIG™ White Green Leaf","semenáč",null,1,"N",null,null,null,null,null,null,null,9.43,1678.47,0,0]
["14512",84,82,"Begonia x hybrida Dragon Wing® Pink","semenáč",null,1,"N",null,null,null,null,null,null,null,13.26,1087.3,0,0]
["14512",180,178,"Begonia x hybrida Dragon Wing® Pink","semenáč",null,1,"N",null,null,null,null,null,null,null,9.33,1661.44,0,0]
["12986",84,82,"Begonia x hybrida Dragon Wing® Red","semenáč",null,1,"N",null,null,null,null,null,null,null,13.26,1087.3,0,0]
["12986",180,178,"Begonia x hybrida Dragon Wing® Red","semenáč",null,1,"N",null,null,null,null,null,null,null,9.33,1661.44,0,0]
["32896",84,82,"Begonia x hybrida Megawatt™ Pink Bronze Leaf","semenáč",null,1,"N",null,null,null,null,null,null,null,12.25,1004.49,0,0]
["32896",180,178,"Begonia x hybrida Megawatt™ Pink Bronze Leaf","semenáč",null,1,"N",null,null,null,null,null,null,null,8.8800000000000008,1580.42,0,0]
["35061",84,82,"Begonia x hybrida Megawatt™ Pink Green Leaf","semenáč",null,1,"N",null,null,null,null,null,null,null,12.25,1004.49,{"$f":"Q205*(J205+K205+L205+M205+N205+O205)","v":0},{"$f":"R205*1.12","v":0}]
["35061",180,178,"Begonia x hybrida Megawatt™ Pink Green Leaf","semenáč",null,1,"N",null,null,null,null,null,null,null,8.8800000000000008,1580.42,0,0]
["32955",84,82,"Begonia x hybrida Megawatt™ Red Bronze Leaf","semenáč",null,1,"N",null,null,null,null,null,null,null,12.25,1004.49,0,0]
["32955",180,178,"Begonia x hybrida Megawatt™ Red Bronze Leaf","semenáč",null,1,"N",null,null,null,null,null,null,null,8.8800000000000008,1580.42,0,0]
["35062",84,82,"Begonia x hybrida Megawatt™ Red Green Leaf","semenáč",null,1,"N",null,null,null,null,null,null,null,12.25,1004.49,0,0]
["35062",180,178,"Begonia x hybrida Megawatt™ Red Green Leaf","semenáč",null,1,"N",null,null,null,null,null,null,null,8.8800000000000008,1580.42,0,0]
["32898",84,82,"Begonia x hybrida Megawatt™ Rose Bronze Leaf","semenáč",null,1,"N",null,null,null,null,null,null,null,12.25,1004.49,0,0]
["32898",180,178,"Begonia x hybrida Megawatt™ Rose Bronze Leaf","semenáč",null,1,"N",null,null,null,null,null,null,null,8.8800000000000008,1580.42,0,0]
["35063",84,82,"Begonia x hybrida Megawatt™ Rose Green Leaf","semenáč",null,1,"N",null,null,null,null,null,null,null,12.25,1004.49,0,0]
["35063",180,178,"Begonia x hybrida Megawatt™ Rose Green Leaf","semenáč",null,1,"N",null,null,null,null,null,null,null,8.8800000000000008,1580.42,0,0]
["37680",84,82,"Begonia x hybrida Megawatt™ White Green Leaf","semenáč",null,1,"N",null,null,null,null,null,null,null,12.25,1004.49,0,0]
["37680",180,178,"Begonia x hybrida Megawatt™ White Green Leaf","semenáč",null,1,"N",null,null,null,null,null,null,null,8.8800000000000008,1580.42,0,0]
["42850",180,178,"Bidens ferulifolia Bee Happy™ Double Orange","řízek","new",1,"N","A",null,null,null,null,null,null,9.59,1707.06,0,0]
["36843",180,178,"Bidens ferulifolia Bee Happy™ Orange","řízek",null,1,"N","A",null,null,null,null,null,null,9.59,1707.06,0,0]
["42849",180,178,"Bidens ferulifolia Bee Happy™ Red Impr.","řízek","new",1,"N","A",null,null,null,null,null,null,9.59,1707.06,0,0]
["43090",128,126,"Bidens ferulifolia Bee-Buddies MixMasters® Sunset","řízek",null,2,"N","A",null,null,null,null,null,null,19.66,2476.7399999999998,0,0]
["32377",180,178,"Bidens ferulifolia BeeDance® Painted Red","řízek",null,1,"N","A",null,null,null,null,null,null,10.55,1878.64,0,0]
["34706",180,178,"Bidens ferulifolia Blazing™ Glory","řízek",null,1,"N","A",null,null,null,null,null,null,10.16,1809.19,0,0]
["43424",180,178,"Bidens ferulifolia Blazing™ Star","řízek","new",1,"N","A",null,null,null,null,null,null,10.16,1809.19,0,0]
["31658",180,178,"Bidens ferulifolia Gold Strike Yellow","řízek",null,1,"N","A",null,null,null,null,null,null,8.9,1583.83,0,0]
["34809",180,178,"Bidens ferulifolia Golden Empire™ Gold","řízek",null,1,"N","A",null,null,null,null,null,null,10.16,1809.19,0,0]
["32938",180,178,"Bidens ferulifolia Sixbi Gold","řízek",null,1,"N","A",null,null,null,null,null,null,9.59,1707.06,0,0]
["38035",180,178,"Bidens ferulifolia Sixbi Smile","řízek",null,1,"N","A",null,null,null,null,null,null,9.59,1707.06,0,0]
["38457",180,178,"Bidens ferulifolia Sixbi Sun","řízek","new",1,"N","A",null,null,null,null,null,null,9.59,1707.06,0,0]
["37692",180,178,"Bidens ferulifolia Sun Drop","řízek",null,1,"N","A",null,null,null,null,null,null,9.59,1707.06,0,0]
["37810",84,84,"Bracteantha bracteata Crispy Magenta","řízek",null,1,"N","A",null,null,null,null,null,null,15.15,1272.82,0,0]
["37811",84,84,"Bracteantha bracteata Crispy Orange","řízek",null,1,"N","A",null,null,null,null,null,null,15.15,1272.82,0,0]
["37812",84,84,"Bracteantha bracteata Crispy Pink","řízek",null,1,"N","A",null,null,null,null,null,null,15.15,1272.82,0,0]
["42301",84,84,"Bracteantha bracteata Crispy Red Impr.","řízek","new",1,"N","A",null,null,null,null,null,null,15.15,1272.82,0,0]
["37814",84,84,"Bracteantha bracteata Crispy White","řízek",null,1,"N","A",null,null,null,null,null,null,15.15,1272.82,0,0]
["37815",84,84,"Bracteantha bracteata Crispy Yellow","řízek",null,1,"N","A",null,null,null,null,null,null,15.15,1272.82,0,0]
["36086",84,84,"Bracteantha bracteata Granvia® Gold","řízek",null,1,"N","A",null,null,null,null,null,null,17.2,1445.04,0,0]
["19400",128,126,"Brachyscome multifida Brasco™ Violet","řízek",null,2,"N","A",null,null,null,null,null,null,12.05,1518.14,0,0]
["19400",180,178,"Brachyscome multifida Brasco™ Violet","řízek",null,1,"N","A",null,null,null,null,null,null,9.76,1737.7,0,0]
["19474",128,126,"Brachyscome multifida Delight Magenta","řízek",null,2,"N","A",null,null,null,null,null,null,12.85,1619.35,0,0]
["19474",180,178,"Brachyscome multifida Delight Magenta","řízek",null,1,"N","A",null,null,null,null,null,null,10.43,1856.85,0,0]
["16002",128,126,"Brachyscome multifida Delight Mauve","řízek",null,2,"N","A",null,null,null,null,null,null,12.31,1551.39,0,0]
["16002",180,178,"Brachyscome multifida Delight Mauve","řízek",null,1,"N","A",null,null,null,null,null,null,9.76,1737.7,0,0]
["41463",180,178,"Brachyscome multifida Fresco™ Bright Pink","řízek",null,1,"N","A",null,null,null,null,null,null,9.76,1737.7,0,0]
["34710",180,178,"Brachyscome multifida Fresco™ Purple","řízek",null,1,"N","A",null,null,null,null,null,null,9.76,1737.7,0,0]
["33951",128,126,"Brachyscome multifida Surdaisy® White","řízek",null,2,"N","A",null,null,null,null,null,null,12.5,1575.49,0,0]
["33951",180,178,"Brachyscome multifida Surdaisy® White","řízek",null,1,"N","A",null,null,null,null,null,null,9.9499999999999993,1771.74,0,0]
["19599",128,126,"Calibrachoa parviflora Cabaret® Bright Red","řízek",null,1,"Y","A",null,null,null,null,null,null,11.43,1439.58,0,0]
["19599",180,178,"Calibrachoa parviflora Cabaret® Bright Red","řízek",null,1,"Y","A",null,null,null,null,null,null,9.6,1709.1,0,0]
["34067",128,126,"Calibrachoa parviflora Cabaret® Compact Blue","řízek",null,1,"N","A",null,null,null,null,null,null,11.82,1489.7,0,0]
["37463",128,126,"Calibrachoa parviflora Cabaret® Compact Lavender","řízek",null,1,"N","A",null,null,null,null,null,null,11.82,1489.7,0,0]
["31786",128,126,"Calibrachoa parviflora Cabaret® Compact Lemon","řízek",null,1,"N","A",null,null,null,null,null,null,11.82,1489.7,0,0]
["36874",128,126,"Calibrachoa parviflora Cabaret® Compact Orange Star","řízek",null,1,"N","A",null,null,null,null,null,null,11.82,1489.7,0,0]
["36875",128,126,"Calibrachoa parviflora Cabaret® Compact Pink Star","řízek",null,1,"N","A",null,null,null,null,null,null,11.82,1489.7,0,0]
["37404",128,126,"Calibrachoa parviflora Cabaret® Compact Rose","řízek",null,1,"N","A",null,null,null,null,null,null,11.82,1489.7,0,0]
["32666",128,126,"Calibrachoa parviflora Cabaret® Compact White","řízek",null,1,"N","A",null,null,null,null,null,null,11.82,1489.7,0,0]
["32667",128,126,"Calibrachoa parviflora Cabaret® Compact Yellow","řízek",null,1,"N","A",null,null,null,null,null,null,11.82,1489.7,0,0]
["17689",128,126,"Calibrachoa parviflora Cabaret® Dark Blue","řízek",null,1,"Y","A",null,null,null,null,null,null,11.43,1439.58,0,0]
["17689",180,178,"Calibrachoa parviflora Cabaret® Dark Blue","řízek",null,1,"Y","A",null,null,null,null,null,null,9.6,1709.1,0,0]
["31425",128,126,"Calibrachoa parviflora Cabaret® Dark Rose","řízek",null,1,"Y","A",null,null,null,null,null,null,11.43,1439.58,0,0]
["31425",180,178,"Calibrachoa parviflora Cabaret® Dark Rose","řízek",null,1,"Y","A",null,null,null,null,null,null,9.6,1709.1,0,0]
["32723",128,126,"Calibrachoa parviflora Cabaret® Double Apricote","řízek",null,1,"Y","A",null,null,null,null,null,null,12.04,1517.66,0,0]
["37007",128,126,"Calibrachoa parviflora Cabaret® Double Blue","řízek",null,1,"Y","A",null,null,null,null,null,null,12.04,1517.66,0,0]
["42135",128,126,"Calibrachoa parviflora Cabaret® Double Light Pink","řízek","new",1,"Y","A",null,null,null,null,null,null,12.04,1517.66,0,0]
["30508",128,126,"Calibrachoa parviflora Cabaret® Double Light Yellow","řízek",null,1,"Y","A",null,null,null,null,null,null,12.04,1517.66,0,0]
["37006",128,126,"Calibrachoa parviflora Cabaret® Double Magenta","řízek",null,1,"Y","A",null,null,null,null,null,null,12.04,1517.66,0,0]
["43117",84,82,"Calibrachoa parviflora Cabaret® Double MixMasters® Blue Boogie","řízek","new",3,"Y","A",null,null,null,null,null,null,23.9,1960.18,0,0]
["43120",84,82,"Calibrachoa parviflora Cabaret® Double MixMasters® Yellow Jazz","řízek","new",3,"Y","A",null,null,null,null,null,null,23.9,1960.18,0,0]
["37005",128,126,"Calibrachoa parviflora Cabaret® Double Pink","řízek",null,1,"Y","A",null,null,null,null,null,null,12.04,1517.66,0,0]
["30505",128,126,"Calibrachoa parviflora Cabaret® Double Pink Vein","řízek",null,1,"Y","A",null,null,null,null,null,null,12.04,1517.66,{"$f":"Q269*(J269+K269+L269+M269+N269+O269)","v":0},{"$f":"R269*1.12","v":0}]
["36480",128,126,"Calibrachoa parviflora Cabaret® Double Rose 2025","řízek",null,1,"Y","A",null,null,null,null,null,null,12.04,1517.66,0,0]
["32724",128,126,"Calibrachoa parviflora Cabaret® Double Sky Blue","řízek",null,1,"Y","A",null,null,null,null,null,null,12.04,1517.66,0,0]
["37902",128,126,"Calibrachoa parviflora Cabaret® Double White Impr.","řízek",null,1,"Y","A",null,null,null,null,null,null,12.04,1517.66,0,0]
["35372",128,126,"Calibrachoa parviflora Cabaret® Double Yellow","řízek",null,1,"Y","A",null,null,null,null,null,null,12.04,1517.66,0,0]
["37924",128,126,"Calibrachoa parviflora Cabaret® Early Blue","řízek",null,1,"Y","A",null,null,null,null,null,null,11.43,1439.58,0,0]
["37924",180,178,"Calibrachoa parviflora Cabaret® Early Blue","řízek",null,1,"Y","A",null,null,null,null,null,null,9.6,1709.1,0,0]
["36860",128,126,"Calibrachoa parviflora Cabaret® Early Bright Red","řízek",null,1,"Y","A",null,null,null,null,null,null,11.43,1439.58,0,0]
["36860",180,178,"Calibrachoa parviflora Cabaret® Early Bright Red","řízek",null,1,"Y","A",null,null,null,null,null,null,9.6,1709.1,0,0]
["37392",128,126,"Calibrachoa parviflora Cabaret® Early Bright Yellow","řízek",null,1,"Y","A",null,null,null,null,null,null,11.43,1439.58,0,0]
["37392",180,178,"Calibrachoa parviflora Cabaret® Early Bright Yellow","řízek",null,1,"Y","A",null,null,null,null,null,null,9.6,1709.1,0,0]
["38141",128,126,"Calibrachoa parviflora Cabaret® Early Bumble Bee Hot Pink","řízek","new",1,"Y","A",null,null,null,null,null,null,11.43,1439.58,0,0]
["38141",180,178,"Calibrachoa parviflora Cabaret® Early Bumble Bee Hot Pink","řízek","new",1,"Y","A",null,null,null,null,null,null,9.6,1709.1,0,0]
["35883",128,126,"Calibrachoa parviflora Cabaret® Early Deep Blue","řízek",null,1,"Y","A",null,null,null,null,null,null,11.43,1439.58,0,0]
["35883",180,178,"Calibrachoa parviflora Cabaret® Early Deep Blue","řízek",null,1,"Y","A",null,null,null,null,null,null,9.6,1709.1,0,0]
["37920",128,126,"Calibrachoa parviflora Cabaret® Early Diva Cherry","řízek","new",1,"Y","A",null,null,null,null,null,null,11.43,1439.58,0,0]
["37920",180,178,"Calibrachoa parviflora Cabaret® Early Diva Cherry","řízek","new",1,"Y","A",null,null,null,null,null,null,9.6,1709.1,0,0]
["35889",128,126,"Calibrachoa parviflora Cabaret® Early Good Night Kiss","řízek",null,1,"Y","A",null,null,null,null,null,null,11.43,1439.58,0,0]
["35889",180,178,"Calibrachoa parviflora Cabaret® Early Good Night Kiss","řízek",null,1,"Y","A",null,null,null,null,null,null,9.6,1709.1,0,0]
["37932",128,126,"Calibrachoa parviflora Cabaret® Early Hot Rose","řízek","new",1,"Y","A",null,null,null,null,null,null,11.43,1439.58,0,0]
["37932",180,178,"Calibrachoa parviflora Cabaret® Early Hot Rose","řízek","new",1,"Y","A",null,null,null,null,null,null,9.6,1709.1,0,0]
["32374",128,126,"Calibrachoa parviflora Cabaret® Early Light Pink","řízek",null,1,"Y","A",null,null,null,null,null,null,11.43,1439.58,0,0]
["32374",180,178,"Calibrachoa parviflora Cabaret® Early Light Pink","řízek",null,1,"Y","A",null,null,null,null,null,null,9.6,1709.1,0,0]
["36873",128,126,"Calibrachoa parviflora Cabaret® Early Light Pink Eye","řízek",null,1,"Y","A",null,null,null,null,null,null,11.43,1439.58,0,0]
["36873",180,178,"Calibrachoa parviflora Cabaret® Early Light Pink Eye","řízek",null,1,"Y","A",null,null,null,null,null,null,9.6,1709.1,0,0]
["35893",128,126,"Calibrachoa parviflora Cabaret® Early Neon Rose","řízek",null,1,"Y","A",null,null,null,null,null,null,11.43,1439.58,0,0]
["35893",180,178,"Calibrachoa parviflora Cabaret® Early Neon Rose","řízek",null,1,"Y","A",null,null,null,null,null,null,9.6,1709.1,0,0]
["36864",128,126,"Calibrachoa parviflora Cabaret® Early Orange","řízek",null,1,"Y","A",null,null,null,null,null,null,11.43,1439.58,0,0]
["36864",180,178,"Calibrachoa parviflora Cabaret® Early Orange","řízek",null,1,"Y","A",null,null,null,null,null,null,9.6,1709.1,0,0]
["37926",128,126,"Calibrachoa parviflora Cabaret® Early Pink Impr.","řízek",null,1,"Y","A",null,null,null,null,null,null,11.43,1439.58,0,0]
["37926",180,178,"Calibrachoa parviflora Cabaret® Early Pink Impr.","řízek",null,1,"Y","A",null,null,null,null,null,null,9.6,1709.1,0,0]
["37935",128,126,"Calibrachoa parviflora Cabaret® Early White compact","řízek",null,1,"Y","A",null,null,null,null,null,null,11.43,1439.58,0,0]
["37935",180,178,"Calibrachoa parviflora Cabaret® Early White compact","řízek",null,1,"Y","A",null,null,null,null,null,null,9.6,1709.1,0,0]
["36440",84,82,"Calibrachoa parviflora Cabaret® MixMasters® Burlesque","řízek",null,3,"Y","A",null,null,null,null,null,null,23.52,1928.82,0,0]
["31199",84,82,"Calibrachoa parviflora Cabaret® MixMasters® Cafe de Paris","řízek",null,3,"Y","A",null,null,null,null,null,null,23.52,1928.82,0,0]
["43097",84,82,"Calibrachoa parviflora Cabaret® MixMasters® Candy House","řízek",null,3,"Y","A",null,null,null,null,null,null,23.52,1928.82,0,0]
["43101",84,82,"Calibrachoa parviflora Cabaret® MixMasters® Copacabana","řízek",null,3,"Y","A",null,null,null,null,null,null,23.52,1928.82,0,0]
["37304",84,82,"Calibrachoa parviflora Cabaret® MixMasters® Firework","řízek",null,3,"Y","A",null,null,null,null,null,null,23.52,1928.82,0,0]
["37753",84,82,"Calibrachoa parviflora Cabaret® MixMasters® Paradise Sunrise","řízek",null,3,"Y","A",null,null,null,null,null,null,23.52,1928.82,0,0]
["34124",84,82,"Calibrachoa parviflora Cabaret® MixMasters® Pink Paradise","řízek",null,3,"Y","A",null,null,null,null,null,null,23.52,1928.82,0,0]
["37309",84,82,"Calibrachoa parviflora Cabaret® MixMasters® Pink Paradise Eyes","řízek",null,3,"Y","A",null,null,null,null,null,null,23.52,1928.82,0,0]
["20172",84,82,"Calibrachoa parviflora Cabaret® MixMasters® Tropicana","řízek",null,3,"Y","A",null,null,null,null,null,null,23.52,1928.82,0,0]
["43139",84,82,"Calibrachoa parviflora Cabaret® MixMasters® Tropicana Early","řízek","new",3,"Y","A",null,null,null,null,null,null,23.52,1928.82,0,0]
["37311",84,82,"Calibrachoa parviflora Cabaret® MixMasters® Vegas Night Light","řízek",null,3,"Y","A",null,null,null,null,null,null,23.52,1928.82,0,0]
["32242",84,82,"Calibrachoa parviflora Cabaret® MixMasters® Voltaire","řízek",null,3,"Y","A",null,null,null,null,null,null,23.52,1928.82,0,0]
["19598",128,126,"Calibrachoa parviflora Cabaret® Pure Yellow","řízek",null,1,"Y","A",null,null,null,null,null,null,11.43,1439.58,0,0]
["19598",180,178,"Calibrachoa parviflora Cabaret® Pure Yellow","řízek",null,1,"Y","A",null,null,null,null,null,null,9.6,1709.1,0,0]
["36869",128,126,"Calibrachoa parviflora Cabaret® Special Apricot","řízek",null,1,"Y","A",null,null,null,null,null,null,11.43,1439.58,0,0]
["36869",180,178,"Calibrachoa parviflora Cabaret® Special Apricot","řízek",null,1,"Y","A",null,null,null,null,null,null,9.6,1709.1,0,0]
["36861",128,126,"Calibrachoa parviflora Cabaret® Special Bumble Bee Blue","řízek",null,1,"Y","A",null,null,null,null,null,null,11.43,1439.58,0,0]
["36861",180,178,"Calibrachoa parviflora Cabaret® Special Bumble Bee Blue","řízek",null,1,"Y","A",null,null,null,null,null,null,9.6,1709.1,0,0]
["37933",128,126,"Calibrachoa parviflora Cabaret® Special Bumble Bee Rose","řízek",null,1,"Y","A",null,null,null,null,null,null,11.43,1439.58,0,0]
["37933",180,178,"Calibrachoa parviflora Cabaret® Special Bumble Bee Rose","řízek",null,1,"Y","A",null,null,null,null,null,null,9.6,1709.1,0,0]
["36870",128,126,"Calibrachoa parviflora Cabaret® Special Diva Orange","řízek",null,1,"Y","A",null,null,null,null,null,null,11.43,1439.58,0,0]
["36870",180,178,"Calibrachoa parviflora Cabaret® Special Diva Orange","řízek",null,1,"Y","A",null,null,null,null,null,null,9.6,1709.1,0,0]
["37401",128,126,"Calibrachoa parviflora Cabaret® Special Frosty Lemon","řízek",null,1,"Y","A",null,null,null,null,null,null,11.43,1439.58,0,0]
["37401",180,178,"Calibrachoa parviflora Cabaret® Special Frosty Lemon","řízek",null,1,"Y","A",null,null,null,null,null,null,9.6,1709.1,0,0]
["37900",128,126,"Calibrachoa parviflora Cabaret® Special Purple Bicolour 2025","řízek","new",1,"Y","A",null,null,null,null,null,null,11.43,1439.58,0,0]
["37390",128,126,"Calibrachoa parviflora Cabaret® Special Red Kiss","řízek",null,1,"Y","A",null,null,null,null,null,null,11.43,1439.58,0,0]
["37390",180,178,"Calibrachoa parviflora Cabaret® Special Red Kiss","řízek",null,1,"Y","A",null,null,null,null,null,null,9.6,1709.1,0,0]
["31435",128,126,"Calibrachoa parviflora Cabaret® White","řízek",null,1,"Y","A",null,null,null,null,null,null,11.43,1439.58,0,0]
["31435",180,178,"Calibrachoa parviflora Cabaret® White","řízek",null,1,"Y","A",null,null,null,null,null,null,9.6,1709.1,0,0]
["36504",180,178,"Calocephalus brownii Electra Compact Silver","řízek",null,2,"Y","A",null,null,null,null,null,null,8.09,1440.17,0,0]
["32094",180,178,"Calocephalus brownii Electra Silver","řízek",null,2,"Y","A",null,null,null,null,null,null,8.09,1440.17,0,0]
["15018",180,178,"Calocephalus brownii Challenge","řízek",null,2,"Y",null,null,null,null,null,null,null,7.1,1264.51,{"$f":"Q333*(J333+K333+L333+M333+N333+O333)","v":0},{"$f":"R333*1.12","v":0}]
["32725",180,178,"Calocephalus brownii Challenge Compact Silver","řízek",null,2,"Y","A",null,null,null,null,null,null,7.49,1332.59,0,0]
["37327",288,284,"Capsicum annuum Joker Original","semenáč",null,1,"N",null,null,null,null,null,null,null,6.46,1834.18,0,0]
["37329",288,284,"Capsicum annuum Joker Red","semenáč",null,1,"N",null,null,null,null,null,null,null,6.46,1834.18,0,0]
["37330",288,284,"Capsicum annuum Salsa Dark Orange","semenáč",null,1,"N",null,null,null,null,null,null,null,5.79,1644.08,0,0]
["37331",288,284,"Capsicum annuum Salsa Purple","semenáč",null,1,"N",null,null,null,null,null,null,null,5.79,1644.08,0,0]
["37333",288,284,"Capsicum annuum Salsa Red","semenáč",null,1,"N",null,null,null,null,null,null,null,5.79,1644.08,0,0]
["42083",288,284,"Capsicum annuum Salsa Yellow","semenáč",null,1,"N",null,null,null,null,null,null,null,5.79,1644.08,0,0]
["37336",288,284,"Capsicum annuum Samba Dark Orange","semenáč",null,1,"N",null,null,null,null,null,null,null,5.91,1678.84,0,0]
["37338",288,284,"Capsicum annuum Samba Red","semenáč",null,1,"N",null,null,null,null,null,null,null,5.91,1678.84,0,0]
["37339",288,284,"Capsicum annuum Samba Yellow","semenáč",null,1,"N",null,null,null,null,null,null,null,5.91,1678.84,0,0]
["37340",84,84,"Capsicum annuum Santos Orange","semenáč",null,3,"N",null,null,null,null,null,null,null,21.05,1767.95,0,0]
["37340",288,284,"Capsicum annuum Santos Orange","semenáč",null,1,"N",null,null,null,null,null,null,null,6.46,1834.18,0,0]
["42214",288,284,"Capsicum annuum Santos Red","semenáč",null,1,"N",null,null,null,null,null,null,null,6.46,1834.18,0,0]
["43196",288,284,"Capsicum annuum Torero Dark Orange","semenáč",null,1,"N",null,null,null,null,null,null,null,6.4,1817.89,0,0]
["43195",288,284,"Capsicum annuum Torero Multicolour Orange","semenáč",null,1,"N",null,null,null,null,null,null,null,6.4,1817.89,0,0]
["37325",288,284,"Capsicum annuum Torero Multicolour Red","semenáč",null,1,"N",null,null,null,null,null,null,null,6.4,1817.89,0,0]
["43193",288,284,"Capsicum annuum Torero Purple","semenáč",null,1,"N",null,null,null,null,null,null,null,6.4,1817.89,0,0]
["43194",288,284,"Capsicum annuum Torero Red","semenáč",null,1,"N",null,null,null,null,null,null,null,6.4,1817.89,0,0]
["43197",288,284,"Capsicum annuum Torero Yellow","semenáč",null,1,"N",null,null,null,null,null,null,null,6.4,1817.89,0,0]
["30016",288,284,"Catharanthus roseus Mediterranean XP Mix","semenáč",null,1,"N",null,null,null,null,null,null,null,4.63,1313.84,0,0]
["18478",288,284,"Catharanthus roseus Titan™ F1 Apricot","semenáč",null,1,"N",null,null,null,null,null,null,null,4.3,1220.42,0,0]
["18479",288,284,"Catharanthus roseus Titan™ F1 Blush","semenáč",null,1,"N",null,null,null,null,null,null,null,4.3,1220.42,0,0]
["18480",288,284,"Catharanthus roseus Titan™ F1 Burgundy","semenáč",null,1,"N",null,null,null,null,null,null,null,4.3,1220.42,0,0]
["18485",288,284,"Catharanthus roseus Titan™ F1 Dark Red","semenáč",null,1,"N",null,null,null,null,null,null,null,4.3,1220.42,0,0]
["18481",288,284,"Catharanthus roseus Titan™ F1 Lavender Blue Halo","semenáč",null,1,"N",null,null,null,null,null,null,null,4.3,1220.42,0,0]
["17612",288,284,"Catharanthus roseus Titan™ F1 Mix","semenáč",null,1,"N",null,null,null,null,null,null,null,4.3,1220.42,0,0]
["18483",288,284,"Catharanthus roseus Titan™ F1 Polka Dot","semenáč",null,1,"N",null,null,null,null,null,null,null,4.3,1220.42,0,0]
["18484",288,284,"Catharanthus roseus Titan™ F1 Punch","semenáč",null,1,"N",null,null,null,null,null,null,null,4.3,1220.42,0,0]
["33932",288,284,"Catharanthus roseus Titan™ F1 Really Red","semenáč",null,1,"N",null,null,null,null,null,null,null,4.3,1220.42,0,0]
["30080",288,284,"Catharanthus roseus Titan™ F1 Rose Halo","semenáč",null,1,"N",null,null,null,null,null,null,null,4.3,1220.42,0,0]
["18487",288,284,"Catharanthus roseus Titan™ F1 White Pure","semenáč",null,1,"N",null,null,null,null,null,null,null,4.3,1220.42,0,0]
["10650",288,284,"Celosia plumosa Kimono Mix","semenáč",null,1,"N",null,null,null,null,null,null,null,3.56,1011.85,0,0]
["43227",180,178,"Celosia plumosa Kimono MixMasters® Gardentrolls","semenáč","new",3,"N",null,null,null,null,null,null,null,8.98,1598.13,0,0]
["10644",288,284,"Celosia plumosa Kimono Orange","semenáč",null,1,"N",null,null,null,null,null,null,null,3.56,1011.85,0,0]
["10645",288,284,"Celosia plumosa Kimono Red","semenáč",null,1,"N",null,null,null,null,null,null,null,3.56,1011.85,0,0]
["18946",288,284,"Celosia plumosa Kimono Salmon Pink","semenáč",null,1,"N",null,null,null,null,null,null,null,3.56,1011.85,0,0]
["10649",288,284,"Celosia plumosa Kimono Yellow","semenáč",null,1,"N",null,null,null,null,null,null,null,3.56,1011.85,0,0]
["10039",180,178,"Centradenia floribunda Cascade","řízek",null,1,"N",null,null,null,null,null,null,null,9.24,1645.1,0,0]
["34072",288,284,"Cineraria maritima Quick Silver Compact","semenáč",null,3,"N",null,null,null,null,null,null,null,2.74,777.21,0,0]
["34072",510,500,"Cineraria maritima Quick Silver Compact","semenáč",null,2,"N",null,null,null,null,null,null,null,2.0699999999999998,1036.0899999999999,0,0]
["10668",288,284,"Cineraria maritima Silver Dust Silver Dust","semenáč",null,3,"N",null,null,null,null,null,null,null,2.4,681.62,0,0]
["10668",510,500,"Cineraria maritima Silver Dust Silver Dust","semenáč",null,2,"N",null,null,null,null,null,null,null,1.74,869.7,0,0]
["20602",84,84,"Cleome spinosa Clio™ Magenta","řízek",null,1,"N","A",null,null,null,null,null,null,16.18,1358.93,0,0]
["35498",84,84,"Coleus blumei Flame Thrower™ Habanero","řízek",null,1,"N","A",null,null,null,null,null,null,13.07,1098.04,0,0]
["35264",84,84,"Coleus blumei Flame Thrower™ Chili Pepper","řízek",null,1,"N","A",null,null,null,null,null,null,13.07,1098.04,0,0]
["36092",84,84,"Coleus blumei Flame Thrower™ Salsa Roja","řízek",null,1,"N","A",null,null,null,null,null,null,13.07,1098.04,0,0]
["35844",84,84,"Coleus blumei Flame Thrower™ Salsa Verde","řízek",null,1,"N","A",null,null,null,null,null,null,13.07,1098.04,0,0]
["35265",84,84,"Coleus blumei Flame Thrower™ Serrano","řízek",null,1,"N","A",null,null,null,null,null,null,13.07,1098.04,0,0]
["41586",84,84,"Coleus blumei Flame Thrower™ Spitfire","řízek",null,1,"N","A",null,null,null,null,null,null,13.07,1098.04,0,0]
["30513",84,84,"Coleus blumei Sunfighter Campfire","řízek",null,1,"N","A",null,null,null,null,null,null,16.46,1382.39,0,0]
["42870",84,84,"Coleus blumei Sunfighter Compact Solar Flare","řízek","new",1,"N","A",null,null,null,null,null,null,16.46,1382.39,0,0]
["37699",84,84,"Coleus blumei Sunfighter Compact Vulcan","řízek",null,1,"N","A",null,null,null,null,null,null,16.46,1382.39,0,0]
["19603",84,84,"Coleus blumei Sunfighter Electric Lime","řízek",null,1,"N","A",null,null,null,null,null,null,16.46,1382.39,0,0]
["18024",84,84,"Coleus blumei Sunfighter Henna","řízek",null,1,"N","A",null,null,null,null,null,null,16.46,1382.39,0,0]
["37698",84,84,"Coleus blumei Sunfighter Limewire","řízek",null,1,"N","A",null,null,null,null,null,null,16.46,1382.39,0,0]
["19604",84,84,"Coleus blumei Sunfighter Redhead","řízek",null,1,"N","A",null,null,null,null,null,null,16.46,1382.39,0,0]
["20437",84,84,"Coleus blumei Sunfighter Trusty Rusty","řízek",null,1,"N","A",null,null,null,null,null,null,16.46,1382.39,0,0]
["38082",84,84,"Coleus canina Peur des chats","řízek",null,1,"N",null,null,null,null,null,null,null,12.49,1049.52,0,0]
["15237",180,178,"Coleus x hybrida Kong® Mix","semenáč",null,1,"N",null,null,null,null,null,null,null,9.44,1680.51,0,0]
["20269",180,178,"Coleus x hybrida Premium Sun Chocolate Covered Cherry","semenáč",null,1,"N",null,null,null,null,null,null,null,9.44,1680.51,0,0]
["10680",288,280,"Coleus x hybrida Wizard® Mix","semenáč",null,1,"N",null,null,null,null,null,null,null,3.4,952.17,0,0]
["43225",180,178,"Coleus x hybrida Wizard® MixMasters® Fred","semenáč","new",3,"N",null,null,null,null,null,null,null,8.8699999999999992,1578.38,0,0]
["43226",180,178,"Coleus x hybrida Wizard® MixMasters® George","semenáč","new",3,"N",null,null,null,null,null,null,null,8.8699999999999992,1578.38,0,0]
["30664",180,178,"Convolvulus sabatius Neon Blue","řízek",null,1,"Y","A",null,null,null,null,null,null,12.1,2154.38,{"$f":"Q397*(J397+K397+L397+M397+N397+O397)","v":0},{"$f":"R397*1.12","v":0}]
["10693",180,178,"Cosmos bipinnatus Symphony Carmine","semenáč",null,2,"N",null,null,null,null,null,null,null,6.94,1235.23,0,0]
["10693",288,284,"Cosmos bipinnatus Symphony Carmine","semenáč",null,1,"N",null,null,null,null,null,null,null,4.18,1187.83,0,0]
["10696",288,284,"Cosmos bipinnatus Symphony Mix","semenáč",null,1,"N",null,null,null,null,null,null,null,4.18,1187.83,0,0]
["10696",510,375,"Cosmos bipinnatus Symphony Mix","semenáč",null,1,"N",null,null,null,null,null,null,null,3.17,1188.6099999999999,0,0]
["10694",180,178,"Cosmos bipinnatus Symphony Pink","semenáč",null,2,"N",null,null,null,null,null,null,null,6.94,1235.23,0,0]
["10694",288,284,"Cosmos bipinnatus Symphony Pink","semenáč",null,1,"N",null,null,null,null,null,null,null,4.18,1187.83,0,0]
["10695",180,178,"Cosmos bipinnatus Symphony White","semenáč",null,2,"N",null,null,null,null,null,null,null,6.94,1235.23,0,0]
["10695",288,284,"Cosmos bipinnatus Symphony White","semenáč",null,1,"N",null,null,null,null,null,null,null,4.18,1187.83,0,0]
["38047",128,126,"Craspedia globosa Golf™ Beauty","řízek",null,1,"Y","A",null,null,null,null,null,null,18.170000000000002,2289.2600000000002,0,0]
["37242",128,126,"Cuphea hyssopifolia Myrtis® Dark Purple","řízek",null,2,"N","A",null,null,null,null,null,null,12.12,1527.29,0,0]
["37248",128,126,"Cuphea hyssopifolia Myrtis® Deep Pink","řízek",null,2,"N","A",null,null,null,null,null,null,12.12,1527.29,0,0]
["41628",128,126,"Cuphea hyssopifolia Myrtis® Lavender","řízek",null,2,"N","A",null,null,null,null,null,null,12.12,1527.29,0,0]
["38020",128,126,"Cuphea hyssopifolia Myrtis® MixMasters® Colibri","řízek",null,2,"N","A",null,null,null,null,null,null,12.89,1623.68,0,0]
["37245",128,126,"Cuphea hyssopifolia Myrtis® White","řízek",null,2,"N","A",null,null,null,null,null,null,12.12,1527.29,0,0]
["38198",288,284,"Cuphea llavea Sweet Talk Deep Pink","semenáč",null,1,"N",null,null,null,null,null,null,null,8.4499999999999993,2400.14,0,0]
["38199",288,284,"Cuphea llavea Sweet Talk Lavender Splash","semenáč",null,1,"N",null,null,null,null,null,null,null,8.4499999999999993,2400.14,0,0]
["38200",288,284,"Cuphea llavea Sweet Talk Red","semenáč",null,1,"N",null,null,null,null,null,null,null,8.4499999999999993,2400.14,0,0]
["14131",128,126,"Dahlia coccinea Dahlietta® Anna","řízek",null,1,"N","A",null,null,null,null,null,null,11.18,1408.25,0,0]
["18299",128,126,"Dahlia coccinea Dahlietta® Blanca","řízek",null,1,"N","A",null,null,null,null,null,null,11.18,1408.25,0,0]
["14133",128,126,"Dahlia coccinea Dahlietta® Emily","řízek",null,1,"N","A",null,null,null,null,null,null,11.18,1408.25,0,0]
["18300",128,126,"Dahlia coccinea Dahlietta® Julia","řízek",null,1,"N","A",null,null,null,null,null,null,11.18,1408.25,0,0]
["14135",128,126,"Dahlia coccinea Dahlietta® Linda","řízek",null,1,"N","A",null,null,null,null,null,null,11.18,1408.25,0,0]
["14136",128,126,"Dahlia coccinea Dahlietta® Margaret","řízek",null,1,"N","A",null,null,null,null,null,null,11.18,1408.25,0,0]
["17476",128,126,"Dahlia coccinea Dahlietta® Patty","řízek",null,1,"N","A",null,null,null,null,null,null,11.18,1408.25,0,0]
["17477",128,126,"Dahlia coccinea Dahlietta® Rachel","řízek",null,1,"N","A",null,null,null,null,null,null,11.18,1408.25,0,0]
["35376",128,126,"Dahlia coccinea Dahlietta® Shirley","řízek",null,1,"N","A",null,null,null,null,null,null,11.18,1408.25,0,0]
["34097",128,126,"Dahlia coccinea Dahlietta® Surprise Becky","řízek",null,1,"N","A",null,null,null,null,null,null,11.18,1408.25,0,0]
["36103",128,126,"Dahlia coccinea Dahlietta® Surprise Candy","řízek",null,1,"N","A",null,null,null,null,null,null,11.18,1408.25,0,0]
["34099",128,126,"Dahlia coccinea Dahlietta® Surprise Cindy","řízek",null,1,"N","A",null,null,null,null,null,null,11.18,1408.25,0,0]
["34096",128,126,"Dahlia coccinea Dahlietta® Surprise Demi","řízek",null,1,"N","A",null,null,null,null,null,null,11.18,1408.25,0,0]
["36102",128,126,"Dahlia coccinea Dahlietta® Surprise Elsa","řízek",null,1,"N","A",null,null,null,null,null,null,11.18,1408.25,0,0]
["17481",128,126,"Dahlia coccinea Dahlietta® Surprise Kelly","řízek",null,1,"N","A",null,null,null,null,null,null,11.18,1408.25,0,0]
["18301",128,126,"Dahlia coccinea Dahlietta® Surprise Lily","řízek",null,1,"N","A",null,null,null,null,null,null,11.18,1408.25,0,0]
["17482",128,126,"Dahlia coccinea Dahlietta® Surprise Louise","řízek",null,1,"N","A",null,null,null,null,null,null,11.18,1408.25,0,0]
["17483",128,126,"Dahlia coccinea Dahlietta® Surprise Paula","řízek",null,1,"N","A",null,null,null,null,null,null,11.18,1408.25,0,0]
["17478",128,126,"Dahlia coccinea Dahlietta® Tessy","řízek",null,1,"N","A",null,null,null,null,null,null,11.18,1408.25,0,0]
["34100",128,126,"Dahlia coccinea Dahlietta® Whitney","řízek",null,1,"N","A",null,null,null,null,null,null,11.18,1408.25,0,0]
["37971",84,84,"Dahlia coccinea Dalina® Maxi Apricot","řízek",null,1,"N","A",null,null,null,null,null,null,13.55,1138.52,0,0]
["30627",84,84,"Dahlia coccinea Dalina® Maxi Cadena","řízek",null,1,"N","A",null,null,null,null,null,null,13.55,1138.52,0,0]
["35971",84,84,"Dahlia coccinea Dalina® Maxi Cancun","řízek",null,1,"N","A",null,null,null,null,null,null,13.55,1138.52,0,0]
["30629",84,84,"Dahlia coccinea Dalina® Maxi Castillo","řízek",null,1,"N","A",null,null,null,null,null,null,13.55,1138.52,0,0]
["36106",84,84,"Dahlia coccinea Dalina® Maxi Dark Red","řízek",null,1,"N","A",null,null,null,null,null,null,13.55,1138.52,0,0]
["30622",84,84,"Dahlia coccinea Dalina® Maxi Emilio","řízek",null,1,"N","A",null,null,null,null,null,null,13.55,1138.52,0,0]
["35379",84,84,"Dahlia coccinea Dalina® Maxi Fire Ball","řízek",null,1,"N","A",null,null,null,null,null,null,13.55,1138.52,0,0]
["41588",84,84,"Dahlia coccinea Dalina® Maxi Cherry Blast","řízek","new",1,"N","A",null,null,null,null,null,null,13.55,1138.52,0,0]
["42866",84,84,"Dahlia coccinea Dalina® Maxi Cherry White Tips 19286","řízek","new",1,"N","A",null,null,null,null,null,null,13.55,1138.52,0,0]
["30619",84,84,"Dahlia coccinea Dalina® Maxi Lopez","řízek",null,1,"N","A",null,null,null,null,null,null,13.55,1138.52,0,0]
["35974",84,84,"Dahlia coccinea Dalina® Maxi Mendoza","řízek",null,1,"N","A",null,null,null,null,null,null,13.55,1138.52,0,0]
["35975",84,84,"Dahlia coccinea Dalina® Maxi Merida","řízek",null,1,"N","A",null,null,null,null,null,null,13.55,1138.52,0,0]
["42629",84,84,"Dahlia coccinea Dalina® Maxi Neon Lilac 16125D","řízek","new",1,"N","A",null,null,null,null,null,null,13.55,1138.52,0,0]
["34101",84,84,"Dahlia coccinea Dalina® Maxi Peach","řízek",null,1,"N","A",null,null,null,null,null,null,13.55,1138.52,0,0]
["42628",84,84,"Dahlia coccinea Dalina® Maxi Pink 18363","řízek","new",1,"N","A",null,null,null,null,null,null,13.55,1138.52,0,0]
["41589",84,84,"Dahlia coccinea Dalina® Maxi Purple","řízek",null,1,"N","A",null,null,null,null,null,null,13.55,1138.52,0,0]
["30626",84,84,"Dahlia coccinea Dalina® Maxi Salinas","řízek",null,1,"N","A",null,null,null,null,null,null,13.55,1138.52,0,0]
["30620",84,84,"Dahlia coccinea Dalina® Maxi Sonora","řízek",null,1,"N","A",null,null,null,null,null,null,13.55,1138.52,0,0]
["42630",84,84,"Dahlia coccinea Dalina® Maxi Starburst Pink","řízek","new",1,"N","A",null,null,null,null,null,null,13.55,1138.52,0,0]
["30624",84,84,"Dahlia coccinea Dalina® Maxi Tampico","řízek",null,1,"N","A",null,null,null,null,null,null,13.55,1138.52,0,0]
["30623",84,84,"Dahlia coccinea Dalina® Maxi Topia","řízek",null,1,"N","A",null,null,null,null,null,null,13.55,1138.52,0,0]
["35290",84,84,"Dahlia coccinea Dalina® Maxi White","řízek",null,1,"N","A",null,null,null,null,null,null,13.55,1138.52,0,0]
["42631",84,84,"Dahlia coccinea Dalina® Maxi Yellow 18348","řízek","new",1,"N","A",null,null,null,null,null,null,13.55,1138.52,0,0]
["42865",84,84,"Dahlia coccinea Gardenetta® DL Golden Yellow 17526","řízek","new",1,"N","A",null,null,null,null,null,null,14.23,1195.71,0,0]
["41683",84,84,"Dahlia coccinea Gardenetta® DL Lavender ","řízek","new",1,"N","A",null,null,null,null,null,null,14.23,1195.71,0,0]
["41684",84,84,"Dahlia coccinea Gardenetta® DL Orange ","řízek","new",1,"N","A",null,null,null,null,null,null,14.23,1195.71,0,0]
["30214",84,84,"Dahlia coccinea Happy Days® Bicolour Yellow-Red","řízek",null,1,"N","A",null,null,null,null,null,null,15.22,1278.29,{"$f":"Q461*(J461+K461+L461+M461+N461+O461)","v":0},{"$f":"R461*1.12","v":0}]
["18132",84,84,"Dahlia coccinea Happy Days® Cream","řízek",null,1,"N","A",null,null,null,null,null,null,15.22,1278.29,0,0]
["31067",84,84,"Dahlia coccinea Happy Days® Neon","řízek",null,1,"N","A",null,null,null,null,null,null,15.22,1278.29,0,0]
["18133",84,84,"Dahlia coccinea Happy Days® Pink","řízek",null,1,"N","A",null,null,null,null,null,null,15.22,1278.29,0,0]
["38363",84,84,"Dahlia coccinea Happy Days® Purple Impr.","řízek",null,1,"N","A",null,null,null,null,null,null,15.22,1278.29,0,0]
["30216",84,84,"Dahlia coccinea Happy Days® Red","řízek",null,1,"N","A",null,null,null,null,null,null,15.22,1278.29,0,0]
["38364",84,84,"Dahlia coccinea Happy Days® Yellow Impr.","řízek",null,1,"N","A",null,null,null,null,null,null,15.22,1278.29,0,0]
["42918",84,84,"Dahlia coccinea Mystic Enchantment Red","řízek","new",1,"N","A",null,null,null,null,null,null,15.52,1303.67,0,0]
["42917",84,84,"Dahlia coccinea Mystic Fantasy Pink","řízek","new",1,"N","A",null,null,null,null,null,null,15.52,1303.67,0,0]
["42916",84,84,"Dahlia coccinea Mystic Haze Orange","řízek","new",1,"N","A",null,null,null,null,null,null,15.52,1303.67,0,0]
["42915",84,84,"Dahlia coccinea Mystic Illusion Yellow","řízek","new",1,"N","A",null,null,null,null,null,null,15.52,1303.67,0,0]
["42914",84,84,"Dahlia coccinea Mystic Memories Apricote","řízek","new",1,"N","A",null,null,null,null,null,null,15.52,1303.67,0,0]
["42913",84,84,"Dahlia coccinea Mystic Sparkler Neon Rose","řízek","new",1,"N","A",null,null,null,null,null,null,15.52,1303.67,0,0]
["42912",84,84,"Dahlia coccinea Mystic Spirit Peach","řízek","new",1,"N","A",null,null,null,null,null,null,15.52,1303.67,0,0]
["37077",84,84,"Dahlia coccinea Xantico DL Purple ","řízek","new",1,"N","A",null,null,null,null,null,null,14.04,1179.6500000000001,0,0]
["37076",84,84,"Dahlia coccinea Xantico DL Yellow ","řízek","new",1,"N","A",null,null,null,null,null,null,14.04,1179.6500000000001,0,0]
["10716",288,284,"Dahlia x hybrida Figaro Mix","semenáč",null,1,"N",null,null,null,null,null,null,null,4.7,1334.48,0,0]
["34487",288,284,"Dianthus chinensis Coronet™ Cherry Red","semenáč",null,1,"N",null,null,null,null,null,null,null,3.57,1014.02,0,0]
["19406",288,284,"Dianthus chinensis Coronet™ Lavender Picotee","semenáč",null,1,"N",null,null,null,null,null,null,null,3.57,1014.02,0,0]
["10753",288,284,"Dianthus chinensis Coronet™ Mix","semenáč",null,1,"N",null,null,null,null,null,null,null,3.57,1014.02,0,0]
["10753",510,440,"Dianthus chinensis Coronet™ Mix","semenáč",null,1,"N",null,null,null,null,null,null,null,2.91,1281.27,0,0]
["38183",288,284,"Dianthus chinensis Coronet™ Raspberry","semenáč",null,1,"N",null,null,null,null,null,null,null,3.57,1014.02,0,0]
["35401",288,284,"Dianthus chinensis Coronet™ Rose","semenáč",null,1,"N",null,null,null,null,null,null,null,3.57,1014.02,0,0]
["20816",288,284,"Dianthus chinensis Coronet™ Scarlet","semenáč",null,1,"N",null,null,null,null,null,null,null,3.57,1014.02,0,0]
["32904",288,284,"Dianthus chinensis Coronet™ Strawberry","semenáč",null,1,"N",null,null,null,null,null,null,null,3.57,1014.02,0,0]
["34488",288,284,"Dianthus chinensis Coronet™ White","semenáč",null,1,"N",null,null,null,null,null,null,null,3.57,1014.02,0,0]
["17381",288,284,"Dianthus chinensis x barbatus Festival F1 Mix","semenáč",null,1,"N",null,null,null,null,null,null,null,4.03,1143.29,0,0]
["31781",180,175,"Diascia barberae Juliet™ Orange","řízek",null,1,"Y","A",null,null,null,null,null,null,10.64,1862.38,0,0]
["41611",180,175,"Diascia barberae Juliet™ Pink","řízek",null,1,"Y","A",null,null,null,null,null,null,10.64,1862.38,0,0]
["41610",180,175,"Diascia barberae Juliet™ Red","řízek",null,1,"Y","A",null,null,null,null,null,null,10.64,1862.38,0,0]
["41612",180,175,"Diascia barberae Juliet™ Salmon","řízek",null,1,"Y","A",null,null,null,null,null,null,10.64,1862.38,0,0]
["41613",180,175,"Diascia barberae Juliet™ White","řízek",null,1,"Y","A",null,null,null,null,null,null,10.64,1862.38,0,0]
["36545",180,175,"Diascia barberae Trinity™ Sunset","řízek",null,1,"Y","A",null,null,null,null,null,null,11.54,2020.36,0,0]
["14398",180,178,"Dichondra argentea Silver Falls","semenáč",null,1,"N",null,null,null,null,null,null,null,10.95,1949.44,0,0]
["14398",288,284,"Dichondra argentea Silver Falls","semenáč",null,1,"N",null,null,null,null,null,null,null,9.85,2796.64,0,0]
["43451",180,178,"Dichondra argentea Silver Surfer","semenáč",null,1,"N",null,null,null,null,null,null,null,10.95,1949.44,0,0]
["43451",288,284,"Dichondra argentea Silver Surfer","semenáč",null,1,"N",null,null,null,null,null,null,null,9.85,2796.64,0,0]
["17131",180,178,"Dichondra repens Emerald Falls","semenáč","new",1,"N",null,null,null,null,null,null,null,10.95,1949.44,0,0]
["17131",288,280,"Dichondra repens Emerald Falls","semenáč","new",1,"N",null,null,null,null,null,null,null,9.85,2758.94,0,0]
["10759",288,284,"Erigeron karvinskianus Profusion","semenáč",null,2,"N",null,null,null,null,null,null,null,3.77,1070.51,0,0]
["35501",128,126,"Euphorbia hypericifolia Euphoria® White","řízek",null,1,"Y","A",null,null,null,null,null,null,11.66,1468.98,0,0]
["36853",128,126,"Euphorbia hypericifolia Silverfog White","řízek",null,1,"Y","A",null,null,null,null,null,null,11.66,1468.98,0,0]
["12568",128,126,"Euryops pectinatus Sonnenschein Yellow","řízek",null,1,"N",null,null,null,null,null,null,null,8.9700000000000006,1130.17,0,0]
["19471",180,178,"Felicia amelloides FeliciTARA® Blue","řízek",null,1,"N","A",null,null,null,null,null,null,9.4,1672.34,0,0]
["41642",180,178,"Felicia amelloides Felicity Leading Lady","řízek",null,1,"N","A",null,null,null,null,null,null,9.5,1691.4,0,0]
["35448",128,126,"Fuchsia magellanica Diva® Coral & White","řízek",null,1,"N","A",null,null,null,null,null,null,8.4499999999999993,1065.0999999999999,0,0]
["31708",128,126,"Fuchsia magellanica Diva® Cherry & White","řízek",null,1,"N","A",null,null,null,null,null,null,8.4499999999999993,1065.0999999999999,0,0]
["31706",128,126,"Fuchsia magellanica Diva® Light Pink & Purple","řízek",null,1,"N","A",null,null,null,null,null,null,8.4499999999999993,1065.0999999999999,0,0]
["14963",128,126,"Fuchsia magellanica Diva® Red & White","řízek",null,1,"N","A",null,null,null,null,null,null,8.4499999999999993,1065.0999999999999,0,0]
["35413",128,126,"Fuchsia magellanica Diva® Rose & Violet","řízek",null,1,"N","A",null,null,null,null,null,null,8.4499999999999993,1065.0999999999999,0,0]
["12870",128,126,"Fuchsia magellanica Diva® White & Violet","řízek",null,1,"N","A",null,null,null,null,null,null,8.4499999999999993,1065.0999999999999,0,0]
["31701",128,126,"Fuchsia magellanica Windchimes® Neon Pink & Violet","řízek",null,1,"N","A",null,null,null,null,null,null,8.4499999999999993,1065.0999999999999,0,0]
["33056",128,126,"Fuchsia magellanica Windchimes® Pink & Purple","řízek",null,1,"N","A",null,null,null,null,null,null,8.4499999999999993,1065.0999999999999,0,0]
["14601",128,126,"Fuchsia magellanica Windchimes® Rose & Purple","řízek",null,1,"N","A",null,null,null,null,null,null,8.4499999999999993,1065.0999999999999,0,0]
["19409",288,284,"Gazania rigens Big Kiss F1 Mix","semenáč",null,1,"N",null,null,null,null,null,null,null,5.04,1430.08,0,0]
["38264",288,284,"Gazania rigens Big Kiss F1 Orange Flame","semenáč",null,1,"N",null,null,null,null,null,null,null,5.04,1430.08,0,0]
["17182",288,284,"Gazania rigens Big Kiss F1 White Flame","semenáč",null,1,"N",null,null,null,null,null,null,null,5.04,1430.08,0,0]
["17181",288,284,"Gazania rigens Big Kiss F1 Yellow Flame","semenáč",null,1,"N",null,null,null,null,null,null,null,5.04,1430.08,0,0]
["34445",288,284,"Gazania rigens Enorma Mix","semenáč",null,1,"N",null,null,null,null,null,null,null,3.94,1119.4000000000001,0,0]
["19081",288,284,"Gazania rigens New Day® Bronze Shades","semenáč",null,1,"N",null,null,null,null,null,null,null,3.86,1095.5,0,0]
["19082",288,284,"Gazania rigens New Day® Clear Orange","semenáč",null,1,"N",null,null,null,null,null,null,null,3.86,1095.5,0,0]
["19086",288,284,"Gazania rigens New Day® Mix","semenáč",null,1,"N",null,null,null,null,null,null,null,3.86,1095.5,0,0]
["19086",510,450,"Gazania rigens New Day® Mix","semenáč",null,1,"N",null,null,null,null,null,null,null,3.2,1438.48,0,0]
["19083",288,284,"Gazania rigens New Day® Pink Shades","semenáč",null,1,"N",null,null,null,null,null,null,null,3.86,1095.5,0,0]
["30121",288,284,"Gazania rigens New Day® Red Shades","semenáč",null,1,"N",null,null,null,null,null,null,null,3.86,1095.5,{"$f":"Q525*(J525+K525+L525+M525+N525+O525)","v":0},{"$f":"R525*1.12","v":0}]
["32542",288,284,"Gazania rigens New Day® Red Stripe","semenáč",null,1,"N",null,null,null,null,null,null,null,3.86,1095.5,0,0]
["31514",288,284,"Gazania rigens New Day® Rose Stripe","semenáč",null,1,"N",null,null,null,null,null,null,null,3.86,1095.5,0,0]
["32543",288,284,"Gazania rigens New Day® Tiger Stripe Mix","semenáč",null,1,"N",null,null,null,null,null,null,null,3.86,1095.5,0,0]
["19084",288,284,"Gazania rigens New Day® White","semenáč",null,1,"N",null,null,null,null,null,null,null,3.86,1095.5,0,0]
["36653",288,284,"Gazania rigens New Day® Yellow","semenáč",null,1,"N",null,null,null,null,null,null,null,3.86,1095.5,0,0]
["38014",84,84,"Gazania rigens Sun Stopper Lemon","řízek",null,1,"N","A",null,null,null,null,null,null,15.71,1320.06,0,0]
["38015",84,84,"Gazania rigens Sun Stopper Orange","řízek",null,1,"N","A",null,null,null,null,null,null,15.71,1320.06,0,0]
["43851",288,284,"Gazania rigens Zany Sunny Side Up","semenáč","new",1,"N",null,null,null,null,null,null,null,3.86,1095.5,0,0]
["12614",180,178,"Glechoma variegata","řízek",null,1,"N",null,null,null,null,null,null,null,7.31,1301.96,0,0]
["37207",288,284,"Gomphrena globosa Buddy Purple","semenáč","new",1,"N",null,null,null,null,null,null,null,6.58,1867.86,0,0]
["44698",288,284,"Gomphrena globosa Buddy Rose","semenáč","new",1,"N",null,null,null,null,null,null,null,6.58,1867.86,0,0]
["37208",288,284,"Gomphrena globosa Buddy White","semenáč","new",1,"N",null,null,null,null,null,null,null,6.58,1867.86,0,0]
["30007",180,178,"Gypsophila muralis Doublicious MixMasters® Mix","semenáč",null,4,"Y",null,null,null,null,null,null,null,8.24,1467.4,0,0]
["18153",180,178,"Gypsophila muralis Fleur White","semenáč",null,4,"Y",null,null,null,null,null,null,null,8.24,1467.4,0,0]
["18153",288,284,"Gypsophila muralis Fleur White","semenáč",null,2,"Y",null,null,null,null,null,null,null,4.63,1314.93,0,0]
["14759",180,178,"Gypsophila muralis Gypsy Deep Rose","semenáč",null,4,"Y",null,null,null,null,null,null,null,8.24,1467.4,0,0]
["14759",288,284,"Gypsophila muralis Gypsy Deep Rose","semenáč",null,2,"Y",null,null,null,null,null,null,null,4.63,1314.93,0,0]
["35744",128,126,"Hebe andersonii Delphine","řízek",null,1,"N",null,null,null,null,null,null,null,10.87,1370.18,0,0]
["20782",128,126,"Hebe andersonii Grethe","řízek",null,1,"N",null,null,null,null,null,null,null,10.87,1370.18,0,0]
["19777",128,126,"Hebe andersonii Hanne","řízek",null,1,"N",null,null,null,null,null,null,null,10.87,1370.18,0,0]
["35828",128,126,"Hebe andersonii Katrine","řízek",null,1,"N",null,null,null,null,null,null,null,10.87,1370.18,0,0]
["32142",128,126,"Hebe andersonii Nana","řízek",null,1,"N",null,null,null,null,null,null,null,10.87,1370.18,0,0]
["35829",128,126,"Hebe andersonii Tricolour","řízek",null,1,"N",null,null,null,null,null,null,null,10.87,1370.18,0,0]
["35830",128,126,"Hebe andersonii Variegata","řízek",null,1,"N",null,null,null,null,null,null,null,10.87,1370.18,0,0]
["35549",180,178,"Helianthus annuus Sunray Yellow","semenáč",null,1,"N",null,null,null,null,null,null,null,7.15,1272.68,0,0]
["35549",288,220,"Helianthus annuus Sunray Yellow","semenáč",null,1,"N",null,null,null,null,null,null,null,5.39,1186.18,0,0]
["42458",180,178,"Helianthus annuus Sunsation® F1 Compact Yellow","semenáč",null,1,"N",null,null,null,null,null,null,null,7.15,1272.68,0,0]
["42458",288,220,"Helianthus annuus Sunsation® F1 Compact Yellow","semenáč",null,1,"N",null,null,null,null,null,null,null,5.74,1262.76,0,0]
["16032",180,178,"Helianthus annuus Sunsation® F1 Yellow","semenáč",null,1,"N",null,null,null,null,null,null,null,7.15,1272.68,0,0]
["12576",128,126,"Helichrysum petiolare Gold","řízek",null,1,"Y",null,null,null,null,null,null,null,9.8000000000000007,1235.23,0,0]
["12572",180,178,"Helichrysum petiolare Microphylla","řízek",null,1,"Y",null,null,null,null,null,null,null,7.87,1400.68,0,0]
["12573",128,126,"Helichrysum petiolare Silver","řízek",null,1,"Y",null,null,null,null,null,null,null,8.15,1026.55,0,0]
["36986",128,126,"Heliotropium arborescens Honey Blue","řízek",null,1,"N","A",null,null,null,null,null,null,11.72,1476.21,0,0]
["12578",128,126,"Heliotropium arborescens Marine","řízek",null,1,"N",null,null,null,null,null,null,null,9.8000000000000007,1235.23,0,0]
["38403",128,126,"Heliotropium arborescens Vanilla Sky Dark Blue","řízek","new",1,"N","A",null,null,null,null,null,null,11.72,1476.21,0,0]
["37701",128,126,"Impatiens New Guinea Clockwork™ DL Appleblossom","řízek",null,1,"N","A",null,null,null,null,null,null,9.2100000000000009,1160.05,0,0]
["17697",128,126,"Impatiens New Guinea Clockwork™ DL Bicolour Lilac","řízek",null,1,"N","A",null,null,null,null,null,null,9.2100000000000009,1160.05,0,0]
["19584",128,126,"Impatiens New Guinea Clockwork™ DL Bicolour Orange","řízek",null,1,"N","A",null,null,null,null,null,null,9.2100000000000009,1160.05,0,0]
["16391",128,126,"Impatiens New Guinea Clockwork™ DL Orange","řízek",null,1,"N","A",null,null,null,null,null,null,9.2100000000000009,1160.05,0,0]
["31726",128,126,"Impatiens New Guinea Clockwork™ DL Pink","řízek",null,1,"N","A",null,null,null,null,null,null,9.2100000000000009,1160.05,0,0]
["35166",128,126,"Impatiens New Guinea Clockwork™ DL Pink Star","řízek",null,1,"N","A",null,null,null,null,null,null,9.2100000000000009,1160.05,0,0]
["16386",128,126,"Impatiens New Guinea Clockwork™ GL Dark Red","řízek",null,1,"N","A",null,null,null,null,null,null,9.2100000000000009,1160.05,0,0]
["36083",128,126,"Impatiens New Guinea Clockwork™ GL Lavender","řízek",null,1,"N","A",null,null,null,null,null,null,9.2100000000000009,1160.05,0,0]
["31720",128,126,"Impatiens New Guinea Clockwork™ GL Magenta","řízek",null,1,"N","A",null,null,null,null,null,null,9.2100000000000009,1160.05,0,0]
["35165",128,126,"Impatiens New Guinea Clockwork™ GL Orange","řízek",null,1,"N","A",null,null,null,null,null,null,9.2100000000000009,1160.05,0,0]
["32647",128,126,"Impatiens New Guinea Clockwork™ GL Purple","řízek",null,1,"N","A",null,null,null,null,null,null,9.2100000000000009,1160.05,0,0]
["31722",128,126,"Impatiens New Guinea Clockwork™ GL Red","řízek",null,1,"N","A",null,null,null,null,null,null,9.2100000000000009,1160.05,0,0]
["36094",128,126,"Impatiens New Guinea Clockwork™ GL Rose","řízek",null,1,"N","A",null,null,null,null,null,null,9.2100000000000009,1160.05,0,0]
["19586",128,126,"Impatiens New Guinea Clockwork™ GL Salmon","řízek",null,1,"N","A",null,null,null,null,null,null,9.2100000000000009,1160.05,0,0]
["35704",128,126,"Impatiens New Guinea Clockwork™ GL White","řízek",null,1,"N","A",null,null,null,null,null,null,9.2100000000000009,1160.05,0,0]
["19868",128,126,"Impatiens New Guinea SunPatiens® Compact Blush Pink","řízek",null,1,"N","A",null,null,null,null,null,null,14.17,1785.14,0,0]
["32772",128,126,"Impatiens New Guinea SunPatiens® Compact Coral Pink","řízek",null,1,"N","A",null,null,null,null,null,null,14.17,1785.14,0,0]
["19870",128,126,"Impatiens New Guinea SunPatiens® Compact Deep Rose","řízek",null,1,"N","A",null,null,null,null,null,null,14.17,1785.14,0,0]
["20608",128,126,"Impatiens New Guinea SunPatiens® Compact Electric Orange","řízek",null,1,"N","A",null,null,null,null,null,null,14.17,1785.14,0,0]
["32013",128,126,"Impatiens New Guinea SunPatiens® Compact Hot Lilac","řízek",null,1,"N","A",null,null,null,null,null,null,14.17,1785.14,0,0]
["38133",128,126,"Impatiens New Guinea SunPatiens® Compact Hot Pink","řízek",null,1,"N","A",null,null,null,null,null,null,14.17,1785.14,0,0]
["38134",128,126,"Impatiens New Guinea SunPatiens® Compact Lilac","řízek",null,1,"N","A",null,null,null,null,null,null,14.17,1785.14,0,0]
["34681",128,126,"Impatiens New Guinea SunPatiens® Compact Magenta","řízek",null,1,"N","A",null,null,null,null,null,null,14.17,1785.14,0,0]
["19887",128,126,"Impatiens New Guinea SunPatiens® Compact Orange","řízek",null,1,"N","A",null,null,null,null,null,null,14.17,1785.14,0,0]
["35384",128,126,"Impatiens New Guinea SunPatiens® Compact Orchid Blush","řízek",null,1,"N","A",null,null,null,null,null,null,14.17,1785.14,0,0]
["34682",128,126,"Impatiens New Guinea SunPatiens® Compact Purple","řízek",null,1,"N","A",null,null,null,null,null,null,14.17,1785.14,0,0]
["42836",128,126,"Impatiens New Guinea SunPatiens® Compact Purple Candy","řízek",null,1,"N","A",null,null,null,null,null,null,14.17,1785.14,0,0]
["20168",128,126,"Impatiens New Guinea SunPatiens® Compact Red","řízek",null,1,"N","A",null,null,null,null,null,null,14.17,1785.14,0,0]
["42835",128,126,"Impatiens New Guinea SunPatiens® Compact Red Candy","řízek",null,1,"N","A",null,null,null,null,null,null,14.17,1785.14,{"$f":"Q589*(J589+K589+L589+M589+N589+O589)","v":0},{"$f":"R589*1.12","v":0}]
["36964",128,126,"Impatiens New Guinea SunPatiens® Compact Rose Glow","řízek",null,1,"N","A",null,null,null,null,null,null,14.17,1785.14,0,0]
["20610",128,126,"Impatiens New Guinea SunPatiens® Compact White","řízek",null,1,"N","A",null,null,null,null,null,null,14.17,1785.14,0,0]
["32001",84,84,"Impatiens New Guinea SunPatiens® Vigorous Clear White","řízek",null,1,"N","A",null,null,null,null,null,null,15.6,1310.74,0,0]
["35777",84,84,"Impatiens New Guinea SunPatiens® Vigorous Lavender Splash","řízek",null,1,"N","A",null,null,null,null,null,null,15.6,1310.74,0,0]
["35386",84,84,"Impatiens New Guinea SunPatiens® Vigorous Orange","řízek",null,1,"N","A",null,null,null,null,null,null,15.6,1310.74,0,0]
["42838",84,84,"Impatiens New Guinea SunPatiens® Vigorous Peach Candy","řízek",null,1,"N","A",null,null,null,null,null,null,15.6,1310.74,0,0]
["31999",84,84,"Impatiens New Guinea SunPatiens® Vigorous Pearl Pink","řízek",null,1,"N","A",null,null,null,null,null,null,15.6,1310.74,0,0]
["42837",84,84,"Impatiens New Guinea SunPatiens® Vigorous Pretty Pink","řízek",null,1,"N","A",null,null,null,null,null,null,15.6,1310.74,0,0]
["35385",84,84,"Impatiens New Guinea SunPatiens® Vigorous Red","řízek",null,1,"N","A",null,null,null,null,null,null,15.6,1310.74,0,0]
["35388",84,84,"Impatiens New Guinea SunPatiens® Vigorous Rose Pink","řízek",null,1,"N","A",null,null,null,null,null,null,15.6,1310.74,0,0]
["35780",84,84,"Impatiens New Guinea SunPatiens® Vigorous Scarlet","řízek",null,1,"N","A",null,null,null,null,null,null,15.6,1310.74,0,0]
["38135",84,84,"Impatiens New Guinea SunPatiens® Vigorous Sweetheart","řízek",null,1,"N","A",null,null,null,null,null,null,15.6,1310.74,0,0]
["36699",288,284,"Impatiens walleriana Beacon® Bright Red","semenáč",null,1,"N",null,null,null,null,null,null,null,2.96,840.22,0,0]
["36699",510,470,"Impatiens walleriana Beacon® Bright Red","semenáč",null,1,"N",null,null,null,null,null,null,null,2.52,1182.47,0,0]
["36697",288,284,"Impatiens walleriana Beacon® Coral","semenáč","new",1,"N",null,null,null,null,null,null,null,2.96,840.22,0,0]
["36697",510,470,"Impatiens walleriana Beacon® Coral","semenáč","new",1,"N",null,null,null,null,null,null,null,2.52,1182.47,0,0]
["44207",288,284,"Impatiens walleriana Beacon® Chicago Mix","semenáč",null,1,"N",null,null,null,null,null,null,null,2.96,840.22,0,0]
["44207",510,470,"Impatiens walleriana Beacon® Chicago Mix","semenáč",null,1,"N",null,null,null,null,null,null,null,2.52,1182.47,0,0]
["43166",288,284,"Impatiens walleriana Beacon® Lipstick","semenáč",null,1,"N",null,null,null,null,null,null,null,2.96,840.22,0,0]
["43166",510,470,"Impatiens walleriana Beacon® Lipstick","semenáč",null,1,"N",null,null,null,null,null,null,null,2.52,1182.47,0,0]
["36698",288,284,"Impatiens walleriana Beacon® Orange","semenáč",null,1,"N",null,null,null,null,null,null,null,2.96,840.22,0,0]
["36698",510,470,"Impatiens walleriana Beacon® Orange","semenáč",null,1,"N",null,null,null,null,null,null,null,2.52,1182.47,0,0]
["44208",288,284,"Impatiens walleriana Beacon® Otway Mix","semenáč",null,1,"N",null,null,null,null,null,null,null,2.96,840.22,0,0]
["44208",510,470,"Impatiens walleriana Beacon® Otway Mix","semenáč",null,1,"N",null,null,null,null,null,null,null,2.52,1182.47,0,0]
["37067",288,284,"Impatiens walleriana Beacon® Rose","semenáč",null,1,"N",null,null,null,null,null,null,null,2.96,840.22,0,0]
["37067",510,470,"Impatiens walleriana Beacon® Rose","semenáč",null,1,"N",null,null,null,null,null,null,null,2.52,1182.47,0,0]
["36700",288,284,"Impatiens walleriana Beacon® Salmon","semenáč",null,1,"N",null,null,null,null,null,null,null,2.96,840.22,0,0]
["36700",510,470,"Impatiens walleriana Beacon® Salmon","semenáč",null,1,"N",null,null,null,null,null,null,null,2.52,1182.47,0,0]
["36750",288,284,"Impatiens walleriana Beacon® Select Mix","semenáč",null,1,"N",null,null,null,null,null,null,null,2.96,840.22,0,0]
["36750",510,470,"Impatiens walleriana Beacon® Select Mix","semenáč",null,1,"N",null,null,null,null,null,null,null,2.52,1182.47,0,0]
["36701",288,284,"Impatiens walleriana Beacon® Violet Shades","semenáč",null,1,"N",null,null,null,null,null,null,null,2.96,840.22,0,0]
["36701",510,470,"Impatiens walleriana Beacon® Violet Shades","semenáč",null,1,"N",null,null,null,null,null,null,null,2.52,1182.47,0,0]
["36702",288,284,"Impatiens walleriana Beacon® White","semenáč",null,1,"N",null,null,null,null,null,null,null,2.96,840.22,0,0]
["36702",510,470,"Impatiens walleriana Beacon® White","semenáč",null,1,"N",null,null,null,null,null,null,null,2.52,1182.47,0,0]
["31667",128,126,"Impatiens walleriana Fiesta™ Bonita Burgundy","řízek",null,1,"N","A",null,null,null,null,null,null,11.37,1432.35,0,0]
["31672",128,126,"Impatiens walleriana Fiesta™ Bonita Cherry","řízek",null,1,"N","A",null,null,null,null,null,null,11.37,1432.35,0,0]
["31668",128,126,"Impatiens walleriana Fiesta™ Bonita Lavender Stardust","řízek",null,1,"N","A",null,null,null,null,null,null,11.37,1432.35,0,0]
["31669",128,126,"Impatiens walleriana Fiesta™ Bonita Pink","řízek",null,1,"N","A",null,null,null,null,null,null,11.37,1432.35,0,0]
["31670",128,126,"Impatiens walleriana Fiesta™ Bonita Rose","řízek",null,1,"N","A",null,null,null,null,null,null,11.37,1432.35,0,0]
["31673",128,126,"Impatiens walleriana Fiesta™ Bonita White","řízek",null,1,"N","A",null,null,null,null,null,null,11.37,1432.35,0,0]
["37708",128,126,"Impatiens walleriana Glimmer™ Appleblossom","řízek",null,1,"N","A",null,null,null,null,null,null,12.56,1582.72,0,0]
["37712",128,126,"Impatiens walleriana Glimmer™ Bright Red","řízek",null,1,"N","A",null,null,null,null,null,null,12.56,1582.72,0,0]
["37706",128,126,"Impatiens walleriana Glimmer™ Burgundy","řízek",null,1,"N","A",null,null,null,null,null,null,12.56,1582.72,0,0]
["37710",128,126,"Impatiens walleriana Glimmer™ Hot Pink","řízek",null,1,"N","A",null,null,null,null,null,null,12.56,1582.72,0,0]
["43326",84,84,"Impatiens walleriana Glimmer™ MixMasters® All that Glimmers","řízek","new",2,"N","A",null,null,null,null,null,null,22.06,1852.77,0,0]
["43325",84,84,"Impatiens walleriana Glimmer™ MixMasters® Glimmerazzi","řízek","new",2,"N","A",null,null,null,null,null,null,22.06,1852.77,0,0]
["37711",128,126,"Impatiens walleriana Glimmer™ Orange","řízek",null,1,"N","A",null,null,null,null,null,null,12.56,1582.72,0,0]
["41689",128,126,"Impatiens walleriana Glimmer™ Pink","řízek","new",1,"N","A",null,null,null,null,null,null,12.56,1582.72,0,0]
["37713",128,126,"Impatiens walleriana Glimmer™ White","řízek",null,1,"N","A",null,null,null,null,null,null,12.56,1582.72,0,0]
["16080",84,84,"Ipomoea batatas Iposun Black Tone","řízek",null,1,"N","A",null,null,null,null,null,null,14.41,1210.81,0,0]
["31445",84,84,"Ipomoea batatas Marguerite","řízek",null,1,"N",null,null,null,null,null,null,null,12.12,1018.03,0,0]
["34694",84,84,"Ipomoea batatas SolarPower™ Black","řízek",null,1,"N","A",null,null,null,null,null,null,14.41,1210.81,0,0]
["31682",84,84,"Ipomoea batatas SolarPower™ Green","řízek",null,1,"N","A",null,null,null,null,null,null,14.41,1210.81,0,0]
["35835",84,84,"Ipomoea batatas SolarPower™ Lime Heart","řízek",null,1,"N","A",null,null,null,null,null,null,14.41,1210.81,0,0]
["35836",84,84,"Ipomoea batatas SolarPower™ Red Heart","řízek",null,1,"N","A",null,null,null,null,null,null,14.41,1210.81,0,0]
["34696",84,84,"Ipomoea batatas SolarTower™ Black","řízek",null,1,"Y","A",null,null,null,null,null,null,16.45,1381.75,0,0]
["36371",84,84,"Ipomoea batatas SolarTower™ Lime","řízek",null,1,"N","A",null,null,null,null,null,null,16.45,1381.75,0,0]
["14967",84,84,"Ipomoea batatas Sweet Caroline® Bronze","řízek",null,1,"N","A",null,null,null,null,null,null,15.56,1307.2,0,0]
["14968",84,84,"Ipomoea batatas Sweet Caroline® Green","řízek",null,1,"N","A",null,null,null,null,null,null,15.56,1307.2,0,0]
["14966",84,84,"Ipomoea batatas Sweet Caroline® Purple","řízek",null,1,"N","A",null,null,null,null,null,null,15.56,1307.2,0,0]
["32756",288,284,"Isotoma axillaris Lauren Blue","semenáč",null,1,"N",null,null,null,null,null,null,null,5.42,1538.71,0,0]
["36373",128,126,"Lantana camara Bloomify™ Mango","řízek",null,1,"N","A",null,null,null,null,null,null,12.74,1605.85,0,0]
["37715",128,126,"Lantana camara Bloomify™ Orange","řízek",null,1,"N","A",null,null,null,null,null,null,12.74,1605.85,0,0]
["42855",128,126,"Lantana camara Bloomify™ Pink","řízek",null,1,"N","A",null,null,null,null,null,null,12.74,1605.85,{"$f":"Q653*(J653+K653+L653+M653+N653+O653)","v":0},{"$f":"R653*1.12","v":0}]
["35238",128,126,"Lantana camara Bloomify™ Red","řízek",null,1,"N","A",null,null,null,null,null,null,12.74,1605.85,0,0]
["35239",128,126,"Lantana camara Bloomify™ Rose","řízek",null,1,"N","A",null,null,null,null,null,null,12.74,1605.85,0,0]
["42854",128,126,"Lantana camara Bloomify™ White","řízek",null,1,"N","A",null,null,null,null,null,null,12.74,1605.85,0,0]
["37719",84,84,"Lantana camara Lucky™ Pink","řízek",null,2,"N","A",null,null,null,null,null,null,18.03,1514.44,0,0]
["37719",128,126,"Lantana camara Lucky™ Pink","řízek",null,1,"N","A",null,null,null,null,null,null,12.05,1518.14,0,0]
["17499",84,84,"Lantana camara Lucky™ Pot of Gold","řízek",null,2,"N","A",null,null,null,null,null,null,18.03,1514.44,0,0]
["17499",128,126,"Lantana camara Lucky™ Pot of Gold","řízek",null,1,"N","A",null,null,null,null,null,null,12.05,1518.14,0,0]
["17501",84,84,"Lantana camara Lucky™ Red Flame","řízek",null,2,"N","A",null,null,null,null,null,null,18.03,1514.44,0,0]
["17501",128,126,"Lantana camara Lucky™ Red Flame","řízek",null,1,"N","A",null,null,null,null,null,null,12.05,1518.14,0,0]
["17502",84,84,"Lantana camara Lucky™ Rose Sunrise","řízek",null,2,"N","A",null,null,null,null,null,null,18.03,1514.44,0,0]
["17502",128,126,"Lantana camara Lucky™ Rose Sunrise","řízek",null,1,"N","A",null,null,null,null,null,null,12.05,1518.14,0,0]
["41493",84,84,"Lantana camara Lucky™ White Impr.","řízek",null,2,"N","A",null,null,null,null,null,null,18.03,1514.44,0,0]
["41493",128,126,"Lantana camara Lucky™ White Impr.","řízek",null,1,"N","A",null,null,null,null,null,null,12.05,1518.14,0,0]
["43181",84,84,"Lantana camara Lucky™ Yellow Impr.","řízek","new",2,"N","A",null,null,null,null,null,null,18.03,1514.44,0,0]
["43181",128,126,"Lantana camara Lucky™ Yellow Impr.","řízek","new",1,"N","A",null,null,null,null,null,null,12.05,1518.14,0,0]
["43178",84,84,"Lantana camara PassionFruit  ","řízek","new",2,"N","A",null,null,null,null,null,null,20.73,1741.6,0,0]
["43178",128,126,"Lantana camara PassionFruit  ","řízek","new",1,"N","A",null,null,null,null,null,null,12.62,1590.43,0,0]
["41489",128,126,"Lantana camara Shamrock Light Yellow","řízek",null,1,"N","A",null,null,null,null,null,null,12.62,1590.43,0,0]
["42853",128,126,"Lantana camara Shamrock Orange Flame","řízek",null,1,"N","A",null,null,null,null,null,null,12.62,1590.43,0,0]
["41491",128,126,"Lantana camara Shamrock Peach","řízek",null,1,"N","A",null,null,null,null,null,null,12.62,1590.43,0,0]
["42851",128,126,"Lantana camara Shamrock Red","řízek",null,1,"N","A",null,null,null,null,null,null,12.62,1590.43,0,0]
["42852",128,126,"Lantana camara Shamrock Rose Gold","řízek",null,1,"N","A",null,null,null,null,null,null,12.62,1590.43,0,0]
["44032",128,126,"Lantana camara Shamrock Rose Impr.","řízek","new",1,"N","A",null,null,null,null,null,null,12.62,1590.43,0,0]
["36303",180,178,"Lobelia erinus Bahari Blue","řízek",null,1,"N","A",null,null,null,null,null,null,8.9600000000000009,1594.72,0,0]
["44083",84,82,"Lobelia erinus Bonaire MixMasters® Pink Beach","řízek","new",3,"N","A",null,null,null,null,null,null,22.65,1857.31,0,0]
["10867",510,500,"Lobelia erinus Crystal Palace","semenáč",null,8,"N",null,null,null,null,null,null,null,1.71,856.31,0,0]
["41639",180,178,"Lobelia erinus Heatopia™ Blue Eyes","řízek","new",1,"N","A",null,null,null,null,null,null,9.07,1614.47,0,0]
["41638",180,178,"Lobelia erinus Heatopia™ Pink","řízek",null,1,"N","A",null,null,null,null,null,null,9.07,1614.47,0,0]
["42872",180,178,"Lobelia erinus Heatopia™ Sky Blue","řízek","new",1,"N","A",null,null,null,null,null,null,9.07,1614.47,0,0]
["16382",180,178,"Lobelia erinus Hot® Blue","řízek",null,1,"N","A",null,null,null,null,null,null,10.75,1914.04,0,0]
["17506",180,178,"Lobelia erinus Hot® Waterblue","řízek",null,1,"N","A",null,null,null,null,null,null,10.75,1914.04,0,0]
["17507",180,178,"Lobelia erinus Hot® White","řízek",null,1,"N","A",null,null,null,null,null,null,10.75,1914.04,0,0]
["44877",180,178,"Lobelia erinus Masterpiece F1 Blue with Eye","semenáč","new",1,"N",null,null,null,null,null,null,null,6.75,1201.19,0,0]
["10869",510,500,"Lobelia erinus Palace Blue Eye","semenáč",null,8,"N",null,null,null,null,null,null,null,1.71,856.31,0,0]
["10871",510,500,"Lobelia erinus Palace White","semenáč",null,8,"N",null,null,null,null,null,null,null,1.71,856.31,0,0]
["10874",510,500,"Lobelia erinus pendula Regatta Lilac","semenáč",null,8,"N",null,null,null,null,null,null,null,1.71,856.31,0,0]
["10876",510,500,"Lobelia erinus pendula Regatta Midnight Blue","semenáč",null,8,"N",null,null,null,null,null,null,null,1.71,856.31,0,0]
["10880",510,500,"Lobelia erinus pendula Regatta Mix","semenáč",null,8,"N",null,null,null,null,null,null,null,1.71,856.31,0,0]
["10877",510,500,"Lobelia erinus pendula Regatta Rose","semenáč",null,8,"N",null,null,null,null,null,null,null,1.71,856.31,0,0]
["10878",510,500,"Lobelia erinus pendula Regatta Sky Blue","semenáč",null,8,"N",null,null,null,null,null,null,null,1.71,856.31,0,0]
["10879",510,500,"Lobelia erinus pendula Regatta White","semenáč",null,8,"N",null,null,null,null,null,null,null,1.71,856.31,0,0]
["30027",288,284,"Lobelia erinus Rapid Blue","semenáč",null,8,"N",null,null,null,null,null,null,null,2.5099999999999998,714.21,0,0]
["30027",510,500,"Lobelia erinus Rapid Blue","semenáč",null,8,"N",null,null,null,null,null,null,null,1.8,898.39,0,0]
["10861",510,500,"Lobelia erinus Riviera Lilac","semenáč",null,8,"N",null,null,null,null,null,null,null,1.71,856.31,0,0]
["10862",510,500,"Lobelia erinus Riviera Marine Blue","semenáč",null,8,"N",null,null,null,null,null,null,null,1.71,856.31,0,0]
["10863",510,500,"Lobelia erinus Riviera Midnight Blue","semenáč",null,8,"N",null,null,null,null,null,null,null,1.71,856.31,0,0]
["38265",510,500,"Lobelia erinus Riviera Mix","semenáč",null,8,"N",null,null,null,null,null,null,null,1.71,856.31,0,0]
["10864",510,500,"Lobelia erinus Riviera Rose","semenáč",null,8,"N",null,null,null,null,null,null,null,1.71,856.31,0,0]
["10858",510,500,"Lobelia erinus Riviera Sky Blue","semenáč",null,8,"N",null,null,null,null,null,null,null,1.71,856.31,0,0]
["37788",180,178,"Lobelia erinus Springs™ Dark Blue","řízek",null,1,"N","A",null,null,null,null,null,null,9.07,1614.47,0,0]
["19620",180,178,"Lobelia erinus Springs™ Lavender","řízek",null,1,"N","A",null,null,null,null,null,null,9.07,1614.47,0,0]
["19621",180,178,"Lobelia erinus Springs™ White","řízek",null,1,"N","A",null,null,null,null,null,null,9.07,1614.47,0,0]
["17534",180,178,"Lobelia erinus Star® White","řízek",null,1,"N","A",null,null,null,null,null,null,9.59,1707.74,0,0]
["30537",180,178,"Lobelia erinus Sweet Springs Blue","řízek",null,1,"N","A",null,null,null,null,null,null,9.07,1614.47,0,0]
["30536",180,178,"Lobelia erinus Sweet Springs Dark Blue","řízek",null,1,"N","A",null,null,null,null,null,null,9.07,1614.47,0,0]
["30538",180,178,"Lobelia erinus Sweet Springs Lavender","řízek",null,1,"N","A",null,null,null,null,null,null,9.07,1614.47,0,0]
["36301",180,178,"Lobelia erinus Sweet Springs Purple","řízek",null,1,"N","A",null,null,null,null,null,null,9.07,1614.47,0,0]
["37756",180,178,"Lobelia erinus Sweet Springs White","řízek",null,1,"N","A",null,null,null,null,null,null,9.07,1614.47,0,0]
["10513",288,284,"Lobularia maritima Clear Crystal® Mix","semenáč",null,3,"N",null,null,null,null,null,null,null,3.1,879.32,0,0]
["16954",288,284,"Lobularia maritima Clear Crystal® Purple Shades","semenáč",null,3,"N",null,null,null,null,null,null,null,3.1,879.32,0,0]
["16955",288,284,"Lobularia maritima Clear Crystal® White","semenáč",null,3,"N",null,null,null,null,null,null,null,3.1,879.32,0,0]
["16955",510,500,"Lobularia maritima Clear Crystal® White","semenáč",null,3,"N",null,null,null,null,null,null,null,2.21,1106.8499999999999,0,0]
["10521",510,500,"Lobularia maritima Easter Bonnet Deep Rose","semenáč",null,3,"N",null,null,null,null,null,null,null,1.83,913.69,0,0]
["19696",510,500,"Lobularia maritima Easter Bonnet Mix","semenáč",null,3,"N",null,null,null,null,null,null,null,1.83,913.69,{"$f":"Q717*(J717+K717+L717+M717+N717+O717)","v":0},{"$f":"R717*1.12","v":0}]
["10523",510,500,"Lobularia maritima Easter Bonnet Violet","semenáč",null,3,"N",null,null,null,null,null,null,null,1.83,913.69,0,0]
["10524",510,500,"Lobularia maritima Easter Bonnet White","semenáč",null,3,"N",null,null,null,null,null,null,null,1.83,913.69,0,0]
["37348",84,82,"Lobularia maritima Easy Breezy™ MixMasters® Heaven Scent™","řízek",null,3,"N","A",null,null,null,null,null,null,26.98,2212.67,0,0]
["36304",180,178,"Lobularia maritima Easy Breezy™ Pink","řízek",null,1,"N","A",null,null,null,null,null,null,11.72,2086.29,0,0]
["36531",180,178,"Lobularia maritima Easy Breezy™ Purple","řízek",null,1,"N","A",null,null,null,null,null,null,11.72,2086.29,0,0]
["36305",180,178,"Lobularia maritima Easy Breezy™ White","řízek",null,1,"N","A",null,null,null,null,null,null,11.72,2086.29,0,0]
["31314",128,126,"Lophospermum erubescens Lofos® Compact Pink","řízek",null,1,"N","A",null,null,null,null,null,null,15.51,1953.82,0,0]
["31315",128,126,"Lophospermum erubescens Lofos® Compact White","řízek",null,1,"N","A",null,null,null,null,null,null,15.51,1953.82,0,0]
["15379",128,126,"Lophospermum erubescens Lofos® Wine-Red","řízek",null,1,"N","A",null,null,null,null,null,null,15.51,1953.82,0,0]
["12607",180,178,"Lysimachia nummularia Goldilocks","řízek",null,1,"N",null,null,null,null,null,null,null,7.48,1331.91,0,0]
["18475",288,284,"Matthiola incana Hot Cakes Mix","semenáč",null,1,"N",null,null,null,null,null,null,null,7.24,2055.79,0,0]
["18006",288,284,"Matthiola incana Hot Cakes Purple","semenáč",null,1,"N",null,null,null,null,null,null,null,7.24,2055.79,0,0]
["18008",288,284,"Matthiola incana Hot Cakes White","semenáč",null,1,"N",null,null,null,null,null,null,null,7.24,2055.79,0,0]
["41647",180,178,"Mecardonia procumbes Gold Flakes","řízek",null,1,"Y","A",null,null,null,null,null,null,10.88,1935.83,0,0]
["38189",510,490,"Mimulus x hybrida Mystic Mix","semenáč",null,1,"N",null,null,null,null,null,null,null,2.64,1291.4100000000001,0,0]
["42225",180,178,"Muehlenbeckia complexa Golden Girl Gold","řízek",null,2,"Y","A",null,null,null,null,null,null,13.99,2490.7199999999998,0,0]
["36651",180,178,"Muehlenbeckia complexa Green","řízek",null,2,"Y",null,null,null,null,null,null,null,7.69,1368,0,0]
["31352",84,82,"Multi specie MixMasters® A grape fit","řízek",null,3,"Y","A",null,null,null,null,null,null,24.63,2019.78,0,0]
["37983",84,82,"Multi specie MixMasters® Baby Blush","řízek",null,3,"Y","A",null,null,null,null,null,null,24.63,2019.78,0,0]
["31351",84,82,"Multi specie MixMasters® Bejeweled","řízek",null,3,"Y","A",null,null,null,null,null,null,24.63,2019.78,0,0]
["34455",84,82,"Multi specie MixMasters® Circus Parade","řízek",null,3,"Y","A",null,null,null,null,null,null,24.63,2019.78,0,0]
["32873",84,82,"Multi specie MixMasters® Do you Lilac It","řízek",null,3,"Y","A",null,null,null,null,null,null,24.63,2019.78,0,0]
["34457",84,82,"Multi specie MixMasters® Fashionista","řízek",null,3,"Y","A",null,null,null,null,null,null,24.63,2019.78,0,0]
["43147",84,82,"Multi specie MixMasters® I Heart Pink","řízek","new",3,"Y","A",null,null,null,null,null,null,24.63,2019.78,0,0]
["43151",84,82,"Multi specie MixMasters® Piece of Cake","řízek","new",3,"Y","A",null,null,null,null,null,null,24.63,2019.78,0,0]
["43858",84,82,"Multi specie MixMasters® Pink Flirt","řízek","new",3,"Y","A",null,null,null,null,null,null,24.63,2019.78,0,0]
["34459",84,82,"Multi specie MixMasters® Power Play","řízek",null,3,"Y","A",null,null,null,null,null,null,24.63,2019.78,0,0]
["43145",84,82,"Multi specie MixMasters® Powers That Bee","řízek","new",3,"Y","A",null,null,null,null,null,null,24.63,2019.78,0,0]
["36389",84,82,"Multi specie MixMasters® Purple Rain","řízek",null,3,"Y","A",null,null,null,null,null,null,24.63,2019.78,0,0]
["31933",84,82,"Multi specie MixMasters® Sunny Black","řízek",null,3,"Y","A",null,null,null,null,null,null,24.63,2019.78,0,0]
["14956",180,175,"Nemesia fruticans Nuvo® Blue","řízek",null,1,"Y","A",null,null,null,null,null,null,9.74,1705.08,0,0]
["36175",180,175,"Nemesia fruticans Nuvo® Blue Bicolour","řízek",null,1,"Y","A",null,null,null,null,null,null,9.74,1705.08,0,0]
["36174",180,175,"Nemesia fruticans Nuvo® Burgundy Bicolour","řízek",null,1,"Y","A",null,null,null,null,null,null,9.74,1705.08,0,0]
["30540",180,175,"Nemesia fruticans Nuvo® Carmine","řízek",null,1,"Y","A",null,null,null,null,null,null,9.74,1705.08,0,0]
["31659",180,175,"Nemesia fruticans Nuvo® Pink Bicolour","řízek",null,1,"Y","A",null,null,null,null,null,null,9.74,1705.08,0,0]
["30542",180,175,"Nemesia fruticans Nuvo® Rose","řízek",null,1,"Y","A",null,null,null,null,null,null,9.74,1705.08,0,0]
["37743",180,175,"Nemesia fruticans Nuvo® Vanilla","řízek",null,1,"Y","A",null,null,null,null,null,null,9.74,1705.08,0,0]
["36176",180,175,"Nemesia fruticans Nuvo® Yellow Bicolour","řízek",null,1,"Y","A",null,null,null,null,null,null,9.74,1705.08,0,0]
["10901",510,400,"Nemesia strumosa Sundrops","semenáč",null,1,"N",null,null,null,null,null,null,null,3.29,1317.99,0,0]
["34088",180,175,"Nemesia strumosa Sunmesia Dark Red","řízek",null,1,"Y","A",null,null,null,null,null,null,11.64,2037.09,0,0]
["34090",180,175,"Nemesia strumosa Sunmesia Yellow","řízek",null,1,"Y","A",null,null,null,null,null,null,11.64,2037.09,0,0]
["17606",510,500,"Nicotiana x alata Cuba F1 Lime Deep","semenáč",null,1,"N",null,null,null,null,null,null,null,2.57,1286.6300000000001,0,0]
["17605",288,284,"Nicotiana x alata Cuba F1 Mix","semenáč",null,1,"N",null,null,null,null,null,null,null,3.21,913,0,0]
["17605",510,500,"Nicotiana x alata Cuba F1 Mix","semenáč",null,1,"N",null,null,null,null,null,null,null,2.57,1286.6300000000001,0,0]
["17607",510,500,"Nicotiana x alata Cuba F1 Red Bright","semenáč",null,1,"N",null,null,null,null,null,null,null,2.57,1286.6300000000001,0,0]
["17608",510,500,"Nicotiana x alata Cuba F1 Rose","semenáč",null,1,"N",null,null,null,null,null,null,null,2.57,1286.6300000000001,0,0]
["17609",510,500,"Nicotiana x alata Cuba F1 White","semenáč",null,1,"N",null,null,null,null,null,null,null,2.57,1286.6300000000001,0,0]
["41434",128,125,"Osteospermum ecklonis Dalina® Bright Purple","řízek",null,1,"N","A",null,null,null,null,null,null,11,1374.6,0,0]
["32610",128,125,"Osteospermum ecklonis Dalina® Compact Lavender","řízek",null,1,"N","A",null,null,null,null,null,null,9.84,1229.73,0,0]
["42586",128,125,"Osteospermum ecklonis Dalina® Compact Light Pink 058","řízek","new",1,"N","A",null,null,null,null,null,null,9.84,1229.73,0,0]
["36136",128,125,"Osteospermum ecklonis Dalina® Compact Orange Brique","řízek",null,1,"N","A",null,null,null,null,null,null,9.84,1229.73,0,0]
["20696",128,125,"Osteospermum ecklonis Dalina® Compact Pink","řízek",null,1,"N","A",null,null,null,null,null,null,9.84,1229.73,0,0]
["41437",128,125,"Osteospermum ecklonis Dalina® Compact Pink Impr.","řízek",null,1,"N","A",null,null,null,null,null,null,9.84,1229.73,0,0]
["34307",128,125,"Osteospermum ecklonis Dalina® Compact Purple","řízek",null,1,"N","A",null,null,null,null,null,null,9.84,1229.73,0,0]
["42585",128,125,"Osteospermum ecklonis Dalina® Compact Red 050","řízek","new",1,"N","A",null,null,null,null,null,null,9.84,1229.73,0,0]
["31645",128,125,"Osteospermum ecklonis Dalina® Compact Rose White","řízek",null,1,"N","A",null,null,null,null,null,null,9.84,1229.73,0,0]
["41450",128,125,"Osteospermum ecklonis Dalina® Compact White Impr.","řízek",null,1,"N","A",null,null,null,null,null,null,9.84,1229.73,0,0]
["30550",128,125,"Osteospermum ecklonis Dalina® Compact White Pink Blush","řízek",null,1,"N","A",null,null,null,null,null,null,9.84,1229.73,0,0]
["42583",128,125,"Osteospermum ecklonis Dalina® Compact Yellow 025","řízek","new",1,"N","A",null,null,null,null,null,null,9.84,1229.73,0,0]
["41447",128,125,"Osteospermum ecklonis Dalina® Cream","řízek",null,1,"N","A",null,null,null,null,null,null,11,1374.6,0,0]
["37646",128,125,"Osteospermum ecklonis Dalina® Dark Red","řízek",null,1,"N","A",null,null,null,null,null,null,11,1374.6,0,0]
["35937",128,125,"Osteospermum ecklonis Dalina® Dolores","řízek",null,1,"N","A",null,null,null,null,null,null,11,1374.6,0,0]
["37634",128,125,"Osteospermum ecklonis Dalina® Double Enrico","řízek",null,1,"N","A",null,null,null,null,null,null,12.29,1536.68,0,0]
["35968",128,125,"Osteospermum ecklonis Dalina® Double Francisco","řízek",null,1,"N","A",null,null,null,null,null,null,12.29,1536.68,{"$f":"Q781*(J781+K781+L781+M781+N781+O781)","v":0},{"$f":"R781*1.12","v":0}]
["41431",128,125,"Osteospermum ecklonis Dalina® Double Pedro Impr.","řízek",null,1,"N","A",null,null,null,null,null,null,12.29,1536.68,0,0]
["42598",128,125,"Osteospermum ecklonis Dalina® Double Pink 161","řízek","new",1,"N","A",null,null,null,null,null,null,12.29,1536.68,0,0]
["35946",128,125,"Osteospermum ecklonis Dalina® Evita","řízek",null,1,"N","A",null,null,null,null,null,null,11,1374.6,0,0]
["42596",128,125,"Osteospermum ecklonis Dalina® Lavender Halo 151","řízek","new",1,"N","A",null,null,null,null,null,null,11,1374.6,0,0]
["42587",128,125,"Osteospermum ecklonis Dalina® Light Pink 063","řízek","new",1,"N","A",null,null,null,null,null,null,11,1374.6,0,0]
["37636",128,125,"Osteospermum ecklonis Dalina® Orange","řízek",null,1,"N","A",null,null,null,null,null,null,11,1374.6,0,0]
["38153",128,125,"Osteospermum ecklonis Dalina® Pink Bicolour","řízek",null,1,"N","A",null,null,null,null,null,null,11,1374.6,0,0]
["36786",128,125,"Osteospermum ecklonis Dalina® Purple","řízek",null,1,"N","A",null,null,null,null,null,null,11,1374.6,0,0]
["42590",128,125,"Osteospermum ecklonis Dalina® Purple 120","řízek","new",1,"N","A",null,null,null,null,null,null,11,1374.6,0,0]
["36792",128,125,"Osteospermum ecklonis Dalina® Purple Outback","řízek",null,1,"N","A",null,null,null,null,null,null,11,1374.6,0,0]
["36787",128,125,"Osteospermum ecklonis Dalina® Purple Reflection","řízek",null,1,"N","A",null,null,null,null,null,null,11,1374.6,0,0]
["42589",128,125,"Osteospermum ecklonis Dalina® Rose Bicolour 094","řízek","new",1,"N","A",null,null,null,null,null,null,11,1374.6,0,0]
["30545",128,125,"Osteospermum ecklonis Dalina® Special Blue Eyed Beauty","řízek",null,1,"N","A",null,null,null,null,null,null,11.06,1382.25,0,0]
["34598",128,125,"Osteospermum ecklonis Dalina® Special Pink Eyed Beauty","řízek",null,1,"N","A",null,null,null,null,null,null,11.06,1382.25,0,0]
["36137",128,125,"Osteospermum ecklonis Dalina® Special Sunshine Beauty","řízek",null,1,"N","A",null,null,null,null,null,null,11.06,1382.25,0,0]
["37648",128,125,"Osteospermum ecklonis Dalina® White","řízek",null,1,"N","A",null,null,null,null,null,null,11,1374.6,0,0]
["42580",128,125,"Osteospermum ecklonis Dalina® White 001","řízek","new",1,"N","A",null,null,null,null,null,null,11,1374.6,0,0]
["41446",128,125,"Osteospermum ecklonis Dalina® Yellow Impr.","řízek",null,1,"N","A",null,null,null,null,null,null,11,1374.6,0,0]
["37654",128,125,"Osteospermum ecklonis Dalina® Yellow Sunrise","řízek",null,1,"N","A",null,null,null,null,null,null,11,1374.6,0,0]
["17516",128,125,"Osteospermum ecklonis Voltage™ Yellow","řízek",null,1,"N","A",null,null,null,null,null,null,12.32,1540.03,0,0]
["33934",180,178,"Pentas lanceolata Lucky Star Lavender","semenáč",null,2,"N",null,null,null,null,null,null,null,10.66,1897.02,0,0]
["33934",288,284,"Pentas lanceolata Lucky Star Lavender","semenáč",null,1,"N",null,null,null,null,null,null,null,5.96,1692.96,0,0]
["36641",180,178,"Pentas lanceolata Lucky Star Lipstick","semenáč",null,2,"N",null,null,null,null,null,null,null,10.66,1897.02,0,0]
["34510",180,178,"Pentas lanceolata Lucky Star Pink Deep","semenáč",null,2,"N",null,null,null,null,null,null,null,10.66,1897.02,0,0]
["34510",288,284,"Pentas lanceolata Lucky Star Pink Deep","semenáč",null,1,"N",null,null,null,null,null,null,null,5.96,1692.96,0,0]
["34511",180,178,"Pentas lanceolata Lucky Star Red Dark","semenáč",null,2,"N",null,null,null,null,null,null,null,10.66,1897.02,0,0]
["34511",288,284,"Pentas lanceolata Lucky Star Red Dark","semenáč",null,1,"N",null,null,null,null,null,null,null,5.96,1692.96,0,0]
["33010",180,178,"Pentas lanceolata Lucky Star Violet","semenáč",null,2,"N",null,null,null,null,null,null,null,10.66,1897.02,0,0]
["33010",288,284,"Pentas lanceolata Lucky Star Violet","semenáč",null,1,"N",null,null,null,null,null,null,null,5.96,1692.96,0,0]
["33011",180,178,"Pentas lanceolata Lucky Star White","semenáč",null,2,"N",null,null,null,null,null,null,null,10.66,1897.02,0,0]
["33011",288,284,"Pentas lanceolata Lucky Star White","semenáč",null,1,"N",null,null,null,null,null,null,null,5.96,1692.96,0,0]
["35720",128,126,"Petchoa interspecific BeautiCal® Bordeaux","řízek",null,1,"N","A",null,null,null,null,null,null,13.6,1713.81,0,0]
["35721",128,126,"Petchoa interspecific BeautiCal® Caramel Yellow","řízek",null,1,"N","A",null,null,null,null,null,null,13.6,1713.81,0,0]
["35722",128,126,"Petchoa interspecific BeautiCal® Cinnamon","řízek",null,1,"N","A",null,null,null,null,null,null,13.6,1713.81,0,0]
["35723",128,126,"Petchoa interspecific BeautiCal® French Vanilla","řízek",null,1,"N","A",null,null,null,null,null,null,13.6,1713.81,0,0]
["38212",128,126,"Petchoa interspecific BeautiCal® Pearl White","řízek",null,1,"N","A",null,null,null,null,null,null,13.6,1713.81,0,0]
["38138",128,126,"Petchoa interspecific BeautiCal® Purple Dawn","řízek",null,1,"N","A",null,null,null,null,null,null,13.6,1713.81,0,0]
["41648",128,126,"Petchoa interspecific BeautiCal® Red Maple","řízek",null,1,"N","A",null,null,null,null,null,null,13.6,1713.81,0,0]
["35724",128,126,"Petchoa interspecific BeautiCal® Sunray Pink","řízek",null,1,"N","A",null,null,null,null,null,null,13.6,1713.81,0,0]
["38139",128,126,"Petchoa interspecific BeautiCal® Sunset Orange","řízek",null,1,"N","A",null,null,null,null,null,null,13.6,1713.81,0,0]
["43375",288,284,"Petchoa interspecific Caliburst™ Yellow F1","semenáč","new",1,"N",null,null,null,null,null,null,null,8.2200000000000006,2333.88,0,0]
["42634",128,126,"Petunia grandiflora Amazonas Plum Cockatoo","řízek","new",1,"N","A",null,null,null,null,null,null,13.73,1730.19,0,0]
["34125",128,126,"Petunia grandiflora Amore® Fiesta","řízek",null,1,"N","A",null,null,null,null,null,null,12.01,1512.84,0,0]
["34126",128,126,"Petunia grandiflora Amore® Joy","řízek",null,1,"N","A",null,null,null,null,null,null,12.01,1512.84,0,0]
["43419",128,126,"Petunia grandiflora Amore® King of Hearts Impr.","řízek","new",1,"N","A",null,null,null,null,null,null,12.01,1512.84,0,0]
["36285",128,126,"Petunia grandiflora Amore® Pink Heart","řízek",null,1,"N","A",null,null,null,null,null,null,12.01,1512.84,0,0]
["34107",128,126,"Petunia grandiflora Amore® Queen of Hearts","řízek",null,1,"N","A",null,null,null,null,null,null,12.01,1512.84,0,0]
["37519",128,126,"Petunia grandiflora Bee’s Knees Yellow","řízek",null,1,"N","A",null,null,null,null,null,null,11.82,1488.74,0,0]
["31468",128,126,"Petunia grandiflora Cascadias® Indian Summer","řízek",null,1,"N","A",null,null,null,null,null,null,12.78,1609.71,0,0]
["38159",128,126,"Petunia grandiflora ColorRush™ Burgundy Star","řízek","new",1,"N","A",null,null,null,null,null,null,11.43,1440.54,0,0]
["43494",128,126,"Petunia grandiflora ColorRush™ Pink Star","řízek","new",1,"N","A",null,null,null,null,null,null,11.43,1440.54,0,0]
["35897",128,126,"Petunia grandiflora ColorRush™ Pink Vein","řízek","new",1,"N","A",null,null,null,null,null,null,11.43,1440.54,0,0]
["35898",128,126,"Petunia grandiflora ColorRush™ Sky Blue","řízek","new",1,"N","A",null,null,null,null,null,null,11.43,1440.54,0,0]
["36882",128,126,"Petunia grandiflora ColorRush™ White","řízek","new",1,"N","A",null,null,null,null,null,null,11.43,1440.54,0,0]
["35242",128,126,"Petunia grandiflora Dolly Dots Aries","řízek",null,1,"N","A",null,null,null,null,null,null,12.23,1541.27,0,0]
["41843",128,126,"Petunia grandiflora Dolly Dots Magenta Comet","řízek",null,1,"N","A",null,null,null,null,null,null,12.23,1541.27,0,0]
["37272",128,126,"Petunia grandiflora Dolly Dots Magenta Mambo","řízek",null,1,"N","A",null,null,null,null,null,null,12.23,1541.27,0,0]
["37722",128,126,"Petunia grandiflora Dolly Dots Supernova","řízek",null,1,"N","A",null,null,null,null,null,null,12.23,1541.27,0,0]
["35243",128,126,"Petunia grandiflora Dolly Dots Virgo","řízek",null,1,"N","A",null,null,null,null,null,null,12.23,1541.27,0,0]
["19736",128,126,"Petunia grandiflora Fanfare® Blue","řízek",null,1,"N","A",null,null,null,null,null,null,12.55,1580.79,0,0]
["19744",128,126,"Petunia grandiflora Fanfare® Crème de Cassis","řízek",null,1,"N","A",null,null,null,null,null,null,12.55,1580.79,0,0]
["35007",128,126,"Petunia grandiflora Fanfare® Deep Yellow","řízek",null,1,"N","A",null,null,null,null,null,null,12.55,1580.79,0,0]
["19745",128,126,"Petunia grandiflora Fanfare® Hot Rose","řízek",null,1,"N","A",null,null,null,null,null,null,12.55,1580.79,0,0]
["37849",128,126,"Petunia grandiflora Fanfare® Red Impr.","řízek",null,1,"N","A",null,null,null,null,null,null,12.55,1580.79,{"$f":"Q845*(J845+K845+L845+M845+N845+O845)","v":0},{"$f":"R845*1.12","v":0}]
["35008",128,126,"Petunia grandiflora Fanfare® Rose Morn","řízek",null,1,"N","A",null,null,null,null,null,null,12.55,1580.79,0,0]
["30129",128,126,"Petunia grandiflora Fanfare® Royal Purple","řízek",null,1,"N","A",null,null,null,null,null,null,12.55,1580.79,0,0]
["36891",128,126,"Petunia grandiflora Fanfare® Salmon","řízek",null,1,"N","A",null,null,null,null,null,null,12.55,1580.79,0,0]
["31344",128,126,"Petunia grandiflora Fanfare® Sky Blue","řízek",null,1,"N","A",null,null,null,null,null,null,12.55,1580.79,0,0]
["18131",128,126,"Petunia grandiflora Fanfare® White","řízek",null,1,"N","A",null,null,null,null,null,null,12.55,1580.79,0,0]
["31788",128,126,"Petunia grandiflora GO!Tunia® Black","řízek",null,1,"N","A",null,null,null,null,null,null,10.7,1348.49,0,0]
["37759",128,126,"Petunia grandiflora GO!Tunia® Blue Vein","řízek",null,1,"N","A",null,null,null,null,null,null,10.7,1348.49,0,0]
["18772",128,126,"Petunia grandiflora GO!Tunia® Burgundy","řízek",null,1,"N","A",null,null,null,null,null,null,10.7,1348.49,0,0]
["32883",128,126,"Petunia grandiflora GO!Tunia® Burgundy Star","řízek",null,1,"N","A",null,null,null,null,null,null,10.7,1348.49,0,0]
["37751",128,126,"Petunia grandiflora GO!Tunia® Cosmic Pink","řízek",null,1,"N","A",null,null,null,null,null,null,10.7,1348.49,0,0]
["36922",128,126,"Petunia grandiflora GO!Tunia® Cosmic Purple","řízek",null,1,"N","A",null,null,null,null,null,null,10.7,1348.49,0,0]
["43802",128,126,"Petunia grandiflora GO!Tunia® Cosmic Violet","řízek","new",1,"N","A",null,null,null,null,null,null,10.7,1348.49,0,0]
["41990",128,126,"Petunia grandiflora GO!Tunia® Dark Blue","řízek","new",1,"N","A",null,null,null,null,null,null,10.7,1348.49,0,0]
["42012",128,126,"Petunia grandiflora GO!Tunia® Dark Purple Vein","řízek","new",1,"N","A",null,null,null,null,null,null,10.7,1348.49,0,0]
["36923",128,126,"Petunia grandiflora GO!Tunia® French Kiss","řízek",null,1,"N","A",null,null,null,null,null,null,10.7,1348.49,0,0]
["38214",128,126,"Petunia grandiflora GO!Tunia® Hello Yellow","řízek",null,1,"N","A",null,null,null,null,null,null,10.7,1348.49,0,0]
["42009",128,126,"Petunia grandiflora GO!Tunia® Light Pink Vein","řízek","new",1,"N","A",null,null,null,null,null,null,10.7,1348.49,0,0]
["36925",128,126,"Petunia grandiflora GO!Tunia® Lucky Lilac","řízek",null,1,"N","A",null,null,null,null,null,null,10.7,1348.49,0,0]
["36900",128,126,"Petunia grandiflora GO!Tunia® Neon Pink","řízek",null,1,"N","A",null,null,null,null,null,null,10.7,1348.49,0,0]
["37760",128,126,"Petunia grandiflora GO!Tunia® Pink","řízek",null,1,"N","A",null,null,null,null,null,null,10.7,1348.49,0,0]
["32927",128,126,"Petunia grandiflora GO!Tunia® Pink Vein","řízek",null,1,"N","A",null,null,null,null,null,null,10.7,1348.49,0,0]
["20632",128,126,"Petunia grandiflora GO!Tunia® Purple Vein","řízek",null,1,"N","A",null,null,null,null,null,null,10.7,1348.49,0,0]
["37478",128,126,"Petunia grandiflora GO!Tunia® Red","řízek",null,1,"N","A",null,null,null,null,null,null,10.7,1348.49,0,0]
["43421",128,126,"Petunia grandiflora GO!Tunia® Rose Picotee","řízek","new",1,"N","A",null,null,null,null,null,null,10.7,1348.49,0,0]
["41841",128,126,"Petunia grandiflora GO!Tunia® Sky Blue","řízek",null,1,"N","A",null,null,null,null,null,null,10.7,1348.49,0,0]
["30453",128,126,"Petunia grandiflora GO!Tunia® Tiger Stripe","řízek",null,1,"N","A",null,null,null,null,null,null,10.7,1348.49,0,0]
["37758",128,126,"Petunia grandiflora GO!Tunia® Violet Vein","řízek",null,1,"N","A",null,null,null,null,null,null,10.7,1348.49,0,0]
["37278",128,126,"Petunia grandiflora GO!Tunia® White","řízek",null,1,"N","A",null,null,null,null,null,null,10.7,1348.49,0,0]
["30147",288,284,"Petunia grandiflora Pacta Parade Blue","semenáč",null,1,"N",null,null,null,null,null,null,null,2.85,808.71,0,0]
["30147",510,500,"Petunia grandiflora Pacta Parade Blue","semenáč",null,1,"N",null,null,null,null,null,null,null,2.11,1055.21,0,0]
["34489",288,284,"Petunia grandiflora Pacta Parade Blue Picotee","semenáč","new",1,"N",null,null,null,null,null,null,null,2.85,808.71,0,0]
["34489",510,500,"Petunia grandiflora Pacta Parade Blue Picotee","semenáč","new",1,"N",null,null,null,null,null,null,null,2.11,1055.21,0,0]
["32528",288,284,"Petunia grandiflora Pacta Parade Blue Vein","semenáč",null,1,"N",null,null,null,null,null,null,null,2.85,808.71,0,0]
["32528",510,500,"Petunia grandiflora Pacta Parade Blue Vein","semenáč",null,1,"N",null,null,null,null,null,null,null,2.11,1055.21,0,0]
["31515",288,284,"Petunia grandiflora Pacta Parade Burgundy","semenáč",null,1,"N",null,null,null,null,null,null,null,2.85,808.71,0,0]
["31515",510,500,"Petunia grandiflora Pacta Parade Burgundy","semenáč",null,1,"N",null,null,null,null,null,null,null,2.11,1055.21,0,0]
["34490",288,284,"Petunia grandiflora Pacta Parade Burgundy Picotee","semenáč",null,1,"N",null,null,null,null,null,null,null,2.85,808.71,0,0]
["34490",510,500,"Petunia grandiflora Pacta Parade Burgundy Picotee","semenáč",null,1,"N",null,null,null,null,null,null,null,2.11,1055.21,0,0]
["36655",288,284,"Petunia grandiflora Pacta Parade Lemon","semenáč",null,1,"N",null,null,null,null,null,null,null,2.85,808.71,0,0]
["36655",510,500,"Petunia grandiflora Pacta Parade Lemon","semenáč",null,1,"N",null,null,null,null,null,null,null,2.11,1055.21,0,0]
["43853",288,284,"Petunia grandiflora Pacta Parade Picotee Mix","semenáč","new",1,"N",null,null,null,null,null,null,null,2.85,808.71,0,0]
["43853",510,500,"Petunia grandiflora Pacta Parade Picotee Mix","semenáč","new",1,"N",null,null,null,null,null,null,null,2.11,1055.21,0,0]
["30151",288,284,"Petunia grandiflora Pacta Parade Pink-Rose","semenáč",null,1,"N",null,null,null,null,null,null,null,2.85,808.71,0,0]
["30151",510,500,"Petunia grandiflora Pacta Parade Pink-Rose","semenáč",null,1,"N",null,null,null,null,null,null,null,2.11,1055.21,0,0]
["30153",288,284,"Petunia grandiflora Pacta Parade Red","semenáč",null,1,"N",null,null,null,null,null,null,null,2.85,808.71,0,0]
["30153",510,500,"Petunia grandiflora Pacta Parade Red","semenáč",null,1,"N",null,null,null,null,null,null,null,2.11,1055.21,0,0]
["34492",288,284,"Petunia grandiflora Pacta Parade Red Picotee","semenáč",null,1,"N",null,null,null,null,null,null,null,2.85,808.71,0,0]
["34492",510,500,"Petunia grandiflora Pacta Parade Red Picotee","semenáč",null,1,"N",null,null,null,null,null,null,null,2.11,1055.21,0,0]
["31517",288,284,"Petunia grandiflora Pacta Parade Rose Morn","semenáč",null,1,"N",null,null,null,null,null,null,null,2.85,808.71,0,0]
["31517",510,500,"Petunia grandiflora Pacta Parade Rose Morn","semenáč",null,1,"N",null,null,null,null,null,null,null,2.11,1055.21,0,0]
["34493",288,284,"Petunia grandiflora Pacta Parade Rose Picotee","semenáč",null,1,"N",null,null,null,null,null,null,null,2.85,808.71,0,0]
["34493",510,500,"Petunia grandiflora Pacta Parade Rose Picotee","semenáč",null,1,"N",null,null,null,null,null,null,null,2.11,1055.21,0,0]
["30155",288,284,"Petunia grandiflora Pacta Parade Salmon","semenáč",null,1,"N",null,null,null,null,null,null,null,2.85,808.71,0,0]
["30155",510,500,"Petunia grandiflora Pacta Parade Salmon","semenáč",null,1,"N",null,null,null,null,null,null,null,2.11,1055.21,0,0]
["30149",288,284,"Petunia grandiflora Pacta Parade Select Mix","semenáč",null,1,"N",null,null,null,null,null,null,null,2.85,808.71,0,0]
["30149",510,500,"Petunia grandiflora Pacta Parade Select Mix","semenáč",null,1,"N",null,null,null,null,null,null,null,2.11,1055.21,0,0]
["43823",288,284,"Petunia grandiflora Pacta Parade Total Mix","semenáč","new",1,"N",null,null,null,null,null,null,null,2.85,808.71,0,0]
["43823",510,500,"Petunia grandiflora Pacta Parade Total Mix","semenáč","new",1,"N",null,null,null,null,null,null,null,2.11,1055.21,0,0]
["43852",288,284,"Petunia grandiflora Pacta Parade Veined Mix","semenáč","new",1,"N",null,null,null,null,null,null,null,2.85,808.71,0,0]
["43852",510,500,"Petunia grandiflora Pacta Parade Veined Mix","semenáč","new",1,"N",null,null,null,null,null,null,null,2.11,1055.21,0,0]
["43346",288,284,"Petunia grandiflora Pacta Parade Violet","semenáč",null,1,"N",null,null,null,null,null,null,null,2.85,808.71,0,0]
["43346",510,500,"Petunia grandiflora Pacta Parade Violet","semenáč",null,1,"N",null,null,null,null,null,null,null,2.11,1055.21,0,0]
["30157",288,284,"Petunia grandiflora Pacta Parade White","semenáč",null,1,"N",null,null,null,null,null,null,null,2.85,808.71,0,0]
["30157",510,500,"Petunia grandiflora Pacta Parade White","semenáč",null,1,"N",null,null,null,null,null,null,null,2.11,1055.21,{"$f":"Q909*(J909+K909+L909+M909+N909+O909)","v":0},{"$f":"R909*1.12","v":0}]
["10981",510,500,"Petunia grandiflora Parade F1 Plus Mix","semenáč",null,1,"N",null,null,null,null,null,null,null,2.0499999999999998,1026.53,0,0]
["12876",288,284,"Petunia grandiflora Parade F1 Star Mix","semenáč",null,1,"N",null,null,null,null,null,null,null,2.58,733.76,0,0]
["12876",510,500,"Petunia grandiflora Parade F1 Star Mix","semenáč",null,1,"N",null,null,null,null,null,null,null,2.0499999999999998,1026.53,0,0]
["13949",288,284,"Petunia grandiflora Parade F1 Vein Mix","semenáč",null,1,"N",null,null,null,null,null,null,null,2.58,733.76,0,0]
["13949",510,500,"Petunia grandiflora Parade F1 Vein Mix","semenáč",null,1,"N",null,null,null,null,null,null,null,2.0499999999999998,1026.53,0,0]
["35054",128,126,"Petunia grandiflora Specials Mystical® Midnight Gold","řízek",null,1,"N","A",null,null,null,null,null,null,12.89,1623.68,0,0]
["32882",128,126,"Petunia grandiflora Specials Picotee Blue","řízek",null,1,"N","A",null,null,null,null,null,null,11.7,1474.28,0,0]
["32625",128,126,"Petunia grandiflora Specials Picotee Purple","řízek",null,1,"N","A",null,null,null,null,null,null,11.7,1474.28,0,0]
["19650",128,126,"Petunia grandiflora Specials Rose Stardust","řízek",null,1,"N","A",null,null,null,null,null,null,11.7,1474.28,0,0]
["12635",128,126,"Petunia grandiflora Surfinia® Blue","řízek",null,1,"N","A",null,null,null,null,null,null,11.28,1421.75,0,0]
["35381",128,126,"Petunia grandiflora Surfinia® Blue Ocean","řízek",null,1,"N","A",null,null,null,null,null,null,11.28,1421.75,0,0]
["12636",128,126,"Petunia grandiflora Surfinia® Blue Vein","řízek",null,1,"N","A",null,null,null,null,null,null,11.28,1421.75,0,0]
["15149",128,126,"Petunia grandiflora Surfinia® Burgundy Wine Red","řízek",null,1,"N","A",null,null,null,null,null,null,11.28,1421.75,0,0]
["16402",128,126,"Petunia grandiflora Surfinia® Compact Dark Red","řízek",null,1,"N","A",null,null,null,null,null,null,11.28,1421.75,0,0]
["17007",128,126,"Petunia grandiflora Surfinia® Compact Purple Vein","řízek",null,1,"N","A",null,null,null,null,null,null,11.28,1421.75,0,0]
["35382",128,126,"Petunia grandiflora Surfinia® Coral Morn","řízek",null,1,"N","A",null,null,null,null,null,null,11.28,1421.75,0,0]
["30131",128,126,"Petunia grandiflora Surfinia® Deep Red","řízek",null,1,"N","A",null,null,null,null,null,null,11.28,1421.75,0,0]
["15622",128,126,"Petunia grandiflora Surfinia® Giant Blue","řízek",null,1,"N","A",null,null,null,null,null,null,11.28,1421.75,0,0]
["13835",128,126,"Petunia grandiflora Surfinia® Giant Purple","řízek",null,1,"N","A",null,null,null,null,null,null,11.28,1421.75,0,0]
["31273",128,126,"Petunia grandiflora Surfinia® Heavenly Blue","řízek",null,1,"N","A",null,null,null,null,null,null,11.28,1421.75,0,0]
["14766",128,126,"Petunia grandiflora Surfinia® Hot Pink","řízek",null,1,"N","A",null,null,null,null,null,null,11.28,1421.75,0,0]
["15152",128,126,"Petunia grandiflora Surfinia® Hot Red","řízek",null,1,"N","A",null,null,null,null,null,null,11.28,1421.75,0,0]
["42848",128,126,"Petunia grandiflora Surfinia® Lagoon Blue Star","řízek",null,1,"N","A",null,null,null,null,null,null,11.28,1421.75,0,0]
["41847",128,126,"Petunia grandiflora Surfinia® Light Yellow","řízek",null,1,"N","A",null,null,null,null,null,null,11.28,1421.75,0,0]
["13427",128,126,"Petunia grandiflora Surfinia® Lime","řízek",null,1,"N","A",null,null,null,null,null,null,11.28,1421.75,0,0]
["12640",128,126,"Petunia grandiflora Surfinia® Pink Vein","řízek",null,1,"N","A",null,null,null,null,null,null,11.28,1421.75,0,0]
["12641",128,126,"Petunia grandiflora Surfinia® Purple","řízek",null,1,"N","A",null,null,null,null,null,null,11.28,1421.75,0,0]
["13118",128,126,"Petunia grandiflora Surfinia® Sky Blue","řízek",null,1,"N","A",null,null,null,null,null,null,11.28,1421.75,0,0]
["37361",128,126,"Petunia grandiflora Surfinia® Snow","řízek",null,1,"N","A",null,null,null,null,null,null,11.28,1421.75,0,0]
["16404",128,126,"Petunia grandiflora Surfinia® Sweet Pink","řízek",null,1,"N","A",null,null,null,null,null,null,11.28,1421.75,0,0]
["41848",128,126,"Petunia grandiflora Surfinia® Violet Impr.","řízek",null,1,"N","A",null,null,null,null,null,null,11.28,1421.75,0,0]
["12645",128,126,"Petunia grandiflora Surfinia® White","řízek",null,1,"N","A",null,null,null,null,null,null,11.28,1421.75,0,0]
["34123",128,126,"Petunia grandiflora Viva® Austria Yellow","řízek",null,1,"N","A",null,null,null,null,null,null,11.1,1398.13,0,0]
["34091",128,126,"Petunia grandiflora Viva® Baroque Pink","řízek",null,1,"N","A",null,null,null,null,null,null,11.1,1398.13,0,0]
["38162",128,126,"Petunia grandiflora Viva® Blue Impr.","řízek","new",1,"N","A",null,null,null,null,null,null,11.1,1398.13,0,0]
["42637",128,126,"Petunia grandiflora Viva® Blue Picotee","řízek",null,1,"N","A",null,null,null,null,null,null,11.1,1398.13,0,0]
["19645",128,126,"Petunia grandiflora Viva® Blue Stardust","řízek",null,1,"N","A",null,null,null,null,null,null,11.1,1398.13,0,0]
["14561",128,126,"Petunia grandiflora Viva® Double Pink Frizzle","řízek",null,1,"N","A",null,null,null,null,null,null,11.23,1415.48,0,0]
["18784",128,126,"Petunia grandiflora Viva® Double Purple Vein","řízek",null,1,"N","A",null,null,null,null,null,null,11.23,1415.48,0,0]
["36386",128,126,"Petunia grandiflora Viva® Eclipse","řízek",null,1,"N","A",null,null,null,null,null,null,11.1,1398.13,0,0]
["34329",128,126,"Petunia grandiflora Viva® Hot Pink","řízek",null,1,"N","A",null,null,null,null,null,null,11.48,1446.33,0,0]
["30456",128,126,"Petunia grandiflora Viva® Purple","řízek",null,1,"N","A",null,null,null,null,null,null,11.1,1398.13,0,0]
["37527",128,126,"Petunia grandiflora Viva® Purple Vein","řízek",null,1,"N","A",null,null,null,null,null,null,11.1,1398.13,0,0]
["37526",128,126,"Petunia grandiflora Viva® Red","řízek",null,1,"N","A",null,null,null,null,null,null,11.1,1398.13,0,0]
["14986",128,126,"Petunia grandiflora Viva® Snowy White","řízek",null,1,"N","A",null,null,null,null,null,null,11.1,1398.13,0,0]
["42005",128,126,"Petunia grandiflora Viva® White","řízek","new",1,"N","A",null,null,null,null,null,null,11.1,1398.13,0,0]
["16757",510,500,"Petunia milliflora Picobella F1 Blue","semenáč",null,1,"N",null,null,null,null,null,null,null,2.4500000000000002,1225.43,0,0]
["16761",288,284,"Petunia milliflora Picobella F1 Mix","semenáč",null,1,"N",null,null,null,null,null,null,null,3.41,969.49,0,0]
["16761",510,500,"Petunia milliflora Picobella F1 Mix","semenáč",null,1,"N",null,null,null,null,null,null,null,2.4500000000000002,1225.43,0,0]
["16762",510,500,"Petunia milliflora Picobella F1 Red","semenáč",null,1,"N",null,null,null,null,null,null,null,2.4500000000000002,1225.43,0,0]
["18570",510,500,"Petunia milliflora Picobella F1 Rose Morn","semenáč",null,1,"N",null,null,null,null,null,null,null,2.4500000000000002,1225.43,0,0]
["16764",510,500,"Petunia milliflora Picobella F1 White","semenáč",null,1,"N",null,null,null,null,null,null,null,2.4500000000000002,1225.43,0,0]
["18793",128,126,"Petunia milliflora Vivini™ Blue","řízek",null,1,"N","A",null,null,null,null,null,null,11.52,1452.11,0,0]
["30488",128,126,"Petunia milliflora Vivini™ Blue Star","řízek",null,1,"N","A",null,null,null,null,null,null,11.52,1452.11,0,0]
["35736",128,126,"Petunia milliflora Vivini™ Burgundy","řízek",null,1,"N","A",null,null,null,null,null,null,11.52,1452.11,0,0]
["19657",128,126,"Petunia milliflora Vivini™ Pink","řízek",null,1,"N","A",null,null,null,null,null,null,11.52,1452.11,0,0]
["36377",128,126,"Petunia milliflora Vivini™ Purple Vein","řízek",null,1,"N","A",null,null,null,null,null,null,11.52,1452.11,0,0]
["31531",128,126,"Petunia milliflora Vivini™ Rose","řízek",null,1,"N","A",null,null,null,null,null,null,11.52,1452.11,0,0]
["31263",128,126,"Petunia milliflora Vivini™ Violet Vein","řízek",null,1,"N","A",null,null,null,null,null,null,11.52,1452.11,0,0]
["18795",128,126,"Petunia milliflora Vivini™ White","řízek",null,1,"N","A",null,null,null,null,null,null,11.52,1452.11,0,0]
["32887",128,126,"Petunia milliflora Vivini™ Yellow","řízek",null,1,"N","A",null,null,null,null,null,null,11.52,1452.11,0,0]
["37221",288,284,"Petunia x hybrida E3 Easy Wave® F1 Blue","semenáč",null,1,"N",null,null,null,null,null,null,null,5.65,1603.89,0,0]
["37225",288,284,"Petunia x hybrida E3 Easy Wave® F1 Bright Red","semenáč",null,1,"N",null,null,null,null,null,null,null,5.65,1603.89,0,0]
["37222",288,284,"Petunia x hybrida E3 Easy Wave® F1 Coral","semenáč",null,1,"N",null,null,null,null,null,null,null,5.65,1603.89,{"$f":"Q973*(J973+K973+L973+M973+N973+O973)","v":0},{"$f":"R973*1.12","v":0}]
["37224",288,284,"Petunia x hybrida E3 Easy Wave® F1 Pink Vein","semenáč",null,1,"N",null,null,null,null,null,null,null,5.65,1603.89,0,0]
["42087",288,284,"Petunia x hybrida E3 Easy Wave® F1 Rose Morn","semenáč","new",1,"N",null,null,null,null,null,null,null,5.65,1603.89,0,0]
["37228",288,284,"Petunia x hybrida E3 Easy Wave® F1 Sky Blue","semenáč",null,1,"N",null,null,null,null,null,null,null,5.65,1603.89,0,0]
["37323",288,284,"Petunia x hybrida E3 Easy Wave® F1 White","semenáč",null,1,"N",null,null,null,null,null,null,null,5.65,1603.89,0,0]
["31118",288,284,"Petunia x hybrida E3 Easy Wave® F1 Yellow","semenáč",null,1,"N",null,null,null,null,null,null,null,5.65,1603.89,0,0]
["17393",288,284,"Petunia x hybrida Easy Wave® F1 Burgundy Star","semenáč",null,1,"N",null,null,null,null,null,null,null,5.72,1625.61,0,0]
["31050",288,284,"Petunia x hybrida Easy Wave® F1 Burgundy Velour","semenáč",null,1,"N",null,null,null,null,null,null,null,5.72,1625.61,0,0]
["36805",288,284,"Petunia x hybrida Easy Wave® F1 Lavender Sky Blue","semenáč",null,1,"N",null,null,null,null,null,null,null,5.72,1625.61,0,0]
["18229",288,284,"Petunia x hybrida Easy Wave® F1 Neon Rose","semenáč",null,1,"N",null,null,null,null,null,null,null,5.72,1625.61,0,0]
["32503",288,284,"Petunia x hybrida Easy Wave® F1 Pink Passion","semenáč",null,1,"N",null,null,null,null,null,null,null,5.72,1625.61,0,0]
["36729",288,284,"Petunia x hybrida Easy Wave® F1 Plum Vein","semenáč",null,1,"N",null,null,null,null,null,null,null,5.72,1625.61,0,0]
["31529",288,284,"Petunia x hybrida Easy Wave® F1 Red Velour","semenáč",null,1,"N",null,null,null,null,null,null,null,5.72,1625.61,0,0]
["32504",288,284,"Petunia x hybrida Easy Wave® F1 Silver","semenáč",null,1,"N",null,null,null,null,null,null,null,5.72,1625.61,0,0]
["35608",288,284,"Petunia x hybrida Easy Wave® F1 Violet","semenáč",null,1,"N",null,null,null,null,null,null,null,5.72,1625.61,0,0]
["35015",288,284,"Petunia x hybrida Shock Wave® Deep Purple","semenáč",null,1,"N",null,null,null,null,null,null,null,5.56,1577.81,0,0]
["17402",288,284,"Petunia x hybrida Shock Wave® Denim","semenáč",null,1,"N",null,null,null,null,null,null,null,5.56,1577.81,0,0]
["36166",288,284,"Petunia x hybrida Shock Wave® Tie Dye","semenáč",null,1,"N",null,null,null,null,null,null,null,5.56,1577.81,0,0]
["37252",288,284,"Petunia x hybrida Shock Wave® White","semenáč",null,1,"N",null,null,null,null,null,null,null,5.56,1577.81,0,0]
["11060",288,284,"Phlox drummondii Dolly Mix","semenáč",null,2,"N",null,null,null,null,null,null,null,4.8499999999999996,1376.85,0,0]
["11895",180,178,"Platycodon grandiflorus Astra F1 Blue","semenáč",null,3,"N",null,null,null,null,null,null,null,9.1999999999999993,1637.61,0,0]
["33120",180,178,"Platycodon grandiflorus Astra F1 MixMasters® White & Blue","semenáč",null,3,"N",null,null,null,null,null,null,null,10.26,1826.89,0,0]
["11896",180,178,"Platycodon grandiflorus Astra F1 Rose","semenáč",null,3,"N",null,null,null,null,null,null,null,9.1999999999999993,1637.61,0,0]
["11897",180,178,"Platycodon grandiflorus Astra F1 White","semenáč",null,3,"N",null,null,null,null,null,null,null,9.1999999999999993,1637.61,0,0]
["35511",180,178,"Platycodon grandiflorus Pop Star™ Blue","semenáč",null,3,"N",null,null,null,null,null,null,null,9.2799999999999994,1652.59,0,0]
["37359",180,178,"Platycodon grandiflorus Pop Star™ Pink","semenáč",null,3,"N",null,null,null,null,null,null,null,9.2799999999999994,1652.59,0,0]
["37360",180,178,"Platycodon grandiflorus Pop Star™ White","semenáč",null,3,"N",null,null,null,null,null,null,null,9.2799999999999994,1652.59,0,0]
["12647",128,126,"Plectranthus coleoides","řízek",null,1,"N",null,null,null,null,null,null,null,9.25,1165.83,0,0]
["19094",288,284,"Portulaca grandiflora Happy Hour MixMasters® Mix","semenáč",null,4,"N",null,null,null,null,null,null,null,3.66,1039.01,0,0]
["19094",510,500,"Portulaca grandiflora Happy Hour MixMasters® Mix","semenáč",null,4,"N",null,null,null,null,null,null,null,2.63,1317.23,0,0]
["37317",180,178,"Portulaca oleracea Mega Pazzaz™ Dark Pink","řízek",null,1,"N","A",null,null,null,null,null,null,10.97,1953.53,0,0]
["37318",180,178,"Portulaca oleracea Mega Pazzaz™ Gold","řízek",null,1,"N","A",null,null,null,null,null,null,10.97,1953.53,0,0]
["43539",180,178,"Portulaca oleracea Mega Pazzaz™ Mango Twist","řízek","new",1,"N","A",null,null,null,null,null,null,10.97,1953.53,0,0]
["37319",180,178,"Portulaca oleracea Mega Pazzaz™ Orange","řízek",null,1,"N","A",null,null,null,null,null,null,10.97,1953.53,0,0]
["42640",180,178,"Portulaca oleracea Mega Pazzaz™ Pink Twist","řízek",null,1,"N","A",null,null,null,null,null,null,10.97,1953.53,0,0]
["37320",180,178,"Portulaca oleracea Mega Pazzaz™ Purple","řízek",null,1,"N","A",null,null,null,null,null,null,10.97,1953.53,0,0]
["42641",180,178,"Portulaca oleracea Mega Pazzaz™ Red","řízek","new",1,"N","A",null,null,null,null,null,null,10.97,1953.53,0,0]
["41466",180,178,"Portulaca oleracea Pazzaz Nano™ Candy Pink","řízek",null,1,"N","A",null,null,null,null,null,null,10.210000000000001,1817.36,0,0]
["41467",180,178,"Portulaca oleracea Pazzaz Nano™ Fuchsia","řízek",null,1,"N","A",null,null,null,null,null,null,10.210000000000001,1817.36,0,0]
["42885",180,178,"Portulaca oleracea Pazzaz Nano™ Gold","řízek","new",1,"N","A",null,null,null,null,null,null,10.210000000000001,1817.36,0,0]
["35755",84,82,"Portulaca oleracea Pazzaz Nano™ MixMasters® Candy","řízek",null,3,"N","A",null,null,null,null,null,null,25.97,2129.87,0,0]
["35826",84,82,"Portulaca oleracea Pazzaz Nano™ MixMasters® Fire","řízek",null,3,"N","A",null,null,null,null,null,null,25.97,2129.87,0,0]
["36711",84,84,"Portulaca oleracea Pazzaz Nano™ MixMasters® Pink","řízek",null,2,"N","A",null,null,null,null,null,null,17.23,1447.61,0,0]
["36719",84,84,"Portulaca oleracea Pazzaz Nano™ MixMasters® Sunset","řízek",null,2,"N","A",null,null,null,null,null,null,17.23,1447.61,0,0]
["35225",180,178,"Portulaca oleracea Pazzaz Nano™ Orange","řízek",null,1,"N","A",null,null,null,null,null,null,10.210000000000001,1817.36,0,0]
["37253",180,178,"Portulaca oleracea Pazzaz Nano™ Purple","řízek",null,1,"N","A",null,null,null,null,null,null,10.210000000000001,1817.36,0,0]
["42884",180,178,"Portulaca oleracea Pazzaz Nano™ Tropical Punch","řízek",null,1,"N","A",null,null,null,null,null,null,10.210000000000001,1817.36,0,0]
["35226",180,178,"Portulaca oleracea Pazzaz Nano™ Yellow","řízek",null,1,"N","A",null,null,null,null,null,null,10.210000000000001,1817.36,0,0]
["41469",180,178,"Portulaca oleracea Pazzaz Nano™ Yellow Twist","řízek",null,1,"N","A",null,null,null,null,null,null,10.210000000000001,1817.36,0,0]
["12475",288,284,"Rhodochiton atrosanguineum Purple Bells","semenáč",null,1,"N",null,null,null,null,null,null,null,9.1999999999999993,2611.9699999999998,0,0]
["37281",288,284,"Rudbeckia hirta Amarillo Gold","semenáč",null,1,"N",null,null,null,null,null,null,null,6.18,1753.8,0,0]
["43372",288,284,"Rudbeckia hirta Pawnee Spirit Gold Black Eye","semenáč","new",1,"N",null,null,null,null,null,null,null,6.18,1753.8,0,0]
["14579",288,284,"Rudbeckia hirta Prairie Sun","semenáč",null,1,"N",null,null,null,null,null,null,null,4.08,1159.5899999999999,0,0]
["11083",288,284,"Rudbeckia hirta Toto Gold","semenáč",null,1,"N",null,null,null,null,null,null,null,3.55,1008.59,0,0]
["11088",288,284,"Salvia farinacea Midi Blue","semenáč",null,2,"N",null,null,null,null,null,null,null,3.37,957.54,0,0]
["32728",84,84,"Salvia farinacea Mystic Spires Blue","řízek",null,1,"N","A",null,null,null,null,null,null,14.44,1212.74,0,0]
["41564",84,84,"Salvia farinacea Mystic Spires Sky Blue","řízek",null,1,"N","A",null,null,null,null,null,null,14.44,1212.74,0,0]
["34723",84,84,"Salvia farinacea Mysty Blue","řízek",null,1,"N","A",null,null,null,null,null,null,14.97,1257.4000000000001,0,0]
["32558",128,126,"Salvia farinacea Sallyfun Deep Ocean","řízek",null,1,"N","A",null,null,null,null,null,null,12.62,1590.43,0,0]
["41470",128,126,"Salvia farinacea Sallyfun Pure White","řízek",null,1,"N","A",null,null,null,null,null,null,12.62,1590.43,0,0]
["35272",128,126,"Salvia farinacea Sallyfun Sky Blue","řízek",null,1,"N","A",null,null,null,null,null,null,12.62,1590.43,0,0]
["31694",84,84,"Salvia guaranitica Black & Bloom","řízek",null,1,"N","A",null,null,null,null,null,null,14.44,1212.74,0,0]
["43364",84,84,"Salvia guaranitica Plum Crazy","řízek","new",1,"N","A",null,null,null,null,null,null,14.44,1212.74,0,0]
["36380",84,84,"Salvia guaranitica Purple & Bloom","řízek",null,1,"N","A",null,null,null,null,null,null,14.44,1212.74,0,0]
["16111",288,284,"Salvia splendens Mojave Red","semenáč",null,1,"N",null,null,null,null,null,null,null,2.76,784.82,{"$f":"Q1037*(J1037+K1037+L1037+M1037+N1037+O1037)","v":0},{"$f":"R1037*1.12","v":0}]
["16111",510,440,"Salvia splendens Mojave Red","semenáč",null,1,"N",null,null,null,null,null,null,null,2.2400000000000002,985.06,0,0]
["36569",84,84,"Salvia splendens Roman Red","řízek",null,1,"N","A",null,null,null,null,null,null,15.41,1294.3499999999999,0,0]
["11095",288,284,"Salvia splendens Turbo Red","semenáč",null,1,"N",null,null,null,null,null,null,null,2.67,757.66,0,0]
["11095",510,440,"Salvia splendens Turbo Red","semenáč",null,1,"N",null,null,null,null,null,null,null,2.0699999999999998,909.33,0,0]
["13373",288,284,"Salvia splendens Vista Mix","semenáč",null,1,"N",null,null,null,null,null,null,null,2.92,829.35,0,0]
["13234",288,284,"Salvia splendens Vista Red","semenáč",null,1,"N",null,null,null,null,null,null,null,2.92,829.35,0,0]
["18462",288,284,"Sanvitalia speciosa Million Suns Yellow","semenáč",null,2,"N",null,null,null,null,null,null,null,6.34,1799.42,0,0]
["15016",180,178,"Sanvitalia speciosa Safari Yellow","řízek",null,1,"N","A",null,null,null,null,null,null,9.01,1604.25,0,0]
["37254",180,178,"Sanvitalia speciosa Santiago Bright Yellow","řízek",null,1,"N","A",null,null,null,null,null,null,9.4,1672.34,0,0]
["31076",180,178,"Sanvitalia speciosa Santiago Great Yellow","řízek",null,1,"N","A",null,null,null,null,null,null,9.4,1672.34,0,0]
["38384",180,178,"Sanvitalia speciosa Sun Vitalia® Bright Yellow","řízek",null,1,"N","A",null,null,null,null,null,null,9.1999999999999993,1638.3,0,0]
["35529",128,126,"Scaevola aemula Fancy Blue","řízek",null,1,"N","A",null,null,null,null,null,null,11.03,1389.94,0,0]
["43136",84,82,"Scaevola aemula Fancy MixMasters® Fantasy Impr","řízek","new",3,"N","A",null,null,null,null,null,null,25.97,2129.87,0,0]
["42882",128,126,"Scaevola aemula Fancy Pink Impr.","řízek",null,1,"N","A",null,null,null,null,null,null,11.03,1389.94,0,0]
["38469",128,126,"Scaevola aemula Fancy Violet","řízek",null,1,"N","A",null,null,null,null,null,null,11.03,1389.94,0,0]
["35531",128,126,"Scaevola aemula Fancy White","řízek",null,1,"N","A",null,null,null,null,null,null,11.03,1389.94,0,0]
["14277",128,126,"Scaevola aemula Saphira Blue","řízek",null,1,"N","A",null,null,null,null,null,null,10.84,1365.84,0,0]
["34594",84,84,"Scaevola aemula Surdiva® Deep Violet Blue","řízek",null,2,"N","A",null,null,null,null,null,null,15.89,1335.16,0,0]
["34594",128,126,"Scaevola aemula Surdiva® Deep Violet Blue","řízek",null,1,"N","A",null,null,null,null,null,null,11.88,1496.93,0,0]
["43556",84,84,"Scaevola aemula Surdiva® Fashion Pink impr.","řízek","new",2,"N","A",null,null,null,null,null,null,15.89,1335.16,0,0]
["43556",128,126,"Scaevola aemula Surdiva® Fashion Pink impr.","řízek","new",1,"N","A",null,null,null,null,null,null,11.88,1496.93,0,0]
["37819",84,84,"Scaevola aemula Surdiva® MixMasters® Bavarian","řízek",null,2,"N","A",null,null,null,null,null,null,18.57,1560.07,0,0]
["37371",128,126,"Scaevola aemula Surdiva® Snow Blanket","řízek",null,1,"N","A",null,null,null,null,null,null,11.88,1496.93,0,0]
["41457",128,126,"Scaevola aemula Volare Blue","řízek",null,1,"N","A",null,null,null,null,null,null,11.03,1389.94,0,0]
["37324",84,84,"Solanum pseudocapsicum Jupiter","semenáč",null,1,"N",null,null,null,null,null,null,null,11.49,965.02,0,0]
["37324",288,284,"Solanum pseudocapsicum Jupiter","semenáč",null,1,"N",null,null,null,null,null,null,null,5.98,1699.48,0,0]
["37345",84,84,"Solanum pseudocapsicum Thurino","semenáč",null,1,"N",null,null,null,null,null,null,null,10.93,918.11,0,0]
["37345",288,284,"Solanum pseudocapsicum Thurino","semenáč",null,1,"N",null,null,null,null,null,null,null,5.17,1467.01,0,0]
["37346",84,84,"Solanum pseudocapsicum Thurino Light","semenáč",null,1,"N",null,null,null,null,null,null,null,10.93,918.11,0,0]
["37346",288,284,"Solanum pseudocapsicum Thurino Light","semenáč",null,1,"N",null,null,null,null,null,null,null,5.17,1467.01,0,0]
["13156",128,126,"Streptocarpus saxorum Blue Fountain","řízek",null,1,"N",null,null,null,null,null,null,null,13.8,1739.35,0,0]
["14568",180,178,"Sutera diffusus Baja White","řízek",null,1,"Y","A",null,null,null,null,null,null,7.76,1381.62,0,0]
["36910",180,178,"Sutera diffusus MegaCopa™ Blue","řízek",null,1,"Y","A",null,null,null,null,null,null,8.8800000000000008,1581.1,0,0]
["42856",180,178,"Sutera diffusus MegaCopa™ Pink","řízek",null,1,"Y","A",null,null,null,null,null,null,8.8800000000000008,1581.1,0,0]
["37164",180,178,"Sutera diffusus MegaCopa™ Pink Shine","řízek",null,1,"Y","A",null,null,null,null,null,null,8.8800000000000008,1581.1,0,0]
["41487",180,178,"Sutera diffusus MegaCopa™ Purple","řízek",null,1,"Y","A",null,null,null,null,null,null,8.8800000000000008,1581.1,0,0]
["32696",180,178,"Sutera diffusus MegaCopa™ Sky Blue","řízek",null,1,"Y","A",null,null,null,null,null,null,8.8800000000000008,1581.1,0,0]
["32699",180,178,"Sutera diffusus MegaCopa™ Versa White","řízek",null,1,"Y","A",null,null,null,null,null,null,8.8800000000000008,1581.1,0,0]
["32698",180,178,"Sutera diffusus MegaCopa™ White","řízek",null,1,"Y","A",null,null,null,null,null,null,8.8800000000000008,1581.1,0,0]
["37255",180,178,"Sutera diffusus Scopia® Compact Blue","řízek",null,1,"Y","A",null,null,null,null,null,null,8.5299999999999994,1517.79,0,0]
["43856",84,82,"Sutera diffusus Scopia® Compact MixMasters® Venus impr.","řízek","new",3,"Y","A",null,null,null,null,null,null,21.92,1797.4,0,0]
["38055",180,178,"Sutera diffusus Scopia® Compact Pink","řízek",null,1,"Y","A",null,null,null,null,null,null,8.5299999999999994,1517.79,0,0]
["38054",180,178,"Sutera diffusus Scopia® Compact Pink Heart","řízek",null,1,"Y","A",null,null,null,null,null,null,8.5299999999999994,1517.79,0,0]
["32527",180,178,"Sutera diffusus Scopia® Compact White","řízek",null,1,"Y","A",null,null,null,null,null,null,8.5299999999999994,1517.79,0,0]
["36114",180,178,"Sutera diffusus Scopia® Double Lavender","řízek",null,1,"Y","A",null,null,null,null,null,null,10.56,1880,0,0]
["35716",180,178,"Sutera diffusus Scopia® Double Snowball","řízek",null,1,"Y","A",null,null,null,null,null,null,10.56,1880,0,0]
["20376",180,178,"Sutera diffusus Scopia® Gulliver Dynamic White","řízek",null,1,"Y","A",null,null,null,null,null,null,8.5299999999999994,1517.79,0,0]
["17411",288,284,"Tagetes erecta Taishan® Gold","semenáč",null,1,"N",null,null,null,null,null,null,null,3.53,1002.08,0,0]
["17411",510,440,"Tagetes erecta Taishan® Gold","semenáč",null,1,"N",null,null,null,null,null,null,null,2.84,1250.98,0,0]
["17413",288,284,"Tagetes erecta Taishan® Mix","semenáč",null,1,"N",null,null,null,null,null,null,null,3.53,1002.08,0,0]
["17413",510,440,"Tagetes erecta Taishan® Mix","semenáč",null,1,"N",null,null,null,null,null,null,null,2.84,1250.98,0,0]
["17410",288,284,"Tagetes erecta Taishan® Orange","semenáč",null,1,"N",null,null,null,null,null,null,null,3.53,1002.08,0,0]
["17410",510,440,"Tagetes erecta Taishan® Orange","semenáč",null,1,"N",null,null,null,null,null,null,null,2.84,1250.98,0,0]
["17412",288,284,"Tagetes erecta Taishan® Yellow","semenáč",null,1,"N",null,null,null,null,null,null,null,3.53,1002.08,0,0]
["17412",510,440,"Tagetes erecta Taishan® Yellow","semenáč",null,1,"N",null,null,null,null,null,null,null,2.84,1250.98,0,0]
["11120",288,284,"Tagetes erecta Vanilla F1","semenáč",null,1,"N",null,null,null,null,null,null,null,5.57,1583.25,0,0]
["11120",510,440,"Tagetes erecta Vanilla F1","semenáč",null,1,"N",null,null,null,null,null,null,null,4.8600000000000003,2136.23,0,0]
["13047",288,284,"Tagetes patula nana Bonanza™ Bee","semenáč",null,1,"N",null,null,null,null,null,null,null,2.71,770.69,0,0]
["13047",510,440,"Tagetes patula nana Bonanza™ Bee","semenáč",null,1,"N",null,null,null,null,null,null,null,2.06,907.64,0,0]
["11141",288,284,"Tagetes patula nana Bonanza™ Bolero","semenáč",null,1,"N",null,null,null,null,null,null,null,2.71,770.69,0,0]
["11141",510,440,"Tagetes patula nana Bonanza™ Bolero","semenáč",null,1,"N",null,null,null,null,null,null,null,2.06,907.64,0,0]
["11146",288,284,"Tagetes patula nana Bonanza™ Deep Orange","semenáč",null,1,"N",null,null,null,null,null,null,null,2.71,770.69,0,0]
["11146",510,440,"Tagetes patula nana Bonanza™ Deep Orange","semenáč",null,1,"N",null,null,null,null,null,null,null,2.06,907.64,0,0]
["32907",288,284,"Tagetes patula nana Bonanza™ Fireball","semenáč",null,1,"N",null,null,null,null,null,null,null,2.71,770.69,{"$f":"Q1101*(J1101+K1101+L1101+M1101+N1101+O1101)","v":0},{"$f":"R1101*1.12","v":0}]
["32907",510,440,"Tagetes patula nana Bonanza™ Fireball","semenáč",null,1,"N",null,null,null,null,null,null,null,2.06,907.64,0,0]
["11142",288,284,"Tagetes patula nana Bonanza™ Flame","semenáč",null,1,"N",null,null,null,null,null,null,null,2.71,770.69,0,0]
["11142",510,440,"Tagetes patula nana Bonanza™ Flame","semenáč",null,1,"N",null,null,null,null,null,null,null,2.06,907.64,0,0]
["13046",288,284,"Tagetes patula nana Bonanza™ Gold","semenáč",null,1,"N",null,null,null,null,null,null,null,2.71,770.69,0,0]
["13046",510,440,"Tagetes patula nana Bonanza™ Gold","semenáč",null,1,"N",null,null,null,null,null,null,null,2.06,907.64,0,0]
["13048",288,284,"Tagetes patula nana Bonanza™ Mix","semenáč",null,1,"N",null,null,null,null,null,null,null,2.71,770.69,0,0]
["13048",510,440,"Tagetes patula nana Bonanza™ Mix","semenáč",null,1,"N",null,null,null,null,null,null,null,2.06,907.64,0,0]
["11147",288,284,"Tagetes patula nana Bonanza™ Yellow","semenáč",null,1,"N",null,null,null,null,null,null,null,2.71,770.69,0,0]
["11147",510,440,"Tagetes patula nana Bonanza™ Yellow","semenáč",null,1,"N",null,null,null,null,null,null,null,2.06,907.64,0,0]
["18048",288,284,"Tagetes patula nana Durango Bee","semenáč",null,1,"N",null,null,null,null,null,null,null,2.94,833.7,0,0]
["18049",288,284,"Tagetes patula nana Durango Bolero","semenáč",null,1,"N",null,null,null,null,null,null,null,2.94,833.7,0,0]
["18050",288,284,"Tagetes patula nana Durango Flame","semenáč",null,1,"N",null,null,null,null,null,null,null,2.94,833.7,0,0]
["11180",288,284,"Tagetes patula nana Durango Mix","semenáč",null,1,"N",null,null,null,null,null,null,null,2.94,833.7,0,0]
["18051",288,284,"Tagetes patula nana Durango Orange","semenáč",null,1,"N",null,null,null,null,null,null,null,2.94,833.7,0,0]
["15383",288,284,"Tagetes patula nana Durango Red","semenáč",null,1,"N",null,null,null,null,null,null,null,2.94,833.7,0,0]
["18052",288,284,"Tagetes patula nana Durango Yellow","semenáč",null,1,"N",null,null,null,null,null,null,null,2.94,833.7,0,0]
["18463",288,284,"Tagetes patula nana Durango Yellow Fire","semenáč",null,1,"N",null,null,null,null,null,null,null,2.94,833.7,0,0]
["36913",84,84,"Thunbergia alata SunEyes Lemon Star","řízek",null,1,"Y","A",null,null,null,null,null,null,13.54,1137.24,0,0]
["37446",84,84,"Thunbergia alata SunEyes Orange","řízek",null,1,"Y","A",null,null,null,null,null,null,13.54,1137.24,0,0]
["36894",84,84,"Thunbergia alata SunEyes Orange Beauty","řízek",null,1,"Y","A",null,null,null,null,null,null,13.54,1137.24,0,0]
["36895",84,84,"Thunbergia alata SunEyes Red","řízek",null,1,"Y","A",null,null,null,null,null,null,13.54,1137.24,0,0]
["37448",84,84,"Thunbergia alata SunEyes Rose Sensation","řízek",null,1,"Y","A",null,null,null,null,null,null,13.54,1137.24,0,0]
["36896",84,84,"Thunbergia alata SunEyes Terracotta","řízek",null,1,"Y","A",null,null,null,null,null,null,13.54,1137.24,0,0]
["37449",84,84,"Thunbergia alata SunEyes White","řízek",null,1,"Y","A",null,null,null,null,null,null,13.54,1137.24,0,0]
["37450",84,84,"Thunbergia alata SunEyes Yellow","řízek",null,1,"Y","A",null,null,null,null,null,null,13.54,1137.24,0,0]
["19096",288,284,"Torenia fournieri Kauai Deep Blue","semenáč",null,1,"N",null,null,null,null,null,null,null,3.94,1119.4000000000001,0,0]
["19098",288,284,"Torenia fournieri Kauai Magenta","semenáč",null,1,"N",null,null,null,null,null,null,null,3.94,1119.4000000000001,0,0]
["19808",288,284,"Torenia fournieri Kauai Mix","semenáč",null,1,"N",null,null,null,null,null,null,null,3.94,1119.4000000000001,0,0]
["19099",288,284,"Torenia fournieri Kauai Rose","semenáč",null,1,"N",null,null,null,null,null,null,null,3.94,1119.4000000000001,0,0]
["19100",288,284,"Torenia fournieri Kauai White","semenáč",null,1,"N",null,null,null,null,null,null,null,3.94,1119.4000000000001,0,0]
["34283",128,126,"Verbena peruviana EnduraScape™ Blue","řízek",null,1,"Y","A",null,null,null,null,null,null,11.9,1499.82,0,0]
["37728",128,126,"Verbena peruviana EnduraScape™ Burgundy","řízek",null,1,"Y","A",null,null,null,null,null,null,11.9,1499.82,0,0]
["30612",128,126,"Verbena peruviana EnduraScape™ Hot Pink","řízek",null,1,"Y","A",null,null,null,null,null,null,11.9,1499.82,0,0]
["32675",128,126,"Verbena peruviana EnduraScape™ Magenta","řízek",null,1,"Y","A",null,null,null,null,null,null,11.9,1499.82,0,0]
["32676",128,126,"Verbena peruviana EnduraScape™ Pink Bicolour","řízek",null,1,"Y","A",null,null,null,null,null,null,11.9,1499.82,0,0]
["35659",128,126,"Verbena peruviana EnduraScape™ Pink Fizz","řízek",null,1,"Y","A",null,null,null,null,null,null,11.9,1499.82,0,0]
["36957",128,126,"Verbena peruviana EnduraScape™ Purple","řízek",null,1,"Y","A",null,null,null,null,null,null,11.9,1499.82,0,0]
["42876",128,126,"Verbena peruviana EnduraScape™ Purple Fizz","řízek","new",1,"Y","A",null,null,null,null,null,null,11.9,1499.82,0,0]
["36958",128,126,"Verbena peruviana EnduraScape™ Red","řízek",null,1,"Y","A",null,null,null,null,null,null,11.9,1499.82,0,0]
["35660",128,126,"Verbena peruviana EnduraScape™ White","řízek",null,1,"Y","A",null,null,null,null,null,null,11.9,1499.82,0,0]
["37349",84,82,"Verbena peruviana Firehouse® MixMasters® Dutch Fire","řízek",null,3,"Y","A",null,null,null,null,null,null,24.83,2036.4,0,0]
["37350",84,82,"Verbena peruviana Firehouse® MixMasters® Pink Fire","řízek",null,3,"Y","A",null,null,null,null,null,null,24.83,2036.4,0,0]
["37351",84,82,"Verbena peruviana Firehouse® MixMasters® Purple Fire","řízek",null,3,"Y","A",null,null,null,null,null,null,24.83,2036.4,0,0]
["36058",128,126,"Verbena peruviana Firehouse™ Grape","řízek",null,1,"Y","A",null,null,null,null,null,null,11.37,1432.83,0,0]
["36059",128,126,"Verbena peruviana Firehouse™ Lavender Blue","řízek",null,1,"Y","A",null,null,null,null,null,null,11.37,1432.83,0,0]
["41488",128,126,"Verbena peruviana Firehouse™ Pink","řízek",null,1,"Y","A",null,null,null,null,null,null,11.37,1432.83,0,0]
["36959",128,126,"Verbena peruviana Firehouse™ Purple Fizz","řízek",null,1,"Y","A",null,null,null,null,null,null,11.37,1432.83,0,0]
["36064",128,126,"Verbena peruviana Firehouse™ Red","řízek",null,1,"Y","A",null,null,null,null,null,null,11.37,1432.83,0,0]
["43042",128,126,"Verbena peruviana Firehouse™ Red Star","řízek","new",1,"Y","A",null,null,null,null,null,null,11.37,1432.83,0,0]
["36962",128,126,"Verbena peruviana Firehouse™ Violet Eye","řízek",null,1,"Y","A",null,null,null,null,null,null,11.37,1432.83,0,0]
["37731",128,126,"Verbena peruviana Firehouse™ White","řízek",null,1,"Y","A",null,null,null,null,null,null,11.37,1432.83,0,0]
["36987",128,126,"Verbena peruviana Lobster Fest","řízek",null,1,"Y","A",null,null,null,null,null,null,11.45,1442.95,0,0]
["36298",128,126,"Verbena peruviana Venturi® Bicolour Pink","řízek",null,1,"Y","A",null,null,null,null,null,null,10.97,1382.23,0,0]
["36299",128,126,"Verbena peruviana Venturi® Bicolour Purple","řízek",null,1,"Y","A",null,null,null,null,null,null,10.97,1382.23,0,0]
["35738",128,126,"Verbena peruviana Venturi® Cherry Eye","řízek",null,1,"Y","A",null,null,null,null,null,null,10.97,1382.23,0,0]
["31698",84,82,"Verbena peruviana Venturi® MixMasters® Grand Prix","řízek",null,3,"Y","A",null,null,null,null,null,null,24.83,2036.4,0,0]
["20178",84,82,"Verbena peruviana Venturi® MixMasters® Monaco","řízek",null,3,"Y","A",null,null,null,null,null,null,24.83,2036.4,0,0]
["20179",84,82,"Verbena peruviana Venturi® MixMasters® Pit Stop","řízek",null,3,"Y","A",null,null,null,null,null,null,24.83,2036.4,0,0]
["17655",128,126,"Verbena peruviana Venturi® Neon Pink","řízek",null,1,"Y","A",null,null,null,null,null,null,10.97,1382.23,0,0]
["17074",128,126,"Verbena peruviana Venturi® Peach","řízek",null,1,"Y","A",null,null,null,null,null,null,10.97,1382.23,0,0]
["17654",128,126,"Verbena peruviana Venturi® Pink","řízek",null,1,"Y","A",null,null,null,null,null,null,10.97,1382.23,0,0]
["20654",128,126,"Verbena peruviana Venturi® Purple","řízek",null,1,"Y","A",null,null,null,null,null,null,10.97,1382.23,0,0]
["17075",128,126,"Verbena peruviana Venturi® Red","řízek",null,1,"Y","A",null,null,null,null,null,null,10.97,1382.23,0,0]
["17077",128,126,"Verbena peruviana Venturi® Rose","řízek",null,1,"Y","A",null,null,null,null,null,null,10.97,1382.23,{"$f":"Q1165*(J1165+K1165+L1165+M1165+N1165+O1165)","v":0},{"$f":"R1165*1.12","v":0}]
["17656",128,126,"Verbena peruviana Venturi® Scarlet","řízek",null,1,"Y","A",null,null,null,null,null,null,10.97,1382.23,0,0]
["17080",128,126,"Verbena peruviana Venturi® White","řízek",null,1,"Y","A",null,null,null,null,null,null,10.97,1382.23,0,0]
["18465",510,480,"Verbena x hybrida Obsession® Blue Eye","semenáč",null,1,"N",null,null,null,null,null,null,null,3,1440.08,0,0]
["13232",288,284,"Verbena x hybrida Obsession® Mix","semenáč",null,1,"N",null,null,null,null,null,null,null,3.69,1046.6099999999999,0,0]
["13232",510,480,"Verbena x hybrida Obsession® Mix","semenáč",null,1,"N",null,null,null,null,null,null,null,3,1440.08,0,0]
["18468",510,480,"Verbena x hybrida Obsession® Pink","semenáč",null,1,"N",null,null,null,null,null,null,null,3,1440.08,0,0]
["18469",510,480,"Verbena x hybrida Obsession® Red","semenáč",null,1,"N",null,null,null,null,null,null,null,3,1440.08,0,0]
["13230",510,480,"Verbena x hybrida Obsession® Scarlet","semenáč",null,1,"N",null,null,null,null,null,null,null,3,1440.08,0,0]
["35200",510,480,"Verbena x hybrida Obsession® Twister Purple","semenáč",null,1,"N",null,null,null,null,null,null,null,3.58,1717.32,0,0]
["35201",510,480,"Verbena x hybrida Obsession® Twister Red","semenáč",null,1,"N",null,null,null,null,null,null,null,3.58,1717.32,0,0]
["18474",510,480,"Verbena x hybrida Obsession® White","semenáč",null,1,"N",null,null,null,null,null,null,null,3,1440.08,0,0]
["15954",288,284,"Verbena x hybrida Tuscany Mix","semenáč",null,1,"N",null,null,null,null,null,null,null,3.67,1041.18,0,0]
["15954",510,480,"Verbena x hybrida Tuscany Mix","semenáč",null,1,"N",null,null,null,null,null,null,null,3.16,1515.36,0,0]
["15251",288,284,"Zinnia angustifolia Profusion Fire","semenáč",null,1,"N",null,null,null,null,null,null,null,5.53,1570.21,0,0]
["11259",288,284,"Zinnia angustifolia Profusion Cherry","semenáč",null,1,"N",null,null,null,null,null,null,null,5.53,1570.21,0,0]
["36640",288,284,"Zinnia angustifolia Profusion Cherry Bicolour","semenáč",null,1,"N",null,null,null,null,null,null,null,5.53,1570.21,0,0]
["20506",288,284,"Zinnia angustifolia Profusion Mix","semenáč",null,1,"N",null,null,null,null,null,null,null,5.53,1570.21,0,0]
["34965",288,284,"Zinnia angustifolia Profusion Red","semenáč",null,1,"N",null,null,null,null,null,null,null,5.53,1570.21,0,0]
["38334",288,284,"Zinnia angustifolia Profusion Red Yellow Bicolour","semenáč",null,1,"N",null,null,null,null,null,null,null,5.53,1570.21,0,0]
["13315",288,284,"Zinnia angustifolia Profusion White","semenáč",null,1,"N",null,null,null,null,null,null,null,5.53,1570.21,0,0]
["16951",288,284,"Zinnia angustifolia Profusion Yellow","semenáč",null,1,"N",null,null,null,null,null,null,null,5.53,1570.21,0,0]
["18915",288,284,"Zinnia angustifolia Zahara™ Raspberry Lemonade Mix","semenáč",null,1,"N",null,null,null,null,null,null,null,5.53,1570.21,0,0]
["30182",288,284,"Zinnia angustifolia Zahara™ Sunburst","semenáč",null,1,"N",null,null,null,null,null,null,null,5.53,1570.21,0,0]
["37504",288,284,"Zinnia elegans Zen Mix","semenáč",null,1,"N",null,null,null,null,null,null,null,7.14,2027.54,0,0]
["36167",288,284,"Zinnia elegans Zen Orange","semenáč",null,1,"N",null,null,null,null,null,null,null,7.14,2027.54,0,0]
["36168",288,284,"Zinnia elegans Zen Red","semenáč",null,1,"N",null,null,null,null,null,null,null,7.14,2027.54,0,0]
["36169",288,284,"Zinnia elegans Zen Rose","semenáč",null,1,"N",null,null,null,null,null,null,null,7.14,2027.54,0,0]
["37159",288,284,"Zinnia elegans Zen White","semenáč",null,1,"N",null,null,null,null,null,null,null,7.14,2027.54,0,0]
["36170",288,284,"Zinnia elegans Zen Yellow","semenáč",null,1,"N",null,null,null,null,null,null,null,7.14,2027.54,0,0]